Workbook

Sheet IQEF Intake Form
I1: TOTAL PROJECT COST W/O CUSTOMER CONTRIBUTION | K1: 0
I2: CUSTOMER CONTRIBUTION | K2: 0
F3: Project Site Address: | I3: TOTAL PROJECT COST | K3: =K1-K2 -> 0 | W3: =SUM(SUMPRODUCT(Q7:Q26,M7:M26),SUMPRODUCT(N29:N33,L29:L33),SUMPRODUCT(R36:R38,M36:M38),PRODUCT(M41,I41),PRODUCT(P44,J44),SUMPRODUCT(Q48:Q50,O48:O50),SUMPRODUCT(N54:N56,I54:I56),PRODUCT(K59,I59),SUMPRODUCT(N64:N66,J64:J66),SUMPRODUCT(L70:L73,I70:I73),L76:L77,SUMPRODUCT(K81:K86,H81:H86),SUMPRODUCT(J91:J93,G91:G93),SUMPRODUCT(L98:L99,J98:J99)) -> 0
F4: This form must be submitted along with the Income Qualified Efficiency Fund Application, to include corresponding specification sheets for the measures listed in this form.
F5: Lighting | H5: =VLOOKUP(K5, lighthrdef, 3, FALSE) ->  | I5: Existing Watts per Fixture (W) | J5: Proposed Watts per Fixture (W) | K5: Location | L5: Existing Quantity | M5: Proposed Quantity | N5: Existing Equipment Age | O5: Space Conditioning | P5: Total Installed Cost | Q5: Materials Cost (per Bulb or Fixture) | R5: Manufacturer | S5: Model | T5: Existing Lamp Description
A6: ='Copy Values'!A4 -> kWh | B6: ='Copy Values'!B4 -> kW | C6: ='Copy Values'!D4 -> MMBtu | D6: Equivalent MMBtu | F6: Bulbs and Fixtures | K6: 1
A7: ='Copy Values'!A5 -> 0 | B7: ='Copy Values'!B5 -> 0 | C7: ='Copy Values'!D5 -> 0 | D7: =SUM(C7,(A7*3412.14/10^6)) -> 0 | H7: =VLOOKUP(K7, lighthrdef, 3, FALSE) -> Choose Location | K7: 1 | P7: =Q7/matcost*projcost ->  | Q7: 0
A8: ='Copy Values'!A6 -> 0 | B8: ='Copy Values'!B6 -> 0 | C8: ='Copy Values'!D6 -> 0 | D8: =SUM(C8,(A8*3412.14/10^6)) -> 0 | H8: Choose Location | K8: 1 | P8: =Q8/matcost*projcost -> 
A9: ='Copy Values'!A7 -> 0 | B9: ='Copy Values'!B7 -> 0 | C9: ='Copy Values'!D7 -> 0 | D9: 0 | H9: Choose Location | K9: 1 | P9: =Q9/matcost*projcost -> 
A10: ='Copy Values'!A8 -> 0 | B10: ='Copy Values'!B8 -> 0 | C10: ='Copy Values'!D8 -> 0 | D10: 0 | H10: Choose Location | K10: 1
A11: ='Copy Values'!A9 -> 0 | B11: ='Copy Values'!B9 -> 0 | C11: ='Copy Values'!D9 -> 0 | D11: 0 | H11: Choose Location | K11: 1
A12: ='Copy Values'!A10 -> 0 | B12: ='Copy Values'!B10 -> 0 | C12: ='Copy Values'!D10 -> 0 | D12: 0 | H12: Choose Location | K12: 1
A13: ='Copy Values'!A11 -> 0 | B13: ='Copy Values'!B11 -> 0 | C13: ='Copy Values'!D11 -> 0 | D13: 0 | H13: Choose Location | K13: 1
A14: ='Copy Values'!A12 -> 0 | B14: ='Copy Values'!B12 -> 0 | C14: ='Copy Values'!D12 -> 0 | D14: 0 | H14: Choose Location | K14: 1
A15: ='Copy Values'!A13 -> 0 | B15: ='Copy Values'!B13 -> 0 | C15: ='Copy Values'!D13 -> 0 | D15: 0 | H15: Choose Location | K15: 1
A16: ='Copy Values'!A14 -> 0 | B16: ='Copy Values'!B14 -> 0 | C16: ='Copy Values'!D14 -> 0 | D16: 0 | H16: Choose Location | K16: 1
A17: ='Copy Values'!A15 -> 0 | B17: ='Copy Values'!B15 -> 0 | C17: ='Copy Values'!D15 -> 0 | D17: 0 | H17: Choose Location | K17: 1
A18: ='Copy Values'!A16 -> 0 | B18: ='Copy Values'!B16 -> 0 | C18: ='Copy Values'!D16 -> 0 | D18: 0 | H18: Choose Location | K18: 1
A19: ='Copy Values'!A17 -> 0 | B19: ='Copy Values'!B17 -> 0 | C19: ='Copy Values'!D17 -> 0 | D19: 0 | H19: Choose Location | K19: 1
A20: ='Copy Values'!A18 -> 0 | B20: ='Copy Values'!B18 -> 0 | C20: ='Copy Values'!D18 -> 0 | D20: 0 | H20: Choose Location | K20: 1
A21: ='Copy Values'!A19 -> 0 | B21: ='Copy Values'!B19 -> 0 | C21: ='Copy Values'!D19 -> 0 | D21: 0 | H21: Choose Location | K21: 1
A22: ='Copy Values'!A20 -> 0 | B22: ='Copy Values'!B20 -> 0 | C22: ='Copy Values'!D20 -> 0 | D22: 0 | H22: Choose Location | K22: 1
A23: ='Copy Values'!A21 -> 0 | B23: ='Copy Values'!B21 -> 0 | C23: ='Copy Values'!D21 -> 0 | D23: 0 | H23: Choose Location | K23: 1
A24: ='Copy Values'!A22 -> 0 | B24: ='Copy Values'!B22 -> 0 | C24: ='Copy Values'!D22 -> 0 | D24: 0 | H24: Choose Location | K24: 1
A25: ='Copy Values'!A23 -> 0 | B25: ='Copy Values'!B23 -> 0 | C25: ='Copy Values'!D23 -> 0 | D25: 0 | H25: Choose Location | K25: 1
A26: ='Copy Values'!A24 -> 0 | B26: ='Copy Values'!B24 -> 0 | C26: ='Copy Values'!D24 -> 0 | D26: 0 | H26: Choose Location | K26: 1
A27: =SUM(A7:A26) -> 0 | B27: =SUM(B7:B26) -> 0 | C27: 0 | D27: 0
A28: ='Copy Values'!A26 -> kWh | B28: ='Copy Values'!B26 -> kW | C28: ='Copy Values'!D26 -> MMBtu | D28: Equivalent MMBtu | F28: Controls | H28: Controlled Wattage (Watts) | I28: Existing Operating Hours | J28: Savings Factor (operating hours or wattage reduction, as applicable) | K28: Location | L28: Quantity | M28: Total Installed Cost | N28: Materials Cost per Unit
A29: ='Copy Values'!A27 -> 0 | B29: ='Copy Values'!B27 -> 0 | C29: ='Copy Values'!D27 -> 0 | D29: =SUM(C29,(A29*3412.14/10^6)) -> 0 | I29: =VLOOKUP(K29, lighthrdef, 3, FALSE) -> Choose Location | K29: 1 | M29: =N29/matcost*projcost -> 
A30: ='Copy Values'!A28 -> 0 | B30: ='Copy Values'!B28 -> 0 | C30: ='Copy Values'!D28 -> 0 | D30: 0 | I30: =VLOOKUP(K30, lighthrdef, 3, FALSE) -> Choose Location | K30: 1 | M30: =N30/matcost*projcost -> 
A31: ='Copy Values'!A29 -> 0 | B31: ='Copy Values'!B29 -> 0 | C31: ='Copy Values'!D29 -> 0 | D31: 0 | I31: =VLOOKUP(K31, lighthrdef, 3, FALSE) -> Choose Location | K31: 1 | M31: =N31/matcost*projcost -> 
A32: ='Copy Values'!A30 -> 0 | B32: ='Copy Values'!B30 -> 0 | C32: ='Copy Values'!D30 -> 0 | D32: 0 | I32: =VLOOKUP(K32, lighthrdef, 3, FALSE) -> Choose Location | K32: 1 | M32: =N32/matcost*projcost -> 
A33: ='Copy Values'!A31 -> 0 | B33: ='Copy Values'!B31 -> 0 | C33: ='Copy Values'!D31 -> 0 | D33: 0 | I33: =VLOOKUP(K33, lighthrdef, 3, FALSE) -> Choose Location | K33: 1 | M33: =N33/matcost*projcost -> 
A34: =SUM(A29:A33) -> 0 | B34: =SUM(B29:B33) -> 0 | C34: 0 | D34: 0
A35: ='Copy Values'!A33 -> kWh | B35: ='Copy Values'!B33 -> kW | C35: ='Copy Values'!D33 -> MMBtu | D35: Equivalent MMBtu | F35: Space Heating | G35: Existing Equipment Age | H35: AFUE Existing (%) | I35: AFUE Proposed (%) | J35: Input Capacity of Proposed Equipment (Btu/hr) | K35: Condensing Unit? (Y/N) | L35: Existing Quantity | M35: Proposed Quantity | N35: If furnace, efficient BLPM motor equipped? (Y/N) | O35: Beginning Operating Month | P35: Ending Operating Month | Q35: Total Installed Cost | R35: Materials Cost per Unit | S35: Manufacturer | T35: Model
A36: ='Copy Values'!A34 -> 0 | B36: ='Copy Values'!B34 -> 0 | C36: ='Copy Values'!D34 -> 0 | D36: =SUM(C36,(A36*3412.14/10^6)) -> 0 | Q36: =R36/matcost*projcost -> 
A37: ='Copy Values'!A35 -> 0 | B37: ='Copy Values'!B35 -> 0 | C37: ='Copy Values'!D35 -> 0 | D37: 0 | Q37: =R37/matcost*projcost -> 
A38: ='Copy Values'!A36 -> 0 | B38: ='Copy Values'!B36 -> 0 | C38: ='Copy Values'!D36 -> 0 | D38: 0 | Q38: =R38/matcost*projcost -> 
A39: =SUM(A36:A38) -> 0 | B39: =SUM(B36:B38) -> 0 | C39: 0 | D39: 0
A40: ='Copy Values'!A38 -> kWh | B40: ='Copy Values'!B38 -> kW | C40: ='Copy Values'!D38 -> MMBtu | D40: Equivalent MMBtu | F40: Air Conditioning | G40: Capacity (Btu/hr) | H40: Reverse Cycle (Y/N)? | I40: Quantity | J40: Existing EER | K40: Proposed EER | L40: Total Installed Cost | M40: Materials Cost per Unit | N40: Manufacturer | O40: Model
A41: ='Copy Values'!A39 -> 0 | B41: ='Copy Values'!B39 -> 0 | C41: ='Copy Values'!D39 -> 0 | D41: =SUM(C41,(A41*3412.14/10^6)) -> 0 | F41: Room Air Conditioner | L41: =M41/matcost*projcost -> 
A43: ='Copy Values'!A41 -> kWh | B43: ='Copy Values'!B41 -> kW | C43: ='Copy Values'!D41 -> MMBtu | D43: Equivalent MMBtu | G43: Type | H43: Heat Type | I43: Capacity (Btu/hr) | J43: Quantity | K43: Existing EER | L43: Proposed EER | M43: Existing SEER | N43: Proposed SEER | O43: Total Installed Cost | P43: Materials Cost per Unit | Q43: Manufacturer | R43: Model
A44: ='Copy Values'!A42 -> 0 | B44: ='Copy Values'!B42 -> 0 | C44: ='Copy Values'!D42 -> 0 | D44: =SUM(C44,(A44*3412.14/10^6)) -> 0 | F44: Central Unitary/Split System, PTAC | O44: =P44/matcost*projcost -> 
F46: Chiller
A47: ='Copy Values'!A45 -> kWh | B47: ='Copy Values'!B45 -> kW | C47: ='Copy Values'!D45 -> MMBtu | D47: Equivalent MMBtu | F47: Type | G47: Nominal Cooling Capacity (tons) | H47: Existing EER or kW/ton | I47: Proposed EER or kW/ton | J47: Existing IPLV | K47: Proposed IPLV | L47: Beginning Operating Month | M47: Ending Operating Month | N47: Annual Operating Hours | O47: Quantity | P47: Total Installed Cost | Q47: Materials Cost per Unit | R47: Manufacturer | S47: Model
A48: ='Copy Values'!A46 -> 0 | B48: ='Copy Values'!B46 -> 0 | C48: ='Copy Values'!D46 -> 0 | D48: =SUM(C48,(A48*3412.14/10^6)) -> 0 | P48: =Q48/matcost*projcost -> 
A49: ='Copy Values'!A47 -> 0 | B49: ='Copy Values'!B47 -> 0 | C49: ='Copy Values'!D47 -> 0 | D49: 0 | P49: =Q49/matcost*projcost -> 
A50: ='Copy Values'!A48 -> 0 | B50: ='Copy Values'!B48 -> 0 | C50: ='Copy Values'!D48 -> 0 | D50: 0 | P50: =Q50/matcost*projcost -> 
A51: =SUM(A48:A50) -> 0 | B51: =SUM(B48:B50) -> 0 | C51: 0 | D51: 0
F52: Heat Pump
A53: ='Copy Values'!A51 -> kWh | B53: ='Copy Values'!B51 -> kW | C53: ='Copy Values'!D51 -> MMBtu | D53: Equivalent MMBtu | F53: Type | G53: Heating Capacity (Btu/hr) | H53: Cooling Capacity (Btu/hr) | I53: Quantity | J53: Proposed EER | K53: Proposed COP | L53: Proposed SEER | M53: Total Installed Cost | N53: Materials Cost per Unit | O53: Manufacturer | P53: Model
A54: ='Copy Values'!A52 -> 0 | B54: ='Copy Values'!B52 -> 0 | C54: ='Copy Values'!D52 -> 0 | D54: =SUM(C54,(A54*3412.14/10^6)) -> 0 | M54: =N54/matcost*projcost -> 
A55: ='Copy Values'!A53 -> 0 | B55: ='Copy Values'!B53 -> 0 | C55: ='Copy Values'!D53 -> 0 | D55: 0 | M55: =N55/matcost*projcost -> 
A56: ='Copy Values'!A54 -> 0 | B56: ='Copy Values'!B54 -> 0 | C56: ='Copy Values'!D54 -> 0 | D56: 0 | M56: =N56/matcost*projcost -> 
A57: =SUM(A54:A56) -> 0 | B57: =SUM(B54:B56) -> 0 | C57: 0 | D57: 0
A58: ='Copy Values'!A56 -> kWh | B58: ='Copy Values'!B56 -> kW | C58: ='Copy Values'!D56 -> MMBtu | D58: Equivalent MMBtu | F58: Advanced Thermostat Type | G58: Heat Type | H58: Central Air Conditioning? (Y/N) | I58: Quantity | J58: Total Installed Cost | K58: Materials Cost | L58: Manufacturer | M58: Model
A59: ='Copy Values'!A57 -> 0 | B59: ='Copy Values'!B57 -> 0 | C59: ='Copy Values'!D57 -> 0 | D59: =SUM(C59,(A59*3412.14/10^6)) -> 0 | J59: =K59/matcost*projcost -> 
F61: Hot Water
F62: Water Heating
A63: ='Copy Values'!A61 -> kWh | B63: ='Copy Values'!B61 -> kW | C63: ='Copy Values'!D61 -> MMBtu | D63: Equivalent MMBtu | F63: Type | G63: Number of Households Served | H63: Existing Efficiency | I63: Proposed Efficiency | J63: Quantity | K63: Proposed Tank Capacity (Gallons) | L63: Proposed Input Capacity (Btu/hr) | M63: Total Installed Cost | N63: Materials Cost per Unit | O63: Manufacturer | P63: Model
A64: ='Copy Values'!A62 -> 0 | B64: ='Copy Values'!B62 -> 0 | C64: ='Copy Values'!D62 -> 0 | D64: =SUM(C64,(A64*3412.14/10^6)) -> 0 | M64: =N64/matcost*projcost -> 
A65: ='Copy Values'!A63 -> 0 | B65: ='Copy Values'!B63 -> 0 | C65: ='Copy Values'!D63 -> 0 | D65: 0 | M65: =N65/matcost*projcost -> 
A66: ='Copy Values'!A64 -> 0 | B66: ='Copy Values'!B64 -> 0 | C66: ='Copy Values'!D64 -> 0 | D66: 0 | M66: =N66/matcost*projcost -> 
A67: =SUM(A64:A66) -> 0 | B67: =SUM(B64:B66) -> 0 | C67: 0 | D67: 0
F68: Hot Water Efficiency
A69: ='Copy Values'!A67 -> kWh | B69: ='Copy Values'!B67 -> kW | C69: ='Copy Values'!D67 -> MMBtu | D69: Equivalent MMBtu | F69: Aerators, Showerheads & Restrictor Valves | G69: Location | H69: Hot Water Type | I69: Quantity | J69: Proposed Flow Rate (GPM) | K69: Total Installed Cost | L69: Materials Cost per Unit
A70: ='Copy Values'!A68 -> 0 | B70: ='Copy Values'!B68 -> 0 | C70: ='Copy Values'!D68 -> 0 | D70: =SUM(C70,(A70*3412.14/10^6)) -> 0 | K70: =L70/matcost*projcost -> 
A71: ='Copy Values'!A69 -> 0 | B71: ='Copy Values'!B69 -> 0 | C71: ='Copy Values'!D69 -> 0 | D71: 0 | K71: =L71/matcost*projcost -> 
A72: ='Copy Values'!A70 -> 0 | B72: ='Copy Values'!B70 -> 0 | C72: ='Copy Values'!D70 -> 0 | D72: 0 | K72: =L72/matcost*projcost -> 
A73: ='Copy Values'!A71 -> 0 | B73: ='Copy Values'!B71 -> 0 | C73: ='Copy Values'!D71 -> 0 | D73: 0 | K73: =L73/matcost*projcost -> 
A74: =SUM(A70:A73) -> 0 | B74: =SUM(B70:B73) -> 0 | C74: 0 | D74: 0
A75: ='Copy Values'!A73 -> kWh | B75: ='Copy Values'!B73 -> kW | C75: ='Copy Values'!D73 -> MMBtu | D75: Equivalent MMBtu | G75: Feet of pipe or No. tanks insulated | H75: Hot Water Type | I75: Insulation R-Value | J75: Pipe Diameter (if Pipe Wrap), in inches. | K75: Total Installed Cost | L75: Total Materials Cost
A76: ='Copy Values'!A74 -> 0 | B76: ='Copy Values'!B74 -> 0 | C76: ='Copy Values'!D74 -> 0 | D76: =SUM(C76,(A76*3412.14/10^6)) -> 0 | F76: Pipe Wrap | K76: =L76/matcost*projcost -> 
A77: ='Copy Values'!A75 -> 0 | B77: ='Copy Values'!B75 -> 0 | C77: ='Copy Values'!D75 -> 0 | D77: 0 | F77: Tank Insulation | K77: =L77/matcost*projcost -> 
A78: =SUM(A76:A77) -> 0 | B78: =SUM(B76:B77) -> 0 | C78: 0 | D78: 0
F79: Variable Frequency Drives
A80: ='Copy Values'!A78 -> kWh | B80: ='Copy Values'!B78 -> kW | C80: ='Copy Values'!D78 -> MMBtu | D80: Equivalent MMBtu | F80: Application | G80: Motor HP | H80: Quantity | I80: Annual Operating Hours | J80: Total Installed Cost | K80: Materials Cost per Unit
A81: ='Copy Values'!A79 -> 0 | B81: ='Copy Values'!B79 -> 0 | C81: ='Copy Values'!D79 -> 0 | D81: =SUM(C81,(A81*3412.14/10^6)) -> 0 | J81: =K81/matcost*projcost -> 
A82: ='Copy Values'!A80 -> 0 | B82: ='Copy Values'!B80 -> 0 | C82: ='Copy Values'!D80 -> 0 | D82: 0
A83: ='Copy Values'!A81 -> 0 | B83: ='Copy Values'!B81 -> 0 | C83: ='Copy Values'!D81 -> 0 | D83: 0
A84: ='Copy Values'!A82 -> 0 | B84: ='Copy Values'!B82 -> 0 | C84: ='Copy Values'!D82 -> 0 | D84: 0
A85: ='Copy Values'!A83 -> 0 | B85: ='Copy Values'!B83 -> 0 | C85: ='Copy Values'!D83 -> 0 | D85: 0
A86: ='Copy Values'!A84 -> 0 | B86: ='Copy Values'!B84 -> 0 | C86: ='Copy Values'!D84 -> 0 | D86: 0
A87: =SUM(A81:A86) -> 0 | B87: =SUM(B81:B86) -> 0 | C87: 0 | D87: 0
F95: Ventilation
F96: Exhaust-only, in-unit
A97: ='Copy Values'!A95 -> kWh | B97: ='Copy Values'!B95 -> kW | C97: ='Copy Values'!D95 -> MMBtu | D97: Equivalent MMBtu | F97: Type | G97: Annual Operating Hours | H97: CFM Rating | I97: Power Requirement (Watts) | J97: Quantity | K97: Total Installed Cost | L97: Materials Cost per Unit | M97: Manufacturer | N97: Model
A98: ='Copy Values'!A96 -> 0 | B98: ='Copy Values'!B96 -> 0 | C98: ='Copy Values'!D96 -> 0 | D98: =SUM(C98,(A98*3412.14/10^6)) -> 0 | K98: =L98/matcost*projcost -> 
A99: ='Copy Values'!A97 -> 0 | B99: ='Copy Values'!B97 -> 0 | C99: ='Copy Values'!D97 -> 0 | D99: 0 | K99: =L99/matcost*projcost -> 
A100: =SUM(A98:A99) -> 0 | B100: =SUM(B98:B99) -> 0 | C100: 0 | D100: 0
A101: TOTAL (KWh) | B101: KW (Elec) | C101: (MMBtu) | D101: (Equiv. MMBtu) | F101: Other/Custom Measure
A102: =SUM(A100,A94,A87,A78,A74,A67,A59,A57,A51,A44,A41,A39,A34,A27) -> 0 | B102: =SUM(B100,B94,B87,B78,B74,B67,B59,B57,B51,B44,B41,B39,B34,B27) -> 0 | C102: 0 | D102: =D100+D94+D87+D78+D74+D67+D59+D57+D51+D44+D41+D39+D34+D27 -> 0 | F102: Please fully describe the measure, including costs, savings estimates and relevant information used to derive savings estimates.
A104: YIELD ($/MWh) | C104: ($/MMBtu) | D104: ($/Mmbtu Equiv)
A105: =K3/(A102/1000) ->  | C105: =K3/(C102/1000) ->  | D105: =K3/(D102) -> 
A106: Electric only | C106: Gas only | D106: Mixed measures

Sheet MeasureCode (hidden)
A1: Air Conditioning Efficiency | B1: Water chilling system | F1: 99 | H1: Jan | J1: 1 | K1: Select | L1: Choose Location
A2: Air Conditioning Efficiency | B2: AC, Cool Choice tier 2 0-65 KBTU/hr | F2: 98 | H2: Feb | J2: 2 | K2: In Unit | L2: 1150
A3: Air Conditioning Efficiency | B3: Heat pump, air, Cool Choice tier 2 0-65 KBTU/hr | E3: Energy Star/CEE Tier 1 | F3: 97 | H3: Mar | J3: 3 | K3: Common Area - Indoor Hall/Stairway/Corridor | L3: 8760
A4: Air Conditioning Efficiency | B4: Heat pump, air source | E4: CEE Tier 2 | F4: 96 | H4: Apr | J4: 4 | K4: Common Area - Laundry/Other | L4: 5950
A5: Air Conditioning Efficiency | B5: Unitary air conditioning system | E5: CEE Tier 3 | F5: 95 | H5: May | J5: 5 | K5: Outdoor | L5: 4380
A6: Air Conditioning Efficiency | B6: Ductless Mini Split | F6: 94 | H6: Jun | J6: 6 | K6: Other | L6: Specify
A7: Air Conditioning Efficiency | B7: Package terminal heat hump | F7: 93 | H7: Jul
A8: Air Conditioning Efficiency | B8: Energy Star CEE Tier 1 AC, incremental | F8: 92 | H8: Aug
A9: Cooking and Laundry | B9: Energy Star dishwasher | F9: 91 | H9: Sep
A10: Hot Water Efficiency | B10: Low flow showerhead | F10: 90 | H10: Oct
A11: Hot Water Efficiency | B11: Faucet aerator/flow restrictor | F11: 89 | H11: Nov
A12: Hot Water Efficiency | B12: Shower Restriction Valve | E12: Gas Storage | F12: 88 | H12: Dec
A13: Hot Water Efficiency | B13: Insulate hot water pipes | E13: Condensing gas storage | F13: 87
A14: Hot Water Efficiency | B14: Insulate hot water tank | E14: Tankless | F14: 86
A15: Hot Water Replacement | B15: Replace hot water, stand alone natural gas | E15: Heat Pump | F15: 85
A16: Hot Water Replacement | B16: Replace hot water, indirect fired natural gas | F16: 84
A17: Lighting Efficiency/Controls | B17: Occupancy sensor | F17: 83
A18: Lighting Efficiency/Controls | B18: Photocell switch | F18: 82
A19: Lighting Efficiency/Controls | B19: Timer control | E19: Heating Only | F19: 81
A20: Lighting Efficiency/Controls | B20: Dimming control and ballast | E20: Cooling Only | F20: 80
A21: Light Bulb/Lamp | B21: LED Screw Base Lamp | E21: Heating & Cooling | F21: 79
A22: Light Bulb/Lamp | B22: LED 4' Linear Replacement Lamp | E22: No Conditioning | F22: 78
A23: Light Bulb/Lamp | B23: LED 2' Linear Replacement Lamp | F23: 77
A24: Lighting Hardwired Fixture | B24: LED Wall-Mount Area Fixture (WallPack) | F24: 76
A25: Lighting Hardwired Fixture | B25: LED Parking Garage/Canopy Fixture | E25: Kitchen | F25: 75
A26: Lighting Hardwired Fixture | B26: Exit signs, LED | E26: Bathroom | F26: 74
A27: Lighting Hardwired Fixture | B27: LED Surface of Pendant Downlight | F27: 73
A28: Lighting Hardwired Fixture | B28: LED Recessed Lighting Fixture 2X4 | E28: Electric | F28: 72
A29: Lighting Hardwired Fixture | B29: LED Recessed Lighting Fixture 1X4 | E29: Gas | F29: 71
A30: Lighting Hardwired Fixture | B30: LED Wall Wash Fixture | F30: 70
A31: Lighting Hardwired Fixture | B31: LED Recessed Surface or Pendant Downlight
A32: Lighting Hardwired Fixture | B32: LED Recessed Lighting Fixture 2X2 | E32: Air Source
A33: Lighting Hardwired Fixture | B33: LED Outdoor Pole/Arm Area or Roadway Fixture | E33: Water Source
A34: Lighting Hardwired Fixture | B34: LED Flood Light Fixture | E34: Ductless Mini Split
A35: Lighting Hardwired Fixture | B35: LED Outdoor Decorative Pole/Arm Area or Roadway Fuxture | E35: Packaged Terminal
A36: Lighting Hardwired Fixture | B36: Miscillaneous LEDs
A37: Lighting Hardwired Fixture | B37: LED High- and Low-Bay Fixtures
A38: Lighting Hardwired Fixture | B38: LED Surface and Suspended Linear Fixture
A39: Light Bulb/Lamp | B39: Compact fluorescent screw-base bulb | E39: Supply Fan
A40: Light Bulb/Lamp | B40: Specialty Compact Fluorescent Bulb | E40: Return Fan
A41: Lighting Hardwired Fixture | B41: Relamp/Reballast to High Performance T8 | E41: Cooling Water Pump
A42: Lighting Hardwired Fixture | B42: Relamp/reballast conversion existing fixture to standard T8 | E42: Hot Water Pump
A43: Lighting Hardwired Fixture | B43: Linear fluorescent High Performance T8, Troffer/Wrap fixture | E43: WSHP Circulation Pump
A44: Lighting Hardwired Fixture | B44: Linear fluorescent T8
A45: Lighting Hardwired Fixture | B45: Compact fluorescent interior fixture
A46: Lighting Hardwired Fixture | B46: Linear fluorescent High Performance T8 | E46: Energy Star
A47: Motor Controls | B47: Variable frequency drive motor control | E47: Energy Star Most Efficient
A48: Refrigeration | B48: CEE Tier 2 refrigerator, incremental cost
A49: Refrigeration | B49: Energy star refrigerator
A50: Refrigeration | B50: Energy star refrigerator, early replacement | E50: Split
A51: Space Heat Efficiency | B51: Furnace fan motor | E51: Packaged
A52: Space Heat Replacement | B52: Replace furnace, natural gas
A53: Space Heat Replacement | B53: Replace boiler, natural gas
A54: Thermal Shell | B54: Attic/ceiling/wall insulation | E54: None
A55: Thermal Shell | B55: Window improvements | E55: Electric
A56: Ventilation | B56: Exhaust fan, ceiling | E56: Gas
A57: Lighting Efficiency/Controls | B57: Lighting system, interior power density reduction
E58: Gas
E59: Electric
E61: Yes
E62: No
E64: Air cooled
E65: Air cooled w/out condenser, elec. operated
E66: Water cooled, elec. operated, reciprocating
E67: Water cooled, elec. operated, positive displacement
E68: Water cooled, elec. operated, centrifugal
E71: Advanced/Smart
E72: Programmable
E75: Top Freezer
E76: Bottom Freezer
E77: Side by Side

Sheet Paste Values (hidden)
A1: =VALUE('IQEF Intake Form'!F3) ->  | B1: =VALUE('IQEF Intake Form'!G3) -> 0 | C1: =VALUE('IQEF Intake Form'!H3) -> 0 | D1: =VALUE('IQEF Intake Form'!I3) ->  | E1: =VALUE('IQEF Intake Form'!J3) -> 0 | F1: =VALUE('IQEF Intake Form'!K3) -> 0 | G1: =VALUE('IQEF Intake Form'!L3) -> 0 | H1: =VALUE('IQEF Intake Form'!M3) -> 0 | I1: =VALUE('IQEF Intake Form'!N3) -> 0 | J1: =VALUE('IQEF Intake Form'!O3) -> 0 | K1: =VALUE('IQEF Intake Form'!P3) -> 0 | L1: =VALUE('IQEF Intake Form'!Q3) -> 0 | M1: =VALUE('IQEF Intake Form'!R3) -> 0 | N1: =VALUE('IQEF Intake Form'!S3) -> 0 | O1: =VALUE('IQEF Intake Form'!T3) -> 0 | P1: =VALUE('IQEF Intake Form'!U3) -> 0 | Q1: =VALUE('IQEF Intake Form'!V3) -> 0 | R1: =VALUE('IQEF Intake Form'!W3) -> 0
A2: =VALUE('IQEF Intake Form'!F4) ->  | B2: =VALUE('IQEF Intake Form'!G4) -> 0 | C2: =VALUE('IQEF Intake Form'!H4) -> 0 | D2: =VALUE('IQEF Intake Form'!I4) -> 0 | E2: =VALUE('IQEF Intake Form'!J4) -> 0 | F2: =VALUE('IQEF Intake Form'!K4) -> 0 | G2: =VALUE('IQEF Intake Form'!L4) -> 0 | H2: =VALUE('IQEF Intake Form'!M4) -> 0 | I2: =VALUE('IQEF Intake Form'!N4) -> 0 | J2: =VALUE('IQEF Intake Form'!O4) -> 0 | K2: =VALUE('IQEF Intake Form'!P4) -> 0 | L2: =VALUE('IQEF Intake Form'!Q4) -> 0 | M2: =VALUE('IQEF Intake Form'!R4) -> 0 | N2: =VALUE('IQEF Intake Form'!S4) -> 0 | O2: =VALUE('IQEF Intake Form'!T4) -> 0 | P2: =VALUE('IQEF Intake Form'!U4) -> 0 | Q2: =VALUE('IQEF Intake Form'!V4) -> 0 | R2: =VALUE('IQEF Intake Form'!W4) -> 0
A3: =VALUE('IQEF Intake Form'!F5) ->  | B3: =VALUE('IQEF Intake Form'!G5) -> 0 | C3: =VALUE('IQEF Intake Form'!H5) ->  | D3: =VALUE('IQEF Intake Form'!I5) ->  | E3: =VALUE('IQEF Intake Form'!J5) ->  | F3: =VALUE('IQEF Intake Form'!K5) ->  | G3: =VALUE('IQEF Intake Form'!L5) ->  | H3: =VALUE('IQEF Intake Form'!M5) ->  | I3: =VALUE('IQEF Intake Form'!N5) ->  | J3: =VALUE('IQEF Intake Form'!O5) ->  | K3: =VALUE('IQEF Intake Form'!P5) ->  | L3: =VALUE('IQEF Intake Form'!Q5) ->  | M3: =VALUE('IQEF Intake Form'!R5) ->  | N3: =VALUE('IQEF Intake Form'!S5) ->  | O3: =VALUE('IQEF Intake Form'!T5) ->  | P3: =VALUE('IQEF Intake Form'!U5) -> 0 | Q3: =VALUE('IQEF Intake Form'!V5) -> 0 | R3: =VALUE('IQEF Intake Form'!W5) -> 0
A4: =VALUE('IQEF Intake Form'!F6) ->  | B4: =VALUE('IQEF Intake Form'!G6) -> 0 | C4: =VALUE('IQEF Intake Form'!H6) -> 0 | D4: =VALUE('IQEF Intake Form'!I6) -> 0 | E4: =VALUE('IQEF Intake Form'!J6) -> 0 | F4: =VALUE('IQEF Intake Form'!K6) -> 1 | G4: =VALUE('IQEF Intake Form'!L6) -> 0 | H4: =VALUE('IQEF Intake Form'!M6) -> 0 | I4: =VALUE('IQEF Intake Form'!N6) -> 0 | J4: =VALUE('IQEF Intake Form'!O6) -> 0 | K4: =VALUE('IQEF Intake Form'!P6) -> 0 | L4: =VALUE('IQEF Intake Form'!Q6) -> 0 | M4: =VALUE('IQEF Intake Form'!R6) -> 0 | N4: =VALUE('IQEF Intake Form'!S6) -> 0 | O4: =VALUE('IQEF Intake Form'!T6) -> 0 | P4: =VALUE('IQEF Intake Form'!U6) -> 0 | Q4: =VALUE('IQEF Intake Form'!V6) -> 0 | R4: =VALUE('IQEF Intake Form'!W6) -> 0
A5: =VALUE('IQEF Intake Form'!F7) -> 0 | B5: =VALUE('IQEF Intake Form'!G7) -> 0 | C5: =VALUE('IQEF Intake Form'!H7) ->  | D5: =VALUE('IQEF Intake Form'!I7) -> 0 | E5: =VALUE('IQEF Intake Form'!J7) -> 0 | F5: =VALUE('IQEF Intake Form'!K7) -> 1 | G5: =VALUE('IQEF Intake Form'!L7) -> 0 | H5: =VALUE('IQEF Intake Form'!M7) -> 0 | I5: =VALUE('IQEF Intake Form'!N7) -> 0 | J5: =VALUE('IQEF Intake Form'!O7) -> 0 | K5: =VALUE('IQEF Intake Form'!P7) ->  | L5: =VALUE('IQEF Intake Form'!Q7) -> 0 | M5: =VALUE('IQEF Intake Form'!R7) -> 0 | N5: =VALUE('IQEF Intake Form'!S7) -> 0 | O5: =VALUE('IQEF Intake Form'!T7) -> 0 | P5: =VALUE('IQEF Intake Form'!U7) -> 0 | Q5: =VALUE('IQEF Intake Form'!V7) -> 0 | R5: =VALUE('IQEF Intake Form'!W7) -> 0
A6: =VALUE('IQEF Intake Form'!F8) -> 0 | B6: =VALUE('IQEF Intake Form'!G8) -> 0 | C6: =VALUE('IQEF Intake Form'!H8) ->  | D6: =VALUE('IQEF Intake Form'!I8) -> 0 | E6: =VALUE('IQEF Intake Form'!J8) -> 0 | F6: =VALUE('IQEF Intake Form'!K8) -> 1 | G6: =VALUE('IQEF Intake Form'!L8) -> 0 | H6: =VALUE('IQEF Intake Form'!M8) -> 0 | I6: =VALUE('IQEF Intake Form'!N8) -> 0 | J6: =VALUE('IQEF Intake Form'!O8) -> 0 | K6: =VALUE('IQEF Intake Form'!P8) ->  | L6: =VALUE('IQEF Intake Form'!Q8) -> 0 | M6: =VALUE('IQEF Intake Form'!R8) -> 0 | N6: =VALUE('IQEF Intake Form'!S8) -> 0 | O6: =VALUE('IQEF Intake Form'!T8) -> 0 | P6: =VALUE('IQEF Intake Form'!U8) -> 0 | Q6: =VALUE('IQEF Intake Form'!V8) -> 0 | R6: =VALUE('IQEF Intake Form'!W8) -> 0
A7: =VALUE('IQEF Intake Form'!F9) -> 0 | B7: =VALUE('IQEF Intake Form'!G9) -> 0 | C7: =VALUE('IQEF Intake Form'!H9) ->  | D7: =VALUE('IQEF Intake Form'!I9) -> 0 | E7: =VALUE('IQEF Intake Form'!J9) -> 0 | F7: =VALUE('IQEF Intake Form'!K9) -> 1 | G7: =VALUE('IQEF Intake Form'!L9) -> 0 | H7: =VALUE('IQEF Intake Form'!M9) -> 0 | I7: =VALUE('IQEF Intake Form'!N9) -> 0 | J7: =VALUE('IQEF Intake Form'!O9) -> 0 | K7: =VALUE('IQEF Intake Form'!P9) ->  | L7: =VALUE('IQEF Intake Form'!Q9) -> 0 | M7: =VALUE('IQEF Intake Form'!R9) -> 0 | N7: =VALUE('IQEF Intake Form'!S9) -> 0 | O7: =VALUE('IQEF Intake Form'!T9) -> 0 | P7: =VALUE('IQEF Intake Form'!U9) -> 0 | Q7: =VALUE('IQEF Intake Form'!V9) -> 0 | R7: =VALUE('IQEF Intake Form'!W9) -> 0
A8: =VALUE('IQEF Intake Form'!F10) -> 0 | B8: =VALUE('IQEF Intake Form'!G10) -> 0 | C8: =VALUE('IQEF Intake Form'!H10) ->  | D8: =VALUE('IQEF Intake Form'!I10) -> 0 | E8: =VALUE('IQEF Intake Form'!J10) -> 0 | F8: =VALUE('IQEF Intake Form'!K10) -> 1 | G8: =VALUE('IQEF Intake Form'!L10) -> 0 | H8: =VALUE('IQEF Intake Form'!M10) -> 0 | I8: =VALUE('IQEF Intake Form'!N10) -> 0 | J8: =VALUE('IQEF Intake Form'!O10) -> 0 | K8: =VALUE('IQEF Intake Form'!P10) ->  | L8: =VALUE('IQEF Intake Form'!Q10) -> 0 | M8: =VALUE('IQEF Intake Form'!R10) -> 0 | N8: =VALUE('IQEF Intake Form'!S10) -> 0 | O8: =VALUE('IQEF Intake Form'!T10) -> 0 | P8: =VALUE('IQEF Intake Form'!U10) -> 0 | Q8: =VALUE('IQEF Intake Form'!V10) -> 0 | R8: =VALUE('IQEF Intake Form'!W10) -> 0
A9: =VALUE('IQEF Intake Form'!F11) -> 0 | B9: =VALUE('IQEF Intake Form'!G11) -> 0 | C9: =VALUE('IQEF Intake Form'!H11) ->  | D9: =VALUE('IQEF Intake Form'!I11) -> 0 | E9: =VALUE('IQEF Intake Form'!J11) -> 0 | F9: =VALUE('IQEF Intake Form'!K11) -> 1 | G9: =VALUE('IQEF Intake Form'!L11) -> 0 | H9: =VALUE('IQEF Intake Form'!M11) -> 0 | I9: =VALUE('IQEF Intake Form'!N11) -> 0 | J9: =VALUE('IQEF Intake Form'!O11) -> 0 | K9: =VALUE('IQEF Intake Form'!P11) ->  | L9: =VALUE('IQEF Intake Form'!Q11) -> 0 | M9: =VALUE('IQEF Intake Form'!R11) -> 0 | N9: =VALUE('IQEF Intake Form'!S11) -> 0 | O9: =VALUE('IQEF Intake Form'!T11) -> 0 | P9: =VALUE('IQEF Intake Form'!U11) -> 0 | Q9: =VALUE('IQEF Intake Form'!V11) -> 0 | R9: =VALUE('IQEF Intake Form'!W11) -> 0
A10: =VALUE('IQEF Intake Form'!F12) -> 0 | B10: =VALUE('IQEF Intake Form'!G12) -> 0 | C10: =VALUE('IQEF Intake Form'!H12) ->  | D10: =VALUE('IQEF Intake Form'!I12) -> 0 | E10: =VALUE('IQEF Intake Form'!J12) -> 0 | F10: =VALUE('IQEF Intake Form'!K12) -> 1 | G10: =VALUE('IQEF Intake Form'!L12) -> 0 | H10: =VALUE('IQEF Intake Form'!M12) -> 0 | I10: =VALUE('IQEF Intake Form'!N12) -> 0 | J10: =VALUE('IQEF Intake Form'!O12) -> 0 | K10: =VALUE('IQEF Intake Form'!P12) ->  | L10: =VALUE('IQEF Intake Form'!Q12) -> 0 | M10: =VALUE('IQEF Intake Form'!R12) -> 0 | N10: =VALUE('IQEF Intake Form'!S12) -> 0 | O10: =VALUE('IQEF Intake Form'!T12) -> 0 | P10: =VALUE('IQEF Intake Form'!U12) -> 0 | Q10: =VALUE('IQEF Intake Form'!V12) -> 0 | R10: =VALUE('IQEF Intake Form'!W12) -> 0
A11: =VALUE('IQEF Intake Form'!F13) -> 0 | B11: =VALUE('IQEF Intake Form'!G13) -> 0 | C11: =VALUE('IQEF Intake Form'!H13) ->  | D11: =VALUE('IQEF Intake Form'!I13) -> 0 | E11: =VALUE('IQEF Intake Form'!J13) -> 0 | F11: =VALUE('IQEF Intake Form'!K13) -> 1 | G11: =VALUE('IQEF Intake Form'!L13) -> 0 | H11: =VALUE('IQEF Intake Form'!M13) -> 0 | I11: =VALUE('IQEF Intake Form'!N13) -> 0 | J11: =VALUE('IQEF Intake Form'!O13) -> 0 | K11: =VALUE('IQEF Intake Form'!P13) ->  | L11: =VALUE('IQEF Intake Form'!Q13) -> 0 | M11: =VALUE('IQEF Intake Form'!R13) -> 0 | N11: =VALUE('IQEF Intake Form'!S13) -> 0 | O11: =VALUE('IQEF Intake Form'!T13) -> 0 | P11: =VALUE('IQEF Intake Form'!U13) -> 0 | Q11: =VALUE('IQEF Intake Form'!V13) -> 0 | R11: =VALUE('IQEF Intake Form'!W13) -> 0
A12: =VALUE('IQEF Intake Form'!F14) -> 0 | B12: =VALUE('IQEF Intake Form'!G14) -> 0 | C12: =VALUE('IQEF Intake Form'!H14) ->  | D12: =VALUE('IQEF Intake Form'!I14) -> 0 | E12: =VALUE('IQEF Intake Form'!J14) -> 0 | F12: =VALUE('IQEF Intake Form'!K14) -> 1 | G12: =VALUE('IQEF Intake Form'!L14) -> 0 | H12: =VALUE('IQEF Intake Form'!M14) -> 0 | I12: =VALUE('IQEF Intake Form'!N14) -> 0 | J12: =VALUE('IQEF Intake Form'!O14) -> 0 | K12: =VALUE('IQEF Intake Form'!P14) ->  | L12: =VALUE('IQEF Intake Form'!Q14) -> 0 | M12: =VALUE('IQEF Intake Form'!R14) -> 0 | N12: =VALUE('IQEF Intake Form'!S14) -> 0 | O12: =VALUE('IQEF Intake Form'!T14) -> 0 | P12: =VALUE('IQEF Intake Form'!U14) -> 0 | Q12: =VALUE('IQEF Intake Form'!V14) -> 0 | R12: =VALUE('IQEF Intake Form'!W14) -> 0
A13: =VALUE('IQEF Intake Form'!F15) -> 0 | B13: =VALUE('IQEF Intake Form'!G15) -> 0 | C13: =VALUE('IQEF Intake Form'!H15) ->  | D13: =VALUE('IQEF Intake Form'!I15) -> 0 | E13: =VALUE('IQEF Intake Form'!J15) -> 0 | F13: =VALUE('IQEF Intake Form'!K15) -> 1 | G13: =VALUE('IQEF Intake Form'!L15) -> 0 | H13: =VALUE('IQEF Intake Form'!M15) -> 0 | I13: =VALUE('IQEF Intake Form'!N15) -> 0 | J13: =VALUE('IQEF Intake Form'!O15) -> 0 | K13: =VALUE('IQEF Intake Form'!P15) ->  | L13: =VALUE('IQEF Intake Form'!Q15) -> 0 | M13: =VALUE('IQEF Intake Form'!R15) -> 0 | N13: =VALUE('IQEF Intake Form'!S15) -> 0 | O13: =VALUE('IQEF Intake Form'!T15) -> 0 | P13: =VALUE('IQEF Intake Form'!U15) -> 0 | Q13: =VALUE('IQEF Intake Form'!V15) -> 0 | R13: =VALUE('IQEF Intake Form'!W15) -> 0
A14: =VALUE('IQEF Intake Form'!F16) -> 0 | B14: =VALUE('IQEF Intake Form'!G16) -> 0 | C14: =VALUE('IQEF Intake Form'!H16) ->  | D14: =VALUE('IQEF Intake Form'!I16) -> 0 | E14: =VALUE('IQEF Intake Form'!J16) -> 0 | F14: =VALUE('IQEF Intake Form'!K16) -> 1 | G14: =VALUE('IQEF Intake Form'!L16) -> 0 | H14: =VALUE('IQEF Intake Form'!M16) -> 0 | I14: =VALUE('IQEF Intake Form'!N16) -> 0 | J14: =VALUE('IQEF Intake Form'!O16) -> 0 | K14: =VALUE('IQEF Intake Form'!P16) ->  | L14: =VALUE('IQEF Intake Form'!Q16) -> 0 | M14: =VALUE('IQEF Intake Form'!R16) -> 0 | N14: =VALUE('IQEF Intake Form'!S16) -> 0 | O14: =VALUE('IQEF Intake Form'!T16) -> 0 | P14: =VALUE('IQEF Intake Form'!U16) -> 0 | Q14: =VALUE('IQEF Intake Form'!V16) -> 0 | R14: =VALUE('IQEF Intake Form'!W16) -> 0
A15: =VALUE('IQEF Intake Form'!F17) -> 0 | B15: =VALUE('IQEF Intake Form'!G17) -> 0 | C15: =VALUE('IQEF Intake Form'!H17) ->  | D15: =VALUE('IQEF Intake Form'!I17) -> 0 | E15: =VALUE('IQEF Intake Form'!J17) -> 0 | F15: =VALUE('IQEF Intake Form'!K17) -> 1 | G15: =VALUE('IQEF Intake Form'!L17) -> 0 | H15: =VALUE('IQEF Intake Form'!M17) -> 0 | I15: =VALUE('IQEF Intake Form'!N17) -> 0 | J15: =VALUE('IQEF Intake Form'!O17) -> 0 | K15: =VALUE('IQEF Intake Form'!P17) ->  | L15: =VALUE('IQEF Intake Form'!Q17) -> 0 | M15: =VALUE('IQEF Intake Form'!R17) -> 0 | N15: =VALUE('IQEF Intake Form'!S17) -> 0 | O15: =VALUE('IQEF Intake Form'!T17) -> 0 | P15: =VALUE('IQEF Intake Form'!U17) -> 0 | Q15: =VALUE('IQEF Intake Form'!V17) -> 0 | R15: =VALUE('IQEF Intake Form'!W17) -> 0
A16: =VALUE('IQEF Intake Form'!F18) -> 0 | B16: =VALUE('IQEF Intake Form'!G18) -> 0 | C16: =VALUE('IQEF Intake Form'!H18) ->  | D16: =VALUE('IQEF Intake Form'!I18) -> 0 | E16: =VALUE('IQEF Intake Form'!J18) -> 0 | F16: =VALUE('IQEF Intake Form'!K18) -> 1 | G16: =VALUE('IQEF Intake Form'!L18) -> 0 | H16: =VALUE('IQEF Intake Form'!M18) -> 0 | I16: =VALUE('IQEF Intake Form'!N18) -> 0 | J16: =VALUE('IQEF Intake Form'!O18) -> 0 | K16: =VALUE('IQEF Intake Form'!P18) ->  | L16: =VALUE('IQEF Intake Form'!Q18) -> 0 | M16: =VALUE('IQEF Intake Form'!R18) -> 0 | N16: =VALUE('IQEF Intake Form'!S18) -> 0 | O16: =VALUE('IQEF Intake Form'!T18) -> 0 | P16: =VALUE('IQEF Intake Form'!U18) -> 0 | Q16: =VALUE('IQEF Intake Form'!V18) -> 0 | R16: =VALUE('IQEF Intake Form'!W18) -> 0
A17: =VALUE('IQEF Intake Form'!F19) -> 0 | B17: =VALUE('IQEF Intake Form'!G19) -> 0 | C17: =VALUE('IQEF Intake Form'!H19) ->  | D17: =VALUE('IQEF Intake Form'!I19) -> 0 | E17: =VALUE('IQEF Intake Form'!J19) -> 0 | F17: =VALUE('IQEF Intake Form'!K19) -> 1 | G17: =VALUE('IQEF Intake Form'!L19) -> 0 | H17: =VALUE('IQEF Intake Form'!M19) -> 0 | I17: =VALUE('IQEF Intake Form'!N19) -> 0 | J17: =VALUE('IQEF Intake Form'!O19) -> 0 | K17: =VALUE('IQEF Intake Form'!P19) ->  | L17: =VALUE('IQEF Intake Form'!Q19) -> 0 | M17: =VALUE('IQEF Intake Form'!R19) -> 0 | N17: =VALUE('IQEF Intake Form'!S19) -> 0 | O17: =VALUE('IQEF Intake Form'!T19) -> 0 | P17: =VALUE('IQEF Intake Form'!U19) -> 0 | Q17: =VALUE('IQEF Intake Form'!V19) -> 0 | R17: =VALUE('IQEF Intake Form'!W19) -> 0
A18: =VALUE('IQEF Intake Form'!F20) -> 0 | B18: =VALUE('IQEF Intake Form'!G20) -> 0 | C18: =VALUE('IQEF Intake Form'!H20) ->  | D18: =VALUE('IQEF Intake Form'!I20) -> 0 | E18: =VALUE('IQEF Intake Form'!J20) -> 0 | F18: =VALUE('IQEF Intake Form'!K20) -> 1 | G18: =VALUE('IQEF Intake Form'!L20) -> 0 | H18: =VALUE('IQEF Intake Form'!M20) -> 0 | I18: =VALUE('IQEF Intake Form'!N20) -> 0 | J18: =VALUE('IQEF Intake Form'!O20) -> 0 | K18: =VALUE('IQEF Intake Form'!P20) ->  | L18: =VALUE('IQEF Intake Form'!Q20) -> 0 | M18: =VALUE('IQEF Intake Form'!R20) -> 0 | N18: =VALUE('IQEF Intake Form'!S20) -> 0 | O18: =VALUE('IQEF Intake Form'!T20) -> 0 | P18: =VALUE('IQEF Intake Form'!U20) -> 0 | Q18: =VALUE('IQEF Intake Form'!V20) -> 0 | R18: =VALUE('IQEF Intake Form'!W20) -> 0
A19: =VALUE('IQEF Intake Form'!F21) -> 0 | B19: =VALUE('IQEF Intake Form'!G21) -> 0 | C19: =VALUE('IQEF Intake Form'!H21) ->  | D19: =VALUE('IQEF Intake Form'!I21) -> 0 | E19: =VALUE('IQEF Intake Form'!J21) -> 0 | F19: =VALUE('IQEF Intake Form'!K21) -> 1 | G19: =VALUE('IQEF Intake Form'!L21) -> 0 | H19: =VALUE('IQEF Intake Form'!M21) -> 0 | I19: =VALUE('IQEF Intake Form'!N21) -> 0 | J19: =VALUE('IQEF Intake Form'!O21) -> 0 | K19: =VALUE('IQEF Intake Form'!P21) ->  | L19: =VALUE('IQEF Intake Form'!Q21) -> 0 | M19: =VALUE('IQEF Intake Form'!R21) -> 0 | N19: =VALUE('IQEF Intake Form'!S21) -> 0 | O19: =VALUE('IQEF Intake Form'!T21) -> 0 | P19: =VALUE('IQEF Intake Form'!U21) -> 0 | Q19: =VALUE('IQEF Intake Form'!V21) -> 0 | R19: =VALUE('IQEF Intake Form'!W21) -> 0
A20: =VALUE('IQEF Intake Form'!F22) -> 0 | B20: =VALUE('IQEF Intake Form'!G22) -> 0 | C20: =VALUE('IQEF Intake Form'!H22) ->  | D20: =VALUE('IQEF Intake Form'!I22) -> 0 | E20: =VALUE('IQEF Intake Form'!J22) -> 0 | F20: =VALUE('IQEF Intake Form'!K22) -> 1 | G20: =VALUE('IQEF Intake Form'!L22) -> 0 | H20: =VALUE('IQEF Intake Form'!M22) -> 0 | I20: =VALUE('IQEF Intake Form'!N22) -> 0 | J20: =VALUE('IQEF Intake Form'!O22) -> 0 | K20: =VALUE('IQEF Intake Form'!P22) ->  | L20: =VALUE('IQEF Intake Form'!Q22) -> 0 | M20: =VALUE('IQEF Intake Form'!R22) -> 0 | N20: =VALUE('IQEF Intake Form'!S22) -> 0 | O20: =VALUE('IQEF Intake Form'!T22) -> 0 | P20: =VALUE('IQEF Intake Form'!U22) -> 0 | Q20: =VALUE('IQEF Intake Form'!V22) -> 0 | R20: =VALUE('IQEF Intake Form'!W22) -> 0
A21: =VALUE('IQEF Intake Form'!F23) -> 0 | B21: =VALUE('IQEF Intake Form'!G23) -> 0 | C21: =VALUE('IQEF Intake Form'!H23) ->  | D21: =VALUE('IQEF Intake Form'!I23) -> 0 | E21: =VALUE('IQEF Intake Form'!J23) -> 0 | F21: =VALUE('IQEF Intake Form'!K23) -> 1 | G21: =VALUE('IQEF Intake Form'!L23) -> 0 | H21: =VALUE('IQEF Intake Form'!M23) -> 0 | I21: =VALUE('IQEF Intake Form'!N23) -> 0 | J21: =VALUE('IQEF Intake Form'!O23) -> 0 | K21: =VALUE('IQEF Intake Form'!P23) ->  | L21: =VALUE('IQEF Intake Form'!Q23) -> 0 | M21: =VALUE('IQEF Intake Form'!R23) -> 0 | N21: =VALUE('IQEF Intake Form'!S23) -> 0 | O21: =VALUE('IQEF Intake Form'!T23) -> 0 | P21: =VALUE('IQEF Intake Form'!U23) -> 0 | Q21: =VALUE('IQEF Intake Form'!V23) -> 0 | R21: =VALUE('IQEF Intake Form'!W23) -> 0
A22: =VALUE('IQEF Intake Form'!F24) -> 0 | B22: =VALUE('IQEF Intake Form'!G24) -> 0 | C22: =VALUE('IQEF Intake Form'!H24) ->  | D22: =VALUE('IQEF Intake Form'!I24) -> 0 | E22: =VALUE('IQEF Intake Form'!J24) -> 0 | F22: =VALUE('IQEF Intake Form'!K24) -> 1 | G22: =VALUE('IQEF Intake Form'!L24) -> 0 | H22: =VALUE('IQEF Intake Form'!M24) -> 0 | I22: =VALUE('IQEF Intake Form'!N24) -> 0 | J22: =VALUE('IQEF Intake Form'!O24) -> 0 | K22: =VALUE('IQEF Intake Form'!P24) ->  | L22: =VALUE('IQEF Intake Form'!Q24) -> 0 | M22: =VALUE('IQEF Intake Form'!R24) -> 0 | N22: =VALUE('IQEF Intake Form'!S24) -> 0 | O22: =VALUE('IQEF Intake Form'!T24) -> 0 | P22: =VALUE('IQEF Intake Form'!U24) -> 0 | Q22: =VALUE('IQEF Intake Form'!V24) -> 0 | R22: =VALUE('IQEF Intake Form'!W24) -> 0
A23: =VALUE('IQEF Intake Form'!F25) -> 0 | B23: =VALUE('IQEF Intake Form'!G25) -> 0 | C23: =VALUE('IQEF Intake Form'!H25) ->  | D23: =VALUE('IQEF Intake Form'!I25) -> 0 | E23: =VALUE('IQEF Intake Form'!J25) -> 0 | F23: =VALUE('IQEF Intake Form'!K25) -> 1 | G23: =VALUE('IQEF Intake Form'!L25) -> 0 | H23: =VALUE('IQEF Intake Form'!M25) -> 0 | I23: =VALUE('IQEF Intake Form'!N25) -> 0 | J23: =VALUE('IQEF Intake Form'!O25) -> 0 | K23: =VALUE('IQEF Intake Form'!P25) ->  | L23: =VALUE('IQEF Intake Form'!Q25) -> 0 | M23: =VALUE('IQEF Intake Form'!R25) -> 0 | N23: =VALUE('IQEF Intake Form'!S25) -> 0 | O23: =VALUE('IQEF Intake Form'!T25) -> 0 | P23: =VALUE('IQEF Intake Form'!U25) -> 0 | Q23: =VALUE('IQEF Intake Form'!V25) -> 0 | R23: =VALUE('IQEF Intake Form'!W25) -> 0
A24: =VALUE('IQEF Intake Form'!F26) -> 0 | B24: =VALUE('IQEF Intake Form'!G26) -> 0 | C24: =VALUE('IQEF Intake Form'!H26) ->  | D24: =VALUE('IQEF Intake Form'!I26) -> 0 | E24: =VALUE('IQEF Intake Form'!J26) -> 0 | F24: =VALUE('IQEF Intake Form'!K26) -> 1 | G24: =VALUE('IQEF Intake Form'!L26) -> 0 | H24: =VALUE('IQEF Intake Form'!M26) -> 0 | I24: =VALUE('IQEF Intake Form'!N26) -> 0 | J24: =VALUE('IQEF Intake Form'!O26) -> 0 | K24: =VALUE('IQEF Intake Form'!P26) ->  | L24: =VALUE('IQEF Intake Form'!Q26) -> 0 | M24: =VALUE('IQEF Intake Form'!R26) -> 0 | N24: =VALUE('IQEF Intake Form'!S26) -> 0 | O24: =VALUE('IQEF Intake Form'!T26) -> 0 | P24: =VALUE('IQEF Intake Form'!U26) -> 0 | Q24: =VALUE('IQEF Intake Form'!V26) -> 0 | R24: =VALUE('IQEF Intake Form'!W26) -> 0
A25: =VALUE('IQEF Intake Form'!F27) -> 0 | B25: =VALUE('IQEF Intake Form'!G27) -> 0 | C25: =VALUE('IQEF Intake Form'!H27) -> 0 | D25: =VALUE('IQEF Intake Form'!I27) -> 0 | E25: =VALUE('IQEF Intake Form'!J27) -> 0 | F25: =VALUE('IQEF Intake Form'!K27) -> 0 | G25: =VALUE('IQEF Intake Form'!L27) -> 0 | H25: =VALUE('IQEF Intake Form'!M27) -> 0 | I25: =VALUE('IQEF Intake Form'!N27) -> 0 | J25: =VALUE('IQEF Intake Form'!O27) -> 0 | K25: =VALUE('IQEF Intake Form'!P27) -> 0 | L25: =VALUE('IQEF Intake Form'!Q27) -> 0 | M25: =VALUE('IQEF Intake Form'!R27) -> 0 | N25: =VALUE('IQEF Intake Form'!S27) -> 0 | O25: =VALUE('IQEF Intake Form'!T27) -> 0 | P25: =VALUE('IQEF Intake Form'!U27) -> 0 | Q25: =VALUE('IQEF Intake Form'!V27) -> 0 | R25: =VALUE('IQEF Intake Form'!W27) -> 0
A26: =VALUE('IQEF Intake Form'!F28) ->  | B26: =VALUE('IQEF Intake Form'!G28) -> 0 | C26: =VALUE('IQEF Intake Form'!H28) ->  | D26: =VALUE('IQEF Intake Form'!I28) ->  | E26: =VALUE('IQEF Intake Form'!J28) ->  | F26: =VALUE('IQEF Intake Form'!K28) ->  | G26: =VALUE('IQEF Intake Form'!L28) ->  | H26: =VALUE('IQEF Intake Form'!M28) ->  | I26: =VALUE('IQEF Intake Form'!N28) ->  | J26: =VALUE('IQEF Intake Form'!O28) -> 0 | K26: =VALUE('IQEF Intake Form'!P28) -> 0 | L26: =VALUE('IQEF Intake Form'!Q28) -> 0 | M26: =VALUE('IQEF Intake Form'!R28) -> 0 | N26: =VALUE('IQEF Intake Form'!S28) -> 0 | O26: =VALUE('IQEF Intake Form'!T28) -> 0 | P26: =VALUE('IQEF Intake Form'!U28) -> 0 | Q26: =VALUE('IQEF Intake Form'!V28) -> 0 | R26: =VALUE('IQEF Intake Form'!W28) -> 0
A27: =VALUE('IQEF Intake Form'!F29) -> 0 | B27: =VALUE('IQEF Intake Form'!G29) -> 0 | C27: =VALUE('IQEF Intake Form'!H29) -> 0 | D27: =VALUE('IQEF Intake Form'!I29) ->  | E27: =VALUE('IQEF Intake Form'!J29) -> 0 | F27: =VALUE('IQEF Intake Form'!K29) -> 1 | G27: =VALUE('IQEF Intake Form'!L29) -> 0 | H27: =VALUE('IQEF Intake Form'!M29) ->  | I27: =VALUE('IQEF Intake Form'!N29) -> 0 | J27: =VALUE('IQEF Intake Form'!O29) -> 0 | K27: =VALUE('IQEF Intake Form'!P29) -> 0 | L27: =VALUE('IQEF Intake Form'!Q29) -> 0 | M27: =VALUE('IQEF Intake Form'!R29) -> 0 | N27: =VALUE('IQEF Intake Form'!S29) -> 0 | O27: =VALUE('IQEF Intake Form'!T29) -> 0 | P27: =VALUE('IQEF Intake Form'!U29) -> 0 | Q27: =VALUE('IQEF Intake Form'!V29) -> 0 | R27: =VALUE('IQEF Intake Form'!W29) -> 0
A28: =VALUE('IQEF Intake Form'!F30) -> 0 | B28: =VALUE('IQEF Intake Form'!G30) -> 0 | C28: =VALUE('IQEF Intake Form'!H30) -> 0 | D28: =VALUE('IQEF Intake Form'!I30) ->  | E28: =VALUE('IQEF Intake Form'!J30) -> 0 | F28: =VALUE('IQEF Intake Form'!K30) -> 1 | G28: =VALUE('IQEF Intake Form'!L30) -> 0 | H28: =VALUE('IQEF Intake Form'!M30) ->  | I28: =VALUE('IQEF Intake Form'!N30) -> 0 | J28: =VALUE('IQEF Intake Form'!O30) -> 0 | K28: =VALUE('IQEF Intake Form'!P30) -> 0 | L28: =VALUE('IQEF Intake Form'!Q30) -> 0 | M28: =VALUE('IQEF Intake Form'!R30) -> 0 | N28: =VALUE('IQEF Intake Form'!S30) -> 0 | O28: =VALUE('IQEF Intake Form'!T30) -> 0 | P28: =VALUE('IQEF Intake Form'!U30) -> 0 | Q28: =VALUE('IQEF Intake Form'!V30) -> 0 | R28: =VALUE('IQEF Intake Form'!W30) -> 0
A29: =VALUE('IQEF Intake Form'!F31) -> 0 | B29: =VALUE('IQEF Intake Form'!G31) -> 0 | C29: =VALUE('IQEF Intake Form'!H31) -> 0 | D29: =VALUE('IQEF Intake Form'!I31) ->  | E29: =VALUE('IQEF Intake Form'!J31) -> 0 | F29: =VALUE('IQEF Intake Form'!K31) -> 1 | G29: =VALUE('IQEF Intake Form'!L31) -> 0 | H29: =VALUE('IQEF Intake Form'!M31) ->  | I29: =VALUE('IQEF Intake Form'!N31) -> 0 | J29: =VALUE('IQEF Intake Form'!O31) -> 0 | K29: =VALUE('IQEF Intake Form'!P31) -> 0 | L29: =VALUE('IQEF Intake Form'!Q31) -> 0 | M29: =VALUE('IQEF Intake Form'!R31) -> 0 | N29: =VALUE('IQEF Intake Form'!S31) -> 0 | O29: =VALUE('IQEF Intake Form'!T31) -> 0 | P29: =VALUE('IQEF Intake Form'!U31) -> 0 | Q29: =VALUE('IQEF Intake Form'!V31) -> 0 | R29: =VALUE('IQEF Intake Form'!W31) -> 0
A30: =VALUE('IQEF Intake Form'!F32) -> 0 | B30: =VALUE('IQEF Intake Form'!G32) -> 0 | C30: =VALUE('IQEF Intake Form'!H32) -> 0 | D30: =VALUE('IQEF Intake Form'!I32) ->  | E30: =VALUE('IQEF Intake Form'!J32) -> 0 | F30: =VALUE('IQEF Intake Form'!K32) -> 1 | G30: =VALUE('IQEF Intake Form'!L32) -> 0 | H30: =VALUE('IQEF Intake Form'!M32) ->  | I30: =VALUE('IQEF Intake Form'!N32) -> 0 | J30: =VALUE('IQEF Intake Form'!O32) -> 0 | K30: =VALUE('IQEF Intake Form'!P32) -> 0 | L30: =VALUE('IQEF Intake Form'!Q32) -> 0 | M30: =VALUE('IQEF Intake Form'!R32) -> 0 | N30: =VALUE('IQEF Intake Form'!S32) -> 0 | O30: =VALUE('IQEF Intake Form'!T32) -> 0 | P30: =VALUE('IQEF Intake Form'!U32) -> 0 | Q30: =VALUE('IQEF Intake Form'!V32) -> 0 | R30: =VALUE('IQEF Intake Form'!W32) -> 0
A31: =VALUE('IQEF Intake Form'!F33) -> 0 | B31: =VALUE('IQEF Intake Form'!G33) -> 0 | C31: =VALUE('IQEF Intake Form'!H33) -> 0 | D31: =VALUE('IQEF Intake Form'!I33) ->  | E31: =VALUE('IQEF Intake Form'!J33) -> 0 | F31: =VALUE('IQEF Intake Form'!K33) -> 1 | G31: =VALUE('IQEF Intake Form'!L33) -> 0 | H31: =VALUE('IQEF Intake Form'!M33) ->  | I31: =VALUE('IQEF Intake Form'!N33) -> 0 | J31: =VALUE('IQEF Intake Form'!O33) -> 0 | K31: =VALUE('IQEF Intake Form'!P33) -> 0 | L31: =VALUE('IQEF Intake Form'!Q33) -> 0 | M31: =VALUE('IQEF Intake Form'!R33) -> 0 | N31: =VALUE('IQEF Intake Form'!S33) -> 0 | O31: =VALUE('IQEF Intake Form'!T33) -> 0 | P31: =VALUE('IQEF Intake Form'!U33) -> 0 | Q31: =VALUE('IQEF Intake Form'!V33) -> 0 | R31: =VALUE('IQEF Intake Form'!W33) -> 0
A32: =VALUE('IQEF Intake Form'!F34) -> 0 | B32: =VALUE('IQEF Intake Form'!G34) -> 0 | C32: =VALUE('IQEF Intake Form'!H34) -> 0 | D32: =VALUE('IQEF Intake Form'!I34) -> 0 | E32: =VALUE('IQEF Intake Form'!J34) -> 0 | F32: =VALUE('IQEF Intake Form'!K34) -> 0 | G32: =VALUE('IQEF Intake Form'!L34) -> 0 | H32: =VALUE('IQEF Intake Form'!M34) -> 0 | I32: =VALUE('IQEF Intake Form'!N34) -> 0 | J32: =VALUE('IQEF Intake Form'!O34) -> 0 | K32: =VALUE('IQEF Intake Form'!P34) -> 0 | L32: =VALUE('IQEF Intake Form'!Q34) -> 0 | M32: =VALUE('IQEF Intake Form'!R34) -> 0 | N32: =VALUE('IQEF Intake Form'!S34) -> 0 | O32: =VALUE('IQEF Intake Form'!T34) -> 0 | P32: =VALUE('IQEF Intake Form'!U34) -> 0 | Q32: =VALUE('IQEF Intake Form'!V34) -> 0 | R32: =VALUE('IQEF Intake Form'!W34) -> 0
A33: =VALUE('IQEF Intake Form'!F35) ->  | B33: =VALUE('IQEF Intake Form'!G35) ->  | C33: =VALUE('IQEF Intake Form'!H35) ->  | D33: =VALUE('IQEF Intake Form'!I35) ->  | E33: =VALUE('IQEF Intake Form'!J35) ->  | F33: =VALUE('IQEF Intake Form'!K35) ->  | G33: =VALUE('IQEF Intake Form'!L35) ->  | H33: =VALUE('IQEF Intake Form'!M35) ->  | I33: =VALUE('IQEF Intake Form'!N35) ->  | J33: =VALUE('IQEF Intake Form'!O35) ->  | K33: =VALUE('IQEF Intake Form'!P35) ->  | L33: =VALUE('IQEF Intake Form'!Q35) ->  | M33: =VALUE('IQEF Intake Form'!R35) ->  | N33: =VALUE('IQEF Intake Form'!S35) ->  | O33: =VALUE('IQEF Intake Form'!T35) ->  | P33: =VALUE('IQEF Intake Form'!U35) -> 0 | Q33: =VALUE('IQEF Intake Form'!V35) -> 0 | R33: =VALUE('IQEF Intake Form'!W35) -> 0
A34: =VALUE('IQEF Intake Form'!F36) -> 0 | B34: =VALUE('IQEF Intake Form'!G36) -> 0 | C34: =VALUE('IQEF Intake Form'!H36) -> 0 | D34: =VALUE('IQEF Intake Form'!I36) -> 0 | E34: =VALUE('IQEF Intake Form'!J36) -> 0 | F34: =VALUE('IQEF Intake Form'!K36) -> 0 | G34: =VALUE('IQEF Intake Form'!L36) -> 0 | H34: =VALUE('IQEF Intake Form'!M36) -> 0 | I34: =VALUE('IQEF Intake Form'!N36) -> 0 | J34: =VALUE('IQEF Intake Form'!O36) -> 0 | K34: =VALUE('IQEF Intake Form'!P36) -> 0 | L34: =VALUE('IQEF Intake Form'!Q36) ->  | M34: =VALUE('IQEF Intake Form'!R36) -> 0 | N34: =VALUE('IQEF Intake Form'!S36) -> 0 | O34: =VALUE('IQEF Intake Form'!T36) -> 0 | P34: =VALUE('IQEF Intake Form'!U36) -> 0 | Q34: =VALUE('IQEF Intake Form'!V36) -> 0 | R34: =VALUE('IQEF Intake Form'!W36) -> 0
A35: =VALUE('IQEF Intake Form'!F37) -> 0 | B35: =VALUE('IQEF Intake Form'!G37) -> 0 | C35: =VALUE('IQEF Intake Form'!H37) -> 0 | D35: =VALUE('IQEF Intake Form'!I37) -> 0 | E35: =VALUE('IQEF Intake Form'!J37) -> 0 | F35: =VALUE('IQEF Intake Form'!K37) -> 0 | G35: =VALUE('IQEF Intake Form'!L37) -> 0 | H35: =VALUE('IQEF Intake Form'!M37) -> 0 | I35: =VALUE('IQEF Intake Form'!N37) -> 0 | J35: =VALUE('IQEF Intake Form'!O37) -> 0 | K35: =VALUE('IQEF Intake Form'!P37) -> 0 | L35: =VALUE('IQEF Intake Form'!Q37) ->  | M35: =VALUE('IQEF Intake Form'!R37) -> 0 | N35: =VALUE('IQEF Intake Form'!S37) -> 0 | O35: =VALUE('IQEF Intake Form'!T37) -> 0 | P35: =VALUE('IQEF Intake Form'!U37) -> 0 | Q35: =VALUE('IQEF Intake Form'!V37) -> 0 | R35: =VALUE('IQEF Intake Form'!W37) -> 0
A36: =VALUE('IQEF Intake Form'!F38) -> 0 | B36: =VALUE('IQEF Intake Form'!G38) -> 0 | C36: =VALUE('IQEF Intake Form'!H38) -> 0 | D36: =VALUE('IQEF Intake Form'!I38) -> 0 | E36: =VALUE('IQEF Intake Form'!J38) -> 0 | F36: =VALUE('IQEF Intake Form'!K38) -> 0 | G36: =VALUE('IQEF Intake Form'!L38) -> 0 | H36: =VALUE('IQEF Intake Form'!M38) -> 0 | I36: =VALUE('IQEF Intake Form'!N38) -> 0 | J36: =VALUE('IQEF Intake Form'!O38) -> 0 | K36: =VALUE('IQEF Intake Form'!P38) -> 0 | L36: =VALUE('IQEF Intake Form'!Q38) ->  | M36: =VALUE('IQEF Intake Form'!R38) -> 0 | N36: =VALUE('IQEF Intake Form'!S38) -> 0 | O36: =VALUE('IQEF Intake Form'!T38) -> 0 | P36: =VALUE('IQEF Intake Form'!U38) -> 0 | Q36: =VALUE('IQEF Intake Form'!V38) -> 0 | R36: =VALUE('IQEF Intake Form'!W38) -> 0
A37: =VALUE('IQEF Intake Form'!F39) -> 0 | B37: =VALUE('IQEF Intake Form'!G39) -> 0 | C37: =VALUE('IQEF Intake Form'!H39) -> 0 | D37: =VALUE('IQEF Intake Form'!I39) -> 0 | E37: =VALUE('IQEF Intake Form'!J39) -> 0 | F37: =VALUE('IQEF Intake Form'!K39) -> 0 | G37: =VALUE('IQEF Intake Form'!L39) -> 0 | H37: =VALUE('IQEF Intake Form'!M39) -> 0 | I37: =VALUE('IQEF Intake Form'!N39) -> 0 | J37: =VALUE('IQEF Intake Form'!O39) -> 0 | K37: =VALUE('IQEF Intake Form'!P39) -> 0 | L37: =VALUE('IQEF Intake Form'!Q39) -> 0 | M37: =VALUE('IQEF Intake Form'!R39) -> 0 | N37: =VALUE('IQEF Intake Form'!S39) -> 0 | O37: =VALUE('IQEF Intake Form'!T39) -> 0 | P37: =VALUE('IQEF Intake Form'!U39) -> 0 | Q37: =VALUE('IQEF Intake Form'!V39) -> 0 | R37: =VALUE('IQEF Intake Form'!W39) -> 0
A38: =VALUE('IQEF Intake Form'!F40) ->  | B38: =VALUE('IQEF Intake Form'!G40) ->  | C38: =VALUE('IQEF Intake Form'!H40) ->  | D38: =VALUE('IQEF Intake Form'!I40) ->  | E38: =VALUE('IQEF Intake Form'!J40) ->  | F38: =VALUE('IQEF Intake Form'!K40) ->  | G38: =VALUE('IQEF Intake Form'!L40) ->  | H38: =VALUE('IQEF Intake Form'!M40) ->  | I38: =VALUE('IQEF Intake Form'!N40) ->  | J38: =VALUE('IQEF Intake Form'!O40) ->  | K38: =VALUE('IQEF Intake Form'!P40) -> 0 | L38: =VALUE('IQEF Intake Form'!Q40) -> 0 | M38: =VALUE('IQEF Intake Form'!R40) -> 0 | N38: =VALUE('IQEF Intake Form'!S40) -> 0 | O38: =VALUE('IQEF Intake Form'!T40) -> 0 | P38: =VALUE('IQEF Intake Form'!U40) -> 0 | Q38: =VALUE('IQEF Intake Form'!V40) -> 0 | R38: =VALUE('IQEF Intake Form'!W40) -> 0
A39: =VALUE('IQEF Intake Form'!F41) ->  | B39: =VALUE('IQEF Intake Form'!G41) -> 0 | C39: =VALUE('IQEF Intake Form'!H41) -> 0 | D39: =VALUE('IQEF Intake Form'!I41) -> 0 | E39: =VALUE('IQEF Intake Form'!J41) -> 0 | F39: =VALUE('IQEF Intake Form'!K41) -> 0 | G39: =VALUE('IQEF Intake Form'!L41) ->  | H39: =VALUE('IQEF Intake Form'!M41) -> 0 | I39: =VALUE('IQEF Intake Form'!N41) -> 0 | J39: =VALUE('IQEF Intake Form'!O41) -> 0 | K39: =VALUE('IQEF Intake Form'!P41) -> 0 | L39: =VALUE('IQEF Intake Form'!Q41) -> 0 | M39: =VALUE('IQEF Intake Form'!R41) -> 0 | N39: =VALUE('IQEF Intake Form'!S41) -> 0 | O39: =VALUE('IQEF Intake Form'!T41) -> 0 | P39: =VALUE('IQEF Intake Form'!U41) -> 0 | Q39: =VALUE('IQEF Intake Form'!V41) -> 0 | R39: =VALUE('IQEF Intake Form'!W41) -> 0
A40: =VALUE('IQEF Intake Form'!F42) -> 0 | B40: =VALUE('IQEF Intake Form'!G42) -> 0 | C40: =VALUE('IQEF Intake Form'!H42) -> 0 | D40: =VALUE('IQEF Intake Form'!I42) -> 0 | E40: =VALUE('IQEF Intake Form'!J42) -> 0 | F40: =VALUE('IQEF Intake Form'!K42) -> 0 | G40: =VALUE('IQEF Intake Form'!L42) -> 0 | H40: =VALUE('IQEF Intake Form'!M42) -> 0 | I40: =VALUE('IQEF Intake Form'!N42) -> 0 | J40: =VALUE('IQEF Intake Form'!O42) -> 0 | K40: =VALUE('IQEF Intake Form'!P42) -> 0 | L40: =VALUE('IQEF Intake Form'!Q42) -> 0 | M40: =VALUE('IQEF Intake Form'!R42) -> 0 | N40: =VALUE('IQEF Intake Form'!S42) -> 0 | O40: =VALUE('IQEF Intake Form'!T42) -> 0 | P40: =VALUE('IQEF Intake Form'!U42) -> 0 | Q40: =VALUE('IQEF Intake Form'!V42) -> 0 | R40: =VALUE('IQEF Intake Form'!W42) -> 0
A41: =VALUE('IQEF Intake Form'!F43) -> 0 | B41: =VALUE('IQEF Intake Form'!G43) ->  | C41: =VALUE('IQEF Intake Form'!H43) ->  | D41: =VALUE('IQEF Intake Form'!I43) ->  | E41: =VALUE('IQEF Intake Form'!J43) ->  | F41: =VALUE('IQEF Intake Form'!K43) ->  | G41: =VALUE('IQEF Intake Form'!L43) ->  | H41: =VALUE('IQEF Intake Form'!M43) ->  | I41: =VALUE('IQEF Intake Form'!N43) ->  | J41: =VALUE('IQEF Intake Form'!O43) ->  | K41: =VALUE('IQEF Intake Form'!P43) ->  | L41: =VALUE('IQEF Intake Form'!Q43) ->  | M41: =VALUE('IQEF Intake Form'!R43) ->  | N41: =VALUE('IQEF Intake Form'!S43) -> 0 | O41: =VALUE('IQEF Intake Form'!T43) -> 0 | P41: =VALUE('IQEF Intake Form'!U43) -> 0 | Q41: =VALUE('IQEF Intake Form'!V43) -> 0 | R41: =VALUE('IQEF Intake Form'!W43) -> 0
A42: =VALUE('IQEF Intake Form'!F44) ->  | B42: =VALUE('IQEF Intake Form'!G44) -> 0 | C42: =VALUE('IQEF Intake Form'!H44) -> 0 | D42: =VALUE('IQEF Intake Form'!I44) -> 0 | E42: =VALUE('IQEF Intake Form'!J44) -> 0 | F42: =VALUE('IQEF Intake Form'!K44) -> 0 | G42: =VALUE('IQEF Intake Form'!L44) -> 0 | H42: =VALUE('IQEF Intake Form'!M44) -> 0 | I42: =VALUE('IQEF Intake Form'!N44) -> 0 | J42: =VALUE('IQEF Intake Form'!O44) ->  | K42: =VALUE('IQEF Intake Form'!P44) -> 0 | L42: =VALUE('IQEF Intake Form'!Q44) -> 0 | M42: =VALUE('IQEF Intake Form'!R44) -> 0 | N42: =VALUE('IQEF Intake Form'!S44) -> 0 | O42: =VALUE('IQEF Intake Form'!T44) -> 0 | P42: =VALUE('IQEF Intake Form'!U44) -> 0 | Q42: =VALUE('IQEF Intake Form'!V44) -> 0 | R42: =VALUE('IQEF Intake Form'!W44) -> 0
A43: =VALUE('IQEF Intake Form'!F45) -> 0 | B43: =VALUE('IQEF Intake Form'!G45) -> 0 | C43: =VALUE('IQEF Intake Form'!H45) -> 0 | D43: =VALUE('IQEF Intake Form'!I45) -> 0 | E43: =VALUE('IQEF Intake Form'!J45) -> 0 | F43: =VALUE('IQEF Intake Form'!K45) -> 0 | G43: =VALUE('IQEF Intake Form'!L45) -> 0 | H43: =VALUE('IQEF Intake Form'!M45) -> 0 | I43: =VALUE('IQEF Intake Form'!N45) -> 0 | J43: =VALUE('IQEF Intake Form'!O45) -> 0 | K43: =VALUE('IQEF Intake Form'!P45) -> 0 | L43: =VALUE('IQEF Intake Form'!Q45) -> 0 | M43: =VALUE('IQEF Intake Form'!R45) -> 0 | N43: =VALUE('IQEF Intake Form'!S45) -> 0 | O43: =VALUE('IQEF Intake Form'!T45) -> 0 | P43: =VALUE('IQEF Intake Form'!U45) -> 0 | Q43: =VALUE('IQEF Intake Form'!V45) -> 0 | R43: =VALUE('IQEF Intake Form'!W45) -> 0
A44: =VALUE('IQEF Intake Form'!F46) ->  | B44: =VALUE('IQEF Intake Form'!G46) -> 0 | C44: =VALUE('IQEF Intake Form'!H46) -> 0 | D44: =VALUE('IQEF Intake Form'!I46) -> 0 | E44: =VALUE('IQEF Intake Form'!J46) -> 0 | F44: =VALUE('IQEF Intake Form'!K46) -> 0 | G44: =VALUE('IQEF Intake Form'!L46) -> 0 | H44: =VALUE('IQEF Intake Form'!M46) -> 0 | I44: =VALUE('IQEF Intake Form'!N46) -> 0 | J44: =VALUE('IQEF Intake Form'!O46) -> 0 | K44: =VALUE('IQEF Intake Form'!P46) -> 0 | L44: =VALUE('IQEF Intake Form'!Q46) -> 0 | M44: =VALUE('IQEF Intake Form'!R46) -> 0 | N44: =VALUE('IQEF Intake Form'!S46) -> 0 | O44: =VALUE('IQEF Intake Form'!T46) -> 0 | P44: =VALUE('IQEF Intake Form'!U46) -> 0 | Q44: =VALUE('IQEF Intake Form'!V46) -> 0 | R44: =VALUE('IQEF Intake Form'!W46) -> 0
A45: =VALUE('IQEF Intake Form'!F47) ->  | B45: =VALUE('IQEF Intake Form'!G47) ->  | C45: =VALUE('IQEF Intake Form'!H47) ->  | D45: =VALUE('IQEF Intake Form'!I47) ->  | E45: =VALUE('IQEF Intake Form'!J47) ->  | F45: =VALUE('IQEF Intake Form'!K47) ->  | G45: =VALUE('IQEF Intake Form'!L47) ->  | H45: =VALUE('IQEF Intake Form'!M47) ->  | I45: =VALUE('IQEF Intake Form'!N47) ->  | J45: =VALUE('IQEF Intake Form'!O47) ->  | K45: =VALUE('IQEF Intake Form'!P47) ->  | L45: =VALUE('IQEF Intake Form'!Q47) ->  | M45: =VALUE('IQEF Intake Form'!R47) ->  | N45: =VALUE('IQEF Intake Form'!S47) ->  | O45: =VALUE('IQEF Intake Form'!T47) -> 0 | P45: =VALUE('IQEF Intake Form'!U47) -> 0 | Q45: =VALUE('IQEF Intake Form'!V47) -> 0 | R45: =VALUE('IQEF Intake Form'!W47) -> 0
A46: =VALUE('IQEF Intake Form'!F48) -> 0 | B46: =VALUE('IQEF Intake Form'!G48) -> 0 | C46: =VALUE('IQEF Intake Form'!H48) -> 0 | D46: =VALUE('IQEF Intake Form'!I48) -> 0 | E46: =VALUE('IQEF Intake Form'!J48) -> 0 | F46: =VALUE('IQEF Intake Form'!K48) -> 0 | G46: =VALUE('IQEF Intake Form'!L48) -> 0 | H46: =VALUE('IQEF Intake Form'!M48) -> 0 | I46: =VALUE('IQEF Intake Form'!N48) -> 0 | J46: =VALUE('IQEF Intake Form'!O48) -> 0 | K46: =VALUE('IQEF Intake Form'!P48) ->  | L46: =VALUE('IQEF Intake Form'!Q48) -> 0 | M46: =VALUE('IQEF Intake Form'!R48) -> 0 | N46: =VALUE('IQEF Intake Form'!S48) -> 0 | O46: =VALUE('IQEF Intake Form'!T48) -> 0 | P46: =VALUE('IQEF Intake Form'!U48) -> 0 | Q46: =VALUE('IQEF Intake Form'!V48) -> 0 | R46: =VALUE('IQEF Intake Form'!W48) -> 0
A47: =VALUE('IQEF Intake Form'!F49) -> 0 | B47: =VALUE('IQEF Intake Form'!G49) -> 0 | C47: =VALUE('IQEF Intake Form'!H49) -> 0 | D47: =VALUE('IQEF Intake Form'!I49) -> 0 | E47: =VALUE('IQEF Intake Form'!J49) -> 0 | F47: =VALUE('IQEF Intake Form'!K49) -> 0 | G47: =VALUE('IQEF Intake Form'!L49) -> 0 | H47: =VALUE('IQEF Intake Form'!M49) -> 0 | I47: =VALUE('IQEF Intake Form'!N49) -> 0 | J47: =VALUE('IQEF Intake Form'!O49) -> 0 | K47: =VALUE('IQEF Intake Form'!P49) ->  | L47: =VALUE('IQEF Intake Form'!Q49) -> 0 | M47: =VALUE('IQEF Intake Form'!R49) -> 0 | N47: =VALUE('IQEF Intake Form'!S49) -> 0 | O47: =VALUE('IQEF Intake Form'!T49) -> 0 | P47: =VALUE('IQEF Intake Form'!U49) -> 0 | Q47: =VALUE('IQEF Intake Form'!V49) -> 0 | R47: =VALUE('IQEF Intake Form'!W49) -> 0
A48: =VALUE('IQEF Intake Form'!F50) -> 0 | B48: =VALUE('IQEF Intake Form'!G50) -> 0 | C48: =VALUE('IQEF Intake Form'!H50) -> 0 | D48: =VALUE('IQEF Intake Form'!I50) -> 0 | E48: =VALUE('IQEF Intake Form'!J50) -> 0 | F48: =VALUE('IQEF Intake Form'!K50) -> 0 | G48: =VALUE('IQEF Intake Form'!L50) -> 0 | H48: =VALUE('IQEF Intake Form'!M50) -> 0 | I48: =VALUE('IQEF Intake Form'!N50) -> 0 | J48: =VALUE('IQEF Intake Form'!O50) -> 0 | K48: =VALUE('IQEF Intake Form'!P50) ->  | L48: =VALUE('IQEF Intake Form'!Q50) -> 0 | M48: =VALUE('IQEF Intake Form'!R50) -> 0 | N48: =VALUE('IQEF Intake Form'!S50) -> 0 | O48: =VALUE('IQEF Intake Form'!T50) -> 0 | P48: =VALUE('IQEF Intake Form'!U50) -> 0 | Q48: =VALUE('IQEF Intake Form'!V50) -> 0 | R48: =VALUE('IQEF Intake Form'!W50) -> 0
A49: =VALUE('IQEF Intake Form'!F51) -> 0 | B49: =VALUE('IQEF Intake Form'!G51) -> 0 | C49: =VALUE('IQEF Intake Form'!H51) -> 0 | D49: =VALUE('IQEF Intake Form'!I51) -> 0 | E49: =VALUE('IQEF Intake Form'!J51) -> 0 | F49: =VALUE('IQEF Intake Form'!K51) -> 0 | G49: =VALUE('IQEF Intake Form'!L51) -> 0 | H49: =VALUE('IQEF Intake Form'!M51) -> 0 | I49: =VALUE('IQEF Intake Form'!N51) -> 0 | J49: =VALUE('IQEF Intake Form'!O51) -> 0 | K49: =VALUE('IQEF Intake Form'!P51) -> 0 | L49: =VALUE('IQEF Intake Form'!Q51) -> 0 | M49: =VALUE('IQEF Intake Form'!R51) -> 0 | N49: =VALUE('IQEF Intake Form'!S51) -> 0 | O49: =VALUE('IQEF Intake Form'!T51) -> 0 | P49: =VALUE('IQEF Intake Form'!U51) -> 0 | Q49: =VALUE('IQEF Intake Form'!V51) -> 0 | R49: =VALUE('IQEF Intake Form'!W51) -> 0
A50: =VALUE('IQEF Intake Form'!F52) ->  | B50: =VALUE('IQEF Intake Form'!G52) -> 0 | C50: =VALUE('IQEF Intake Form'!H52) -> 0 | D50: =VALUE('IQEF Intake Form'!I52) -> 0 | E50: =VALUE('IQEF Intake Form'!J52) -> 0 | F50: =VALUE('IQEF Intake Form'!K52) -> 0 | G50: =VALUE('IQEF Intake Form'!L52) -> 0 | H50: =VALUE('IQEF Intake Form'!M52) -> 0 | I50: =VALUE('IQEF Intake Form'!N52) -> 0 | J50: =VALUE('IQEF Intake Form'!O52) -> 0 | K50: =VALUE('IQEF Intake Form'!P52) -> 0 | L50: =VALUE('IQEF Intake Form'!Q52) -> 0 | M50: =VALUE('IQEF Intake Form'!R52) -> 0 | N50: =VALUE('IQEF Intake Form'!S52) -> 0 | O50: =VALUE('IQEF Intake Form'!T52) -> 0 | P50: =VALUE('IQEF Intake Form'!U52) -> 0 | Q50: =VALUE('IQEF Intake Form'!V52) -> 0 | R50: =VALUE('IQEF Intake Form'!W52) -> 0
A51: =VALUE('IQEF Intake Form'!F53) ->  | B51: =VALUE('IQEF Intake Form'!G53) ->  | C51: =VALUE('IQEF Intake Form'!H53) ->  | D51: =VALUE('IQEF Intake Form'!I53) ->  | E51: =VALUE('IQEF Intake Form'!J53) ->  | F51: =VALUE('IQEF Intake Form'!K53) ->  | G51: =VALUE('IQEF Intake Form'!L53) ->  | H51: =VALUE('IQEF Intake Form'!M53) ->  | I51: =VALUE('IQEF Intake Form'!N53) ->  | J51: =VALUE('IQEF Intake Form'!O53) ->  | K51: =VALUE('IQEF Intake Form'!P53) ->  | L51: =VALUE('IQEF Intake Form'!Q53) -> 0 | M51: =VALUE('IQEF Intake Form'!R53) -> 0 | N51: =VALUE('IQEF Intake Form'!S53) -> 0 | O51: =VALUE('IQEF Intake Form'!T53) -> 0 | P51: =VALUE('IQEF Intake Form'!U53) -> 0 | Q51: =VALUE('IQEF Intake Form'!V53) -> 0 | R51: =VALUE('IQEF Intake Form'!W53) -> 0
A52: =VALUE('IQEF Intake Form'!F54) -> 0 | B52: =VALUE('IQEF Intake Form'!G54) -> 0 | C52: =VALUE('IQEF Intake Form'!H54) -> 0 | D52: =VALUE('IQEF Intake Form'!I54) -> 0 | E52: =VALUE('IQEF Intake Form'!J54) -> 0 | F52: =VALUE('IQEF Intake Form'!K54) -> 0 | G52: =VALUE('IQEF Intake Form'!L54) -> 0 | H52: =VALUE('IQEF Intake Form'!M54) ->  | I52: =VALUE('IQEF Intake Form'!N54) -> 0 | J52: =VALUE('IQEF Intake Form'!O54) -> 0 | K52: =VALUE('IQEF Intake Form'!P54) -> 0 | L52: =VALUE('IQEF Intake Form'!Q54) -> 0 | M52: =VALUE('IQEF Intake Form'!R54) -> 0 | N52: =VALUE('IQEF Intake Form'!S54) -> 0 | O52: =VALUE('IQEF Intake Form'!T54) -> 0 | P52: =VALUE('IQEF Intake Form'!U54) -> 0 | Q52: =VALUE('IQEF Intake Form'!V54) -> 0 | R52: =VALUE('IQEF Intake Form'!W54) -> 0
A53: =VALUE('IQEF Intake Form'!F55) -> 0 | B53: =VALUE('IQEF Intake Form'!G55) -> 0 | C53: =VALUE('IQEF Intake Form'!H55) -> 0 | D53: =VALUE('IQEF Intake Form'!I55) -> 0 | E53: =VALUE('IQEF Intake Form'!J55) -> 0 | F53: =VALUE('IQEF Intake Form'!K55) -> 0 | G53: =VALUE('IQEF Intake Form'!L55) -> 0 | H53: =VALUE('IQEF Intake Form'!M55) ->  | I53: =VALUE('IQEF Intake Form'!N55) -> 0 | J53: =VALUE('IQEF Intake Form'!O55) -> 0 | K53: =VALUE('IQEF Intake Form'!P55) -> 0 | L53: =VALUE('IQEF Intake Form'!Q55) -> 0 | M53: =VALUE('IQEF Intake Form'!R55) -> 0 | N53: =VALUE('IQEF Intake Form'!S55) -> 0 | O53: =VALUE('IQEF Intake Form'!T55) -> 0 | P53: =VALUE('IQEF Intake Form'!U55) -> 0 | Q53: =VALUE('IQEF Intake Form'!V55) -> 0 | R53: =VALUE('IQEF Intake Form'!W55) -> 0
A54: =VALUE('IQEF Intake Form'!F56) -> 0 | B54: =VALUE('IQEF Intake Form'!G56) -> 0 | C54: =VALUE('IQEF Intake Form'!H56) -> 0 | D54: =VALUE('IQEF Intake Form'!I56) -> 0 | E54: =VALUE('IQEF Intake Form'!J56) -> 0 | F54: =VALUE('IQEF Intake Form'!K56) -> 0 | G54: =VALUE('IQEF Intake Form'!L56) -> 0 | H54: =VALUE('IQEF Intake Form'!M56) ->  | I54: =VALUE('IQEF Intake Form'!N56) -> 0 | J54: =VALUE('IQEF Intake Form'!O56) -> 0 | K54: =VALUE('IQEF Intake Form'!P56) -> 0 | L54: =VALUE('IQEF Intake Form'!Q56) -> 0 | M54: =VALUE('IQEF Intake Form'!R56) -> 0 | N54: =VALUE('IQEF Intake Form'!S56) -> 0 | O54: =VALUE('IQEF Intake Form'!T56) -> 0 | P54: =VALUE('IQEF Intake Form'!U56) -> 0 | Q54: =VALUE('IQEF Intake Form'!V56) -> 0 | R54: =VALUE('IQEF Intake Form'!W56) -> 0
A55: =VALUE('IQEF Intake Form'!F57) -> 0 | B55: =VALUE('IQEF Intake Form'!G57) -> 0 | C55: =VALUE('IQEF Intake Form'!H57) -> 0 | D55: =VALUE('IQEF Intake Form'!I57) -> 0 | E55: =VALUE('IQEF Intake Form'!J57) -> 0 | F55: =VALUE('IQEF Intake Form'!K57) -> 0 | G55: =VALUE('IQEF Intake Form'!L57) -> 0 | H55: =VALUE('IQEF Intake Form'!M57) -> 0 | I55: =VALUE('IQEF Intake Form'!N57) -> 0 | J55: =VALUE('IQEF Intake Form'!O57) -> 0 | K55: =VALUE('IQEF Intake Form'!P57) -> 0 | L55: =VALUE('IQEF Intake Form'!Q57) -> 0 | M55: =VALUE('IQEF Intake Form'!R57) -> 0 | N55: =VALUE('IQEF Intake Form'!S57) -> 0 | O55: =VALUE('IQEF Intake Form'!T57) -> 0 | P55: =VALUE('IQEF Intake Form'!U57) -> 0 | Q55: =VALUE('IQEF Intake Form'!V57) -> 0 | R55: =VALUE('IQEF Intake Form'!W57) -> 0
A56: =VALUE('IQEF Intake Form'!F58) ->  | B56: =VALUE('IQEF Intake Form'!G58) ->  | C56: =VALUE('IQEF Intake Form'!H58) ->  | D56: =VALUE('IQEF Intake Form'!I58) ->  | E56: =VALUE('IQEF Intake Form'!J58) ->  | F56: =VALUE('IQEF Intake Form'!K58) ->  | G56: =VALUE('IQEF Intake Form'!L58) ->  | H56: =VALUE('IQEF Intake Form'!M58) ->  | I56: =VALUE('IQEF Intake Form'!N58) -> 0 | J56: =VALUE('IQEF Intake Form'!O58) -> 0 | K56: =VALUE('IQEF Intake Form'!P58) -> 0 | L56: =VALUE('IQEF Intake Form'!Q58) -> 0 | M56: =VALUE('IQEF Intake Form'!R58) -> 0 | N56: =VALUE('IQEF Intake Form'!S58) -> 0 | O56: =VALUE('IQEF Intake Form'!T58) -> 0 | P56: =VALUE('IQEF Intake Form'!U58) -> 0 | Q56: =VALUE('IQEF Intake Form'!V58) -> 0 | R56: =VALUE('IQEF Intake Form'!W58) -> 0
A57: =VALUE('IQEF Intake Form'!F59) -> 0 | B57: =VALUE('IQEF Intake Form'!G59) -> 0 | C57: =VALUE('IQEF Intake Form'!H59) -> 0 | D57: =VALUE('IQEF Intake Form'!I59) -> 0 | E57: =VALUE('IQEF Intake Form'!J59) ->  | F57: =VALUE('IQEF Intake Form'!K59) -> 0 | G57: =VALUE('IQEF Intake Form'!L59) -> 0 | H57: =VALUE('IQEF Intake Form'!M59) -> 0 | I57: =VALUE('IQEF Intake Form'!N59) -> 0 | J57: =VALUE('IQEF Intake Form'!O59) -> 0 | K57: =VALUE('IQEF Intake Form'!P59) -> 0 | L57: =VALUE('IQEF Intake Form'!Q59) -> 0 | M57: =VALUE('IQEF Intake Form'!R59) -> 0 | N57: =VALUE('IQEF Intake Form'!S59) -> 0 | O57: =VALUE('IQEF Intake Form'!T59) -> 0 | P57: =VALUE('IQEF Intake Form'!U59) -> 0 | Q57: =VALUE('IQEF Intake Form'!V59) -> 0 | R57: =VALUE('IQEF Intake Form'!W59) -> 0
A58: =VALUE('IQEF Intake Form'!F60) -> 0 | B58: =VALUE('IQEF Intake Form'!G60) -> 0 | C58: =VALUE('IQEF Intake Form'!H60) -> 0 | D58: =VALUE('IQEF Intake Form'!I60) -> 0 | E58: =VALUE('IQEF Intake Form'!J60) -> 0 | F58: =VALUE('IQEF Intake Form'!K60) -> 0 | G58: =VALUE('IQEF Intake Form'!L60) -> 0 | H58: =VALUE('IQEF Intake Form'!M60) -> 0 | I58: =VALUE('IQEF Intake Form'!N60) -> 0 | J58: =VALUE('IQEF Intake Form'!O60) -> 0 | K58: =VALUE('IQEF Intake Form'!P60) -> 0 | L58: =VALUE('IQEF Intake Form'!Q60) -> 0 | M58: =VALUE('IQEF Intake Form'!R60) -> 0 | N58: =VALUE('IQEF Intake Form'!S60) -> 0 | O58: =VALUE('IQEF Intake Form'!T60) -> 0 | P58: =VALUE('IQEF Intake Form'!U60) -> 0 | Q58: =VALUE('IQEF Intake Form'!V60) -> 0 | R58: =VALUE('IQEF Intake Form'!W60) -> 0
A59: =VALUE('IQEF Intake Form'!F61) ->  | B59: =VALUE('IQEF Intake Form'!G61) -> 0 | C59: =VALUE('IQEF Intake Form'!H61) -> 0 | D59: =VALUE('IQEF Intake Form'!I61) -> 0 | E59: =VALUE('IQEF Intake Form'!J61) -> 0 | F59: =VALUE('IQEF Intake Form'!K61) -> 0 | G59: =VALUE('IQEF Intake Form'!L61) -> 0 | H59: =VALUE('IQEF Intake Form'!M61) -> 0 | I59: =VALUE('IQEF Intake Form'!N61) -> 0 | J59: =VALUE('IQEF Intake Form'!O61) -> 0 | K59: =VALUE('IQEF Intake Form'!P61) -> 0 | L59: =VALUE('IQEF Intake Form'!Q61) -> 0 | M59: =VALUE('IQEF Intake Form'!R61) -> 0 | N59: =VALUE('IQEF Intake Form'!S61) -> 0 | O59: =VALUE('IQEF Intake Form'!T61) -> 0 | P59: =VALUE('IQEF Intake Form'!U61) -> 0 | Q59: =VALUE('IQEF Intake Form'!V61) -> 0 | R59: =VALUE('IQEF Intake Form'!W61) -> 0
A60: =VALUE('IQEF Intake Form'!F62) ->  | B60: =VALUE('IQEF Intake Form'!G62) -> 0 | C60: =VALUE('IQEF Intake Form'!H62) -> 0 | D60: =VALUE('IQEF Intake Form'!I62) -> 0 | E60: =VALUE('IQEF Intake Form'!J62) -> 0 | F60: =VALUE('IQEF Intake Form'!K62) -> 0 | G60: =VALUE('IQEF Intake Form'!L62) -> 0 | H60: =VALUE('IQEF Intake Form'!M62) -> 0 | I60: =VALUE('IQEF Intake Form'!N62) -> 0 | J60: =VALUE('IQEF Intake Form'!O62) -> 0 | K60: =VALUE('IQEF Intake Form'!P62) -> 0 | L60: =VALUE('IQEF Intake Form'!Q62) -> 0 | M60: =VALUE('IQEF Intake Form'!R62) -> 0 | N60: =VALUE('IQEF Intake Form'!S62) -> 0 | O60: =VALUE('IQEF Intake Form'!T62) -> 0 | P60: =VALUE('IQEF Intake Form'!U62) -> 0 | Q60: =VALUE('IQEF Intake Form'!V62) -> 0 | R60: =VALUE('IQEF Intake Form'!W62) -> 0
A61: =VALUE('IQEF Intake Form'!F63) ->  | B61: =VALUE('IQEF Intake Form'!G63) ->  | C61: =VALUE('IQEF Intake Form'!H63) ->  | D61: =VALUE('IQEF Intake Form'!I63) ->  | E61: =VALUE('IQEF Intake Form'!J63) ->  | F61: =VALUE('IQEF Intake Form'!K63) ->  | G61: =VALUE('IQEF Intake Form'!L63) ->  | H61: =VALUE('IQEF Intake Form'!M63) ->  | I61: =VALUE('IQEF Intake Form'!N63) ->  | J61: =VALUE('IQEF Intake Form'!O63) ->  | K61: =VALUE('IQEF Intake Form'!P63) ->  | L61: =VALUE('IQEF Intake Form'!Q63) -> 0 | M61: =VALUE('IQEF Intake Form'!R63) -> 0 | N61: =VALUE('IQEF Intake Form'!S63) -> 0 | O61: =VALUE('IQEF Intake Form'!T63) -> 0 | P61: =VALUE('IQEF Intake Form'!U63) -> 0 | Q61: =VALUE('IQEF Intake Form'!V63) -> 0 | R61: =VALUE('IQEF Intake Form'!W63) -> 0
A62: =VALUE('IQEF Intake Form'!F64) -> 0 | B62: =VALUE('IQEF Intake Form'!G64) -> 0 | C62: =VALUE('IQEF Intake Form'!H64) -> 0 | D62: =VALUE('IQEF Intake Form'!I64) -> 0 | E62: =VALUE('IQEF Intake Form'!J64) -> 0 | F62: =VALUE('IQEF Intake Form'!K64) -> 0 | G62: =VALUE('IQEF Intake Form'!L64) -> 0 | H62: =VALUE('IQEF Intake Form'!M64) ->  | I62: =VALUE('IQEF Intake Form'!N64) -> 0 | J62: =VALUE('IQEF Intake Form'!O64) -> 0 | K62: =VALUE('IQEF Intake Form'!P64) -> 0 | L62: =VALUE('IQEF Intake Form'!Q64) -> 0 | M62: =VALUE('IQEF Intake Form'!R64) -> 0 | N62: =VALUE('IQEF Intake Form'!S64) -> 0 | O62: =VALUE('IQEF Intake Form'!T64) -> 0 | P62: =VALUE('IQEF Intake Form'!U64) -> 0 | Q62: =VALUE('IQEF Intake Form'!V64) -> 0 | R62: =VALUE('IQEF Intake Form'!W64) -> 0
A63: =VALUE('IQEF Intake Form'!F65) -> 0 | B63: =VALUE('IQEF Intake Form'!G65) -> 0 | C63: =VALUE('IQEF Intake Form'!H65) -> 0 | D63: =VALUE('IQEF Intake Form'!I65) -> 0 | E63: =VALUE('IQEF Intake Form'!J65) -> 0 | F63: =VALUE('IQEF Intake Form'!K65) -> 0 | G63: =VALUE('IQEF Intake Form'!L65) -> 0 | H63: =VALUE('IQEF Intake Form'!M65) ->  | I63: =VALUE('IQEF Intake Form'!N65) -> 0 | J63: =VALUE('IQEF Intake Form'!O65) -> 0 | K63: =VALUE('IQEF Intake Form'!P65) -> 0 | L63: =VALUE('IQEF Intake Form'!Q65) -> 0 | M63: =VALUE('IQEF Intake Form'!R65) -> 0 | N63: =VALUE('IQEF Intake Form'!S65) -> 0 | O63: =VALUE('IQEF Intake Form'!T65) -> 0 | P63: =VALUE('IQEF Intake Form'!U65) -> 0 | Q63: =VALUE('IQEF Intake Form'!V65) -> 0 | R63: =VALUE('IQEF Intake Form'!W65) -> 0
A64: =VALUE('IQEF Intake Form'!F66) -> 0 | B64: =VALUE('IQEF Intake Form'!G66) -> 0 | C64: =VALUE('IQEF Intake Form'!H66) -> 0 | D64: =VALUE('IQEF Intake Form'!I66) -> 0 | E64: =VALUE('IQEF Intake Form'!J66) -> 0 | F64: =VALUE('IQEF Intake Form'!K66) -> 0 | G64: =VALUE('IQEF Intake Form'!L66) -> 0 | H64: =VALUE('IQEF Intake Form'!M66) ->  | I64: =VALUE('IQEF Intake Form'!N66) -> 0 | J64: =VALUE('IQEF Intake Form'!O66) -> 0 | K64: =VALUE('IQEF Intake Form'!P66) -> 0 | L64: =VALUE('IQEF Intake Form'!Q66) -> 0 | M64: =VALUE('IQEF Intake Form'!R66) -> 0 | N64: =VALUE('IQEF Intake Form'!S66) -> 0 | O64: =VALUE('IQEF Intake Form'!T66) -> 0 | P64: =VALUE('IQEF Intake Form'!U66) -> 0 | Q64: =VALUE('IQEF Intake Form'!V66) -> 0 | R64: =VALUE('IQEF Intake Form'!W66) -> 0
A65: =VALUE('IQEF Intake Form'!F67) -> 0 | B65: =VALUE('IQEF Intake Form'!G67) -> 0 | C65: =VALUE('IQEF Intake Form'!H67) -> 0 | D65: =VALUE('IQEF Intake Form'!I67) -> 0 | E65: =VALUE('IQEF Intake Form'!J67) -> 0 | F65: =VALUE('IQEF Intake Form'!K67) -> 0 | G65: =VALUE('IQEF Intake Form'!L67) -> 0 | H65: =VALUE('IQEF Intake Form'!M67) -> 0 | I65: =VALUE('IQEF Intake Form'!N67) -> 0 | J65: =VALUE('IQEF Intake Form'!O67) -> 0 | K65: =VALUE('IQEF Intake Form'!P67) -> 0 | L65: =VALUE('IQEF Intake Form'!Q67) -> 0 | M65: =VALUE('IQEF Intake Form'!R67) -> 0 | N65: =VALUE('IQEF Intake Form'!S67) -> 0 | O65: =VALUE('IQEF Intake Form'!T67) -> 0 | P65: =VALUE('IQEF Intake Form'!U67) -> 0 | Q65: =VALUE('IQEF Intake Form'!V67) -> 0 | R65: =VALUE('IQEF Intake Form'!W67) -> 0
A66: =VALUE('IQEF Intake Form'!F68) ->  | B66: =VALUE('IQEF Intake Form'!G68) -> 0 | C66: =VALUE('IQEF Intake Form'!H68) -> 0 | D66: =VALUE('IQEF Intake Form'!I68) -> 0 | E66: =VALUE('IQEF Intake Form'!J68) -> 0 | F66: =VALUE('IQEF Intake Form'!K68) -> 0 | G66: =VALUE('IQEF Intake Form'!L68) -> 0 | H66: =VALUE('IQEF Intake Form'!M68) -> 0 | I66: =VALUE('IQEF Intake Form'!N68) -> 0 | J66: =VALUE('IQEF Intake Form'!O68) -> 0 | K66: =VALUE('IQEF Intake Form'!P68) -> 0 | L66: =VALUE('IQEF Intake Form'!Q68) -> 0 | M66: =VALUE('IQEF Intake Form'!R68) -> 0 | N66: =VALUE('IQEF Intake Form'!S68) -> 0 | O66: =VALUE('IQEF Intake Form'!T68) -> 0 | P66: =VALUE('IQEF Intake Form'!U68) -> 0 | Q66: =VALUE('IQEF Intake Form'!V68) -> 0 | R66: =VALUE('IQEF Intake Form'!W68) -> 0
A67: =VALUE('IQEF Intake Form'!F69) ->  | B67: =VALUE('IQEF Intake Form'!G69) ->  | C67: =VALUE('IQEF Intake Form'!H69) ->  | D67: =VALUE('IQEF Intake Form'!I69) ->  | E67: =VALUE('IQEF Intake Form'!J69) ->  | F67: =VALUE('IQEF Intake Form'!K69) ->  | G67: =VALUE('IQEF Intake Form'!L69) ->  | H67: =VALUE('IQEF Intake Form'!M69) -> 0 | I67: =VALUE('IQEF Intake Form'!N69) -> 0 | J67: =VALUE('IQEF Intake Form'!O69) -> 0 | K67: =VALUE('IQEF Intake Form'!P69) -> 0 | L67: =VALUE('IQEF Intake Form'!Q69) -> 0 | M67: =VALUE('IQEF Intake Form'!R69) -> 0 | N67: =VALUE('IQEF Intake Form'!S69) -> 0 | O67: =VALUE('IQEF Intake Form'!T69) -> 0 | P67: =VALUE('IQEF Intake Form'!U69) -> 0 | Q67: =VALUE('IQEF Intake Form'!V69) -> 0 | R67: =VALUE('IQEF Intake Form'!W69) -> 0
A68: =VALUE('IQEF Intake Form'!F70) -> 0 | B68: =VALUE('IQEF Intake Form'!G70) -> 0 | C68: =VALUE('IQEF Intake Form'!H70) -> 0 | D68: =VALUE('IQEF Intake Form'!I70) -> 0 | E68: =VALUE('IQEF Intake Form'!J70) -> 0 | F68: =VALUE('IQEF Intake Form'!K70) ->  | G68: =VALUE('IQEF Intake Form'!L70) -> 0 | H68: =VALUE('IQEF Intake Form'!M70) -> 0 | I68: =VALUE('IQEF Intake Form'!N70) -> 0 | J68: =VALUE('IQEF Intake Form'!O70) -> 0 | K68: =VALUE('IQEF Intake Form'!P70) -> 0 | L68: =VALUE('IQEF Intake Form'!Q70) -> 0 | M68: =VALUE('IQEF Intake Form'!R70) -> 0 | N68: =VALUE('IQEF Intake Form'!S70) -> 0 | O68: =VALUE('IQEF Intake Form'!T70) -> 0 | P68: =VALUE('IQEF Intake Form'!U70) -> 0 | Q68: =VALUE('IQEF Intake Form'!V70) -> 0 | R68: =VALUE('IQEF Intake Form'!W70) -> 0
A69: =VALUE('IQEF Intake Form'!F71) -> 0 | B69: =VALUE('IQEF Intake Form'!G71) -> 0 | C69: =VALUE('IQEF Intake Form'!H71) -> 0 | D69: =VALUE('IQEF Intake Form'!I71) -> 0 | E69: =VALUE('IQEF Intake Form'!J71) -> 0 | F69: =VALUE('IQEF Intake Form'!K71) ->  | G69: =VALUE('IQEF Intake Form'!L71) -> 0 | H69: =VALUE('IQEF Intake Form'!M71) -> 0 | I69: =VALUE('IQEF Intake Form'!N71) -> 0 | J69: =VALUE('IQEF Intake Form'!O71) -> 0 | K69: =VALUE('IQEF Intake Form'!P71) -> 0 | L69: =VALUE('IQEF Intake Form'!Q71) -> 0 | M69: =VALUE('IQEF Intake Form'!R71) -> 0 | N69: =VALUE('IQEF Intake Form'!S71) -> 0 | O69: =VALUE('IQEF Intake Form'!T71) -> 0 | P69: =VALUE('IQEF Intake Form'!U71) -> 0 | Q69: =VALUE('IQEF Intake Form'!V71) -> 0 | R69: =VALUE('IQEF Intake Form'!W71) -> 0
A70: =VALUE('IQEF Intake Form'!F72) -> 0 | B70: =VALUE('IQEF Intake Form'!G72) -> 0 | C70: =VALUE('IQEF Intake Form'!H72) -> 0 | D70: =VALUE('IQEF Intake Form'!I72) -> 0 | E70: =VALUE('IQEF Intake Form'!J72) -> 0 | F70: =VALUE('IQEF Intake Form'!K72) ->  | G70: =VALUE('IQEF Intake Form'!L72) -> 0 | H70: =VALUE('IQEF Intake Form'!M72) -> 0 | I70: =VALUE('IQEF Intake Form'!N72) -> 0 | J70: =VALUE('IQEF Intake Form'!O72) -> 0 | K70: =VALUE('IQEF Intake Form'!P72) -> 0 | L70: =VALUE('IQEF Intake Form'!Q72) -> 0 | M70: =VALUE('IQEF Intake Form'!R72) -> 0 | N70: =VALUE('IQEF Intake Form'!S72) -> 0 | O70: =VALUE('IQEF Intake Form'!T72) -> 0 | P70: =VALUE('IQEF Intake Form'!U72) -> 0 | Q70: =VALUE('IQEF Intake Form'!V72) -> 0 | R70: =VALUE('IQEF Intake Form'!W72) -> 0
A71: =VALUE('IQEF Intake Form'!F73) -> 0 | B71: =VALUE('IQEF Intake Form'!G73) -> 0 | C71: =VALUE('IQEF Intake Form'!H73) -> 0 | D71: =VALUE('IQEF Intake Form'!I73) -> 0 | E71: =VALUE('IQEF Intake Form'!J73) -> 0 | F71: =VALUE('IQEF Intake Form'!K73) ->  | G71: =VALUE('IQEF Intake Form'!L73) -> 0 | H71: =VALUE('IQEF Intake Form'!M73) -> 0 | I71: =VALUE('IQEF Intake Form'!N73) -> 0 | J71: =VALUE('IQEF Intake Form'!O73) -> 0 | K71: =VALUE('IQEF Intake Form'!P73) -> 0 | L71: =VALUE('IQEF Intake Form'!Q73) -> 0 | M71: =VALUE('IQEF Intake Form'!R73) -> 0 | N71: =VALUE('IQEF Intake Form'!S73) -> 0 | O71: =VALUE('IQEF Intake Form'!T73) -> 0 | P71: =VALUE('IQEF Intake Form'!U73) -> 0 | Q71: =VALUE('IQEF Intake Form'!V73) -> 0 | R71: =VALUE('IQEF Intake Form'!W73) -> 0
A72: =VALUE('IQEF Intake Form'!F74) -> 0 | B72: =VALUE('IQEF Intake Form'!G74) -> 0 | C72: =VALUE('IQEF Intake Form'!H74) -> 0 | D72: =VALUE('IQEF Intake Form'!I74) -> 0 | E72: =VALUE('IQEF Intake Form'!J74) -> 0 | F72: =VALUE('IQEF Intake Form'!K74) -> 0 | G72: =VALUE('IQEF Intake Form'!L74) -> 0 | H72: =VALUE('IQEF Intake Form'!M74) -> 0 | I72: =VALUE('IQEF Intake Form'!N74) -> 0 | J72: =VALUE('IQEF Intake Form'!O74) -> 0 | K72: =VALUE('IQEF Intake Form'!P74) -> 0 | L72: =VALUE('IQEF Intake Form'!Q74) -> 0 | M72: =VALUE('IQEF Intake Form'!R74) -> 0 | N72: =VALUE('IQEF Intake Form'!S74) -> 0 | O72: =VALUE('IQEF Intake Form'!T74) -> 0 | P72: =VALUE('IQEF Intake Form'!U74) -> 0 | Q72: =VALUE('IQEF Intake Form'!V74) -> 0 | R72: =VALUE('IQEF Intake Form'!W74) -> 0
A73: =VALUE('IQEF Intake Form'!F75) -> 0 | B73: =VALUE('IQEF Intake Form'!G75) ->  | C73: =VALUE('IQEF Intake Form'!H75) ->  | D73: =VALUE('IQEF Intake Form'!I75) ->  | E73: =VALUE('IQEF Intake Form'!J75) ->  | F73: =VALUE('IQEF Intake Form'!K75) ->  | G73: =VALUE('IQEF Intake Form'!L75) ->  | H73: =VALUE('IQEF Intake Form'!M75) -> 0 | I73: =VALUE('IQEF Intake Form'!N75) -> 0 | J73: =VALUE('IQEF Intake Form'!O75) -> 0 | K73: =VALUE('IQEF Intake Form'!P75) -> 0 | L73: =VALUE('IQEF Intake Form'!Q75) -> 0 | M73: =VALUE('IQEF Intake Form'!R75) -> 0 | N73: =VALUE('IQEF Intake Form'!S75) -> 0 | O73: =VALUE('IQEF Intake Form'!T75) -> 0 | P73: =VALUE('IQEF Intake Form'!U75) -> 0 | Q73: =VALUE('IQEF Intake Form'!V75) -> 0 | R73: =VALUE('IQEF Intake Form'!W75) -> 0
A74: =VALUE('IQEF Intake Form'!F76) ->  | B74: =VALUE('IQEF Intake Form'!G76) -> 0 | C74: =VALUE('IQEF Intake Form'!H76) -> 0 | D74: =VALUE('IQEF Intake Form'!I76) -> 0 | E74: =VALUE('IQEF Intake Form'!J76) -> 0 | F74: =VALUE('IQEF Intake Form'!K76) ->  | G74: =VALUE('IQEF Intake Form'!L76) -> 0 | H74: =VALUE('IQEF Intake Form'!M76) -> 0 | I74: =VALUE('IQEF Intake Form'!N76) -> 0 | J74: =VALUE('IQEF Intake Form'!O76) -> 0 | K74: =VALUE('IQEF Intake Form'!P76) -> 0 | L74: =VALUE('IQEF Intake Form'!Q76) -> 0 | M74: =VALUE('IQEF Intake Form'!R76) -> 0 | N74: =VALUE('IQEF Intake Form'!S76) -> 0 | O74: =VALUE('IQEF Intake Form'!T76) -> 0 | P74: =VALUE('IQEF Intake Form'!U76) -> 0 | Q74: =VALUE('IQEF Intake Form'!V76) -> 0 | R74: =VALUE('IQEF Intake Form'!W76) -> 0
A75: =VALUE('IQEF Intake Form'!F77) ->  | B75: =VALUE('IQEF Intake Form'!G77) -> 0 | C75: =VALUE('IQEF Intake Form'!H77) -> 0 | D75: =VALUE('IQEF Intake Form'!I77) -> 0 | E75: =VALUE('IQEF Intake Form'!J77) -> 0 | F75: =VALUE('IQEF Intake Form'!K77) ->  | G75: =VALUE('IQEF Intake Form'!L77) -> 0 | H75: =VALUE('IQEF Intake Form'!M77) -> 0 | I75: =VALUE('IQEF Intake Form'!N77) -> 0 | J75: =VALUE('IQEF Intake Form'!O77) -> 0 | K75: =VALUE('IQEF Intake Form'!P77) -> 0 | L75: =VALUE('IQEF Intake Form'!Q77) -> 0 | M75: =VALUE('IQEF Intake Form'!R77) -> 0 | N75: =VALUE('IQEF Intake Form'!S77) -> 0 | O75: =VALUE('IQEF Intake Form'!T77) -> 0 | P75: =VALUE('IQEF Intake Form'!U77) -> 0 | Q75: =VALUE('IQEF Intake Form'!V77) -> 0 | R75: =VALUE('IQEF Intake Form'!W77) -> 0
A76: =VALUE('IQEF Intake Form'!F78) -> 0 | B76: =VALUE('IQEF Intake Form'!G78) -> 0 | C76: =VALUE('IQEF Intake Form'!H78) -> 0 | D76: =VALUE('IQEF Intake Form'!I78) -> 0 | E76: =VALUE('IQEF Intake Form'!J78) -> 0 | F76: =VALUE('IQEF Intake Form'!K78) -> 0 | G76: =VALUE('IQEF Intake Form'!L78) -> 0 | H76: =VALUE('IQEF Intake Form'!M78) -> 0 | I76: =VALUE('IQEF Intake Form'!N78) -> 0 | J76: =VALUE('IQEF Intake Form'!O78) -> 0 | K76: =VALUE('IQEF Intake Form'!P78) -> 0 | L76: =VALUE('IQEF Intake Form'!Q78) -> 0 | M76: =VALUE('IQEF Intake Form'!R78) -> 0 | N76: =VALUE('IQEF Intake Form'!S78) -> 0 | O76: =VALUE('IQEF Intake Form'!T78) -> 0 | P76: =VALUE('IQEF Intake Form'!U78) -> 0 | Q76: =VALUE('IQEF Intake Form'!V78) -> 0 | R76: =VALUE('IQEF Intake Form'!W78) -> 0
A77: =VALUE('IQEF Intake Form'!F79) ->  | B77: =VALUE('IQEF Intake Form'!G79) -> 0 | C77: =VALUE('IQEF Intake Form'!H79) -> 0 | D77: =VALUE('IQEF Intake Form'!I79) -> 0 | E77: =VALUE('IQEF Intake Form'!J79) -> 0 | F77: =VALUE('IQEF Intake Form'!K79) -> 0 | G77: =VALUE('IQEF Intake Form'!L79) -> 0 | H77: =VALUE('IQEF Intake Form'!M79) -> 0 | I77: =VALUE('IQEF Intake Form'!N79) -> 0 | J77: =VALUE('IQEF Intake Form'!O79) -> 0 | K77: =VALUE('IQEF Intake Form'!P79) -> 0 | L77: =VALUE('IQEF Intake Form'!Q79) -> 0 | M77: =VALUE('IQEF Intake Form'!R79) -> 0 | N77: =VALUE('IQEF Intake Form'!S79) -> 0 | O77: =VALUE('IQEF Intake Form'!T79) -> 0 | P77: =VALUE('IQEF Intake Form'!U79) -> 0 | Q77: =VALUE('IQEF Intake Form'!V79) -> 0 | R77: =VALUE('IQEF Intake Form'!W79) -> 0
A78: =VALUE('IQEF Intake Form'!F80) ->  | B78: =VALUE('IQEF Intake Form'!G80) ->  | C78: =VALUE('IQEF Intake Form'!H80) ->  | D78: =VALUE('IQEF Intake Form'!I80) ->  | E78: =VALUE('IQEF Intake Form'!J80) ->  | F78: =VALUE('IQEF Intake Form'!K80) ->  | G78: =VALUE('IQEF Intake Form'!L80) -> 0 | H78: =VALUE('IQEF Intake Form'!M80) -> 0 | I78: =VALUE('IQEF Intake Form'!N80) -> 0 | J78: =VALUE('IQEF Intake Form'!O80) -> 0 | K78: =VALUE('IQEF Intake Form'!P80) -> 0 | L78: =VALUE('IQEF Intake Form'!Q80) -> 0 | M78: =VALUE('IQEF Intake Form'!R80) -> 0 | N78: =VALUE('IQEF Intake Form'!S80) -> 0 | O78: =VALUE('IQEF Intake Form'!T80) -> 0 | P78: =VALUE('IQEF Intake Form'!U80) -> 0 | Q78: =VALUE('IQEF Intake Form'!V80) -> 0 | R78: =VALUE('IQEF Intake Form'!W80) -> 0
A79: =VALUE('IQEF Intake Form'!F81) -> 0 | B79: =VALUE('IQEF Intake Form'!G81) -> 0 | C79: =VALUE('IQEF Intake Form'!H81) -> 0 | D79: =VALUE('IQEF Intake Form'!I81) -> 0 | E79: =VALUE('IQEF Intake Form'!J81) ->  | F79: =VALUE('IQEF Intake Form'!K81) -> 0 | G79: =VALUE('IQEF Intake Form'!L81) -> 0 | H79: =VALUE('IQEF Intake Form'!M81) -> 0 | I79: =VALUE('IQEF Intake Form'!N81) -> 0 | J79: =VALUE('IQEF Intake Form'!O81) -> 0 | K79: =VALUE('IQEF Intake Form'!P81) -> 0 | L79: =VALUE('IQEF Intake Form'!Q81) -> 0 | M79: =VALUE('IQEF Intake Form'!R81) -> 0 | N79: =VALUE('IQEF Intake Form'!S81) -> 0 | O79: =VALUE('IQEF Intake Form'!T81) -> 0 | P79: =VALUE('IQEF Intake Form'!U81) -> 0 | Q79: =VALUE('IQEF Intake Form'!V81) -> 0 | R79: =VALUE('IQEF Intake Form'!W81) -> 0
A80: =VALUE('IQEF Intake Form'!F82) -> 0 | B80: =VALUE('IQEF Intake Form'!G82) -> 0 | C80: =VALUE('IQEF Intake Form'!H82) -> 0 | D80: =VALUE('IQEF Intake Form'!I82) -> 0 | E80: =VALUE('IQEF Intake Form'!J82) ->  | F80: =VALUE('IQEF Intake Form'!K82) -> 0 | G80: =VALUE('IQEF Intake Form'!L82) -> 0 | H80: =VALUE('IQEF Intake Form'!M82) -> 0 | I80: =VALUE('IQEF Intake Form'!N82) -> 0 | J80: =VALUE('IQEF Intake Form'!O82) -> 0 | K80: =VALUE('IQEF Intake Form'!P82) -> 0 | L80: =VALUE('IQEF Intake Form'!Q82) -> 0 | M80: =VALUE('IQEF Intake Form'!R82) -> 0 | N80: =VALUE('IQEF Intake Form'!S82) -> 0 | O80: =VALUE('IQEF Intake Form'!T82) -> 0 | P80: =VALUE('IQEF Intake Form'!U82) -> 0 | Q80: =VALUE('IQEF Intake Form'!V82) -> 0 | R80: =VALUE('IQEF Intake Form'!W82) -> 0
A81: =VALUE('IQEF Intake Form'!F83) -> 0 | B81: =VALUE('IQEF Intake Form'!G83) -> 0 | C81: =VALUE('IQEF Intake Form'!H83) -> 0 | D81: =VALUE('IQEF Intake Form'!I83) -> 0 | E81: =VALUE('IQEF Intake Form'!J83) ->  | F81: =VALUE('IQEF Intake Form'!K83) -> 0 | G81: =VALUE('IQEF Intake Form'!L83) -> 0 | H81: =VALUE('IQEF Intake Form'!M83) -> 0 | I81: =VALUE('IQEF Intake Form'!N83) -> 0 | J81: =VALUE('IQEF Intake Form'!O83) -> 0 | K81: =VALUE('IQEF Intake Form'!P83) -> 0 | L81: =VALUE('IQEF Intake Form'!Q83) -> 0 | M81: =VALUE('IQEF Intake Form'!R83) -> 0 | N81: =VALUE('IQEF Intake Form'!S83) -> 0 | O81: =VALUE('IQEF Intake Form'!T83) -> 0 | P81: =VALUE('IQEF Intake Form'!U83) -> 0 | Q81: =VALUE('IQEF Intake Form'!V83) -> 0 | R81: =VALUE('IQEF Intake Form'!W83) -> 0
A82: =VALUE('IQEF Intake Form'!F84) -> 0 | B82: =VALUE('IQEF Intake Form'!G84) -> 0 | C82: =VALUE('IQEF Intake Form'!H84) -> 0 | D82: =VALUE('IQEF Intake Form'!I84) -> 0 | E82: =VALUE('IQEF Intake Form'!J84) ->  | F82: =VALUE('IQEF Intake Form'!K84) -> 0 | G82: =VALUE('IQEF Intake Form'!L84) -> 0 | H82: =VALUE('IQEF Intake Form'!M84) -> 0 | I82: =VALUE('IQEF Intake Form'!N84) -> 0 | J82: =VALUE('IQEF Intake Form'!O84) -> 0 | K82: =VALUE('IQEF Intake Form'!P84) -> 0 | L82: =VALUE('IQEF Intake Form'!Q84) -> 0 | M82: =VALUE('IQEF Intake Form'!R84) -> 0 | N82: =VALUE('IQEF Intake Form'!S84) -> 0 | O82: =VALUE('IQEF Intake Form'!T84) -> 0 | P82: =VALUE('IQEF Intake Form'!U84) -> 0 | Q82: =VALUE('IQEF Intake Form'!V84) -> 0 | R82: =VALUE('IQEF Intake Form'!W84) -> 0
A83: =VALUE('IQEF Intake Form'!F85) -> 0 | B83: =VALUE('IQEF Intake Form'!G85) -> 0 | C83: =VALUE('IQEF Intake Form'!H85) -> 0 | D83: =VALUE('IQEF Intake Form'!I85) -> 0 | E83: =VALUE('IQEF Intake Form'!J85) ->  | F83: =VALUE('IQEF Intake Form'!K85) -> 0 | G83: =VALUE('IQEF Intake Form'!L85) -> 0 | H83: =VALUE('IQEF Intake Form'!M85) -> 0 | I83: =VALUE('IQEF Intake Form'!N85) -> 0 | J83: =VALUE('IQEF Intake Form'!O85) -> 0 | K83: =VALUE('IQEF Intake Form'!P85) -> 0 | L83: =VALUE('IQEF Intake Form'!Q85) -> 0 | M83: =VALUE('IQEF Intake Form'!R85) -> 0 | N83: =VALUE('IQEF Intake Form'!S85) -> 0 | O83: =VALUE('IQEF Intake Form'!T85) -> 0 | P83: =VALUE('IQEF Intake Form'!U85) -> 0 | Q83: =VALUE('IQEF Intake Form'!V85) -> 0 | R83: =VALUE('IQEF Intake Form'!W85) -> 0
A84: =VALUE('IQEF Intake Form'!F86) -> 0 | B84: =VALUE('IQEF Intake Form'!G86) -> 0 | C84: =VALUE('IQEF Intake Form'!H86) -> 0 | D84: =VALUE('IQEF Intake Form'!I86) -> 0 | E84: =VALUE('IQEF Intake Form'!J86) ->  | F84: =VALUE('IQEF Intake Form'!K86) -> 0 | G84: =VALUE('IQEF Intake Form'!L86) -> 0 | H84: =VALUE('IQEF Intake Form'!M86) -> 0 | I84: =VALUE('IQEF Intake Form'!N86) -> 0 | J84: =VALUE('IQEF Intake Form'!O86) -> 0 | K84: =VALUE('IQEF Intake Form'!P86) -> 0 | L84: =VALUE('IQEF Intake Form'!Q86) -> 0 | M84: =VALUE('IQEF Intake Form'!R86) -> 0 | N84: =VALUE('IQEF Intake Form'!S86) -> 0 | O84: =VALUE('IQEF Intake Form'!T86) -> 0 | P84: =VALUE('IQEF Intake Form'!U86) -> 0 | Q84: =VALUE('IQEF Intake Form'!V86) -> 0 | R84: =VALUE('IQEF Intake Form'!W86) -> 0
A85: =VALUE('IQEF Intake Form'!F87) -> 0 | B85: =VALUE('IQEF Intake Form'!G87) -> 0 | C85: =VALUE('IQEF Intake Form'!H87) -> 0 | D85: =VALUE('IQEF Intake Form'!I87) -> 0 | E85: =VALUE('IQEF Intake Form'!J87) -> 0 | F85: =VALUE('IQEF Intake Form'!K87) -> 0 | G85: =VALUE('IQEF Intake Form'!L87) -> 0 | H85: =VALUE('IQEF Intake Form'!M87) -> 0 | I85: =VALUE('IQEF Intake Form'!N87) -> 0 | J85: =VALUE('IQEF Intake Form'!O87) -> 0 | K85: =VALUE('IQEF Intake Form'!P87) -> 0 | L85: =VALUE('IQEF Intake Form'!Q87) -> 0 | M85: =VALUE('IQEF Intake Form'!R87) -> 0 | N85: =VALUE('IQEF Intake Form'!S87) -> 0 | O85: =VALUE('IQEF Intake Form'!T87) -> 0 | P85: =VALUE('IQEF Intake Form'!U87) -> 0 | Q85: =VALUE('IQEF Intake Form'!V87) -> 0 | R85: =VALUE('IQEF Intake Form'!W87) -> 0
A86: =VALUE('IQEF Intake Form'!F88) -> 0 | B86: =VALUE('IQEF Intake Form'!G88) -> 0 | C86: =VALUE('IQEF Intake Form'!H88) -> 0 | D86: =VALUE('IQEF Intake Form'!I88) -> 0 | E86: =VALUE('IQEF Intake Form'!J88) -> 0 | F86: =VALUE('IQEF Intake Form'!K88) -> 0 | G86: =VALUE('IQEF Intake Form'!L88) -> 0 | H86: =VALUE('IQEF Intake Form'!M88) -> 0 | I86: =VALUE('IQEF Intake Form'!N88) -> 0 | J86: =VALUE('IQEF Intake Form'!O88) -> 0 | K86: =VALUE('IQEF Intake Form'!P88) -> 0 | L86: =VALUE('IQEF Intake Form'!Q88) -> 0 | M86: =VALUE('IQEF Intake Form'!R88) -> 0 | N86: =VALUE('IQEF Intake Form'!S88) -> 0 | O86: =VALUE('IQEF Intake Form'!T88) -> 0 | P86: =VALUE('IQEF Intake Form'!U88) -> 0 | Q86: =VALUE('IQEF Intake Form'!V88) -> 0 | R86: =VALUE('IQEF Intake Form'!W88) -> 0
A87: =VALUE('IQEF Intake Form'!F89) -> 0 | B87: =VALUE('IQEF Intake Form'!G89) -> 0 | C87: =VALUE('IQEF Intake Form'!H89) -> 0 | D87: =VALUE('IQEF Intake Form'!I89) -> 0 | E87: =VALUE('IQEF Intake Form'!J89) -> 0 | F87: =VALUE('IQEF Intake Form'!K89) -> 0 | G87: =VALUE('IQEF Intake Form'!L89) -> 0 | H87: =VALUE('IQEF Intake Form'!M89) -> 0 | I87: =VALUE('IQEF Intake Form'!N89) -> 0 | J87: =VALUE('IQEF Intake Form'!O89) -> 0 | K87: =VALUE('IQEF Intake Form'!P89) -> 0 | L87: =VALUE('IQEF Intake Form'!Q89) -> 0 | M87: =VALUE('IQEF Intake Form'!R89) -> 0 | N87: =VALUE('IQEF Intake Form'!S89) -> 0 | O87: =VALUE('IQEF Intake Form'!T89) -> 0 | P87: =VALUE('IQEF Intake Form'!U89) -> 0 | Q87: =VALUE('IQEF Intake Form'!V89) -> 0 | R87: =VALUE('IQEF Intake Form'!W89) -> 0
A88: =VALUE('IQEF Intake Form'!F90) -> 0 | B88: =VALUE('IQEF Intake Form'!G90) -> 0 | C88: =VALUE('IQEF Intake Form'!H90) -> 0 | D88: =VALUE('IQEF Intake Form'!I90) -> 0 | E88: =VALUE('IQEF Intake Form'!J90) -> 0 | F88: =VALUE('IQEF Intake Form'!K90) -> 0 | G88: =VALUE('IQEF Intake Form'!L90) -> 0 | H88: =VALUE('IQEF Intake Form'!M90) -> 0 | I88: =VALUE('IQEF Intake Form'!N90) -> 0 | J88: =VALUE('IQEF Intake Form'!O90) -> 0 | K88: =VALUE('IQEF Intake Form'!P90) -> 0 | L88: =VALUE('IQEF Intake Form'!Q90) -> 0 | M88: =VALUE('IQEF Intake Form'!R90) -> 0 | N88: =VALUE('IQEF Intake Form'!S90) -> 0 | O88: =VALUE('IQEF Intake Form'!T90) -> 0 | P88: =VALUE('IQEF Intake Form'!U90) -> 0 | Q88: =VALUE('IQEF Intake Form'!V90) -> 0 | R88: =VALUE('IQEF Intake Form'!W90) -> 0
A89: =VALUE('IQEF Intake Form'!F91) -> 0 | B89: =VALUE('IQEF Intake Form'!G91) -> 0 | C89: =VALUE('IQEF Intake Form'!H91) -> 0 | D89: =VALUE('IQEF Intake Form'!I91) -> 0 | E89: =VALUE('IQEF Intake Form'!J91) -> 0 | F89: =VALUE('IQEF Intake Form'!K91) -> 0 | G89: =VALUE('IQEF Intake Form'!L91) -> 0 | H89: =VALUE('IQEF Intake Form'!M91) -> 0 | I89: =VALUE('IQEF Intake Form'!N91) -> 0 | J89: =VALUE('IQEF Intake Form'!O91) -> 0 | K89: =VALUE('IQEF Intake Form'!P91) -> 0 | L89: =VALUE('IQEF Intake Form'!Q91) -> 0 | M89: =VALUE('IQEF Intake Form'!R91) -> 0 | N89: =VALUE('IQEF Intake Form'!S91) -> 0 | O89: =VALUE('IQEF Intake Form'!T91) -> 0 | P89: =VALUE('IQEF Intake Form'!U91) -> 0 | Q89: =VALUE('IQEF Intake Form'!V91) -> 0 | R89: =VALUE('IQEF Intake Form'!W91) -> 0
A90: =VALUE('IQEF Intake Form'!F92) -> 0 | B90: =VALUE('IQEF Intake Form'!G92) -> 0 | C90: =VALUE('IQEF Intake Form'!H92) -> 0 | D90: =VALUE('IQEF Intake Form'!I92) -> 0 | E90: =VALUE('IQEF Intake Form'!J92) -> 0 | F90: =VALUE('IQEF Intake Form'!K92) -> 0 | G90: =VALUE('IQEF Intake Form'!L92) -> 0 | H90: =VALUE('IQEF Intake Form'!M92) -> 0 | I90: =VALUE('IQEF Intake Form'!N92) -> 0 | J90: =VALUE('IQEF Intake Form'!O92) -> 0 | K90: =VALUE('IQEF Intake Form'!P92) -> 0 | L90: =VALUE('IQEF Intake Form'!Q92) -> 0 | M90: =VALUE('IQEF Intake Form'!R92) -> 0 | N90: =VALUE('IQEF Intake Form'!S92) -> 0 | O90: =VALUE('IQEF Intake Form'!T92) -> 0 | P90: =VALUE('IQEF Intake Form'!U92) -> 0 | Q90: =VALUE('IQEF Intake Form'!V92) -> 0 | R90: =VALUE('IQEF Intake Form'!W92) -> 0
A91: =VALUE('IQEF Intake Form'!F93) -> 0 | B91: =VALUE('IQEF Intake Form'!G93) -> 0 | C91: =VALUE('IQEF Intake Form'!H93) -> 0 | D91: =VALUE('IQEF Intake Form'!I93) -> 0 | E91: =VALUE('IQEF Intake Form'!J93) -> 0 | F91: =VALUE('IQEF Intake Form'!K93) -> 0 | G91: =VALUE('IQEF Intake Form'!L93) -> 0 | H91: =VALUE('IQEF Intake Form'!M93) -> 0 | I91: =VALUE('IQEF Intake Form'!N93) -> 0 | J91: =VALUE('IQEF Intake Form'!O93) -> 0 | K91: =VALUE('IQEF Intake Form'!P93) -> 0 | L91: =VALUE('IQEF Intake Form'!Q93) -> 0 | M91: =VALUE('IQEF Intake Form'!R93) -> 0 | N91: =VALUE('IQEF Intake Form'!S93) -> 0 | O91: =VALUE('IQEF Intake Form'!T93) -> 0 | P91: =VALUE('IQEF Intake Form'!U93) -> 0 | Q91: =VALUE('IQEF Intake Form'!V93) -> 0 | R91: =VALUE('IQEF Intake Form'!W93) -> 0
A92: =VALUE('IQEF Intake Form'!F94) -> 0 | B92: =VALUE('IQEF Intake Form'!G94) -> 0 | C92: =VALUE('IQEF Intake Form'!H94) -> 0 | D92: =VALUE('IQEF Intake Form'!I94) -> 0 | E92: =VALUE('IQEF Intake Form'!J94) -> 0 | F92: =VALUE('IQEF Intake Form'!K94) -> 0 | G92: =VALUE('IQEF Intake Form'!L94) -> 0 | H92: =VALUE('IQEF Intake Form'!M94) -> 0 | I92: =VALUE('IQEF Intake Form'!N94) -> 0 | J92: =VALUE('IQEF Intake Form'!O94) -> 0 | K92: =VALUE('IQEF Intake Form'!P94) -> 0 | L92: =VALUE('IQEF Intake Form'!Q94) -> 0 | M92: =VALUE('IQEF Intake Form'!R94) -> 0 | N92: =VALUE('IQEF Intake Form'!S94) -> 0 | O92: =VALUE('IQEF Intake Form'!T94) -> 0 | P92: =VALUE('IQEF Intake Form'!U94) -> 0 | Q92: =VALUE('IQEF Intake Form'!V94) -> 0 | R92: =VALUE('IQEF Intake Form'!W94) -> 0
A93: =VALUE('IQEF Intake Form'!F95) ->  | B93: =VALUE('IQEF Intake Form'!G95) -> 0 | C93: =VALUE('IQEF Intake Form'!H95) -> 0 | D93: =VALUE('IQEF Intake Form'!I95) -> 0 | E93: =VALUE('IQEF Intake Form'!J95) -> 0 | F93: =VALUE('IQEF Intake Form'!K95) -> 0 | G93: =VALUE('IQEF Intake Form'!L95) -> 0 | H93: =VALUE('IQEF Intake Form'!M95) -> 0 | I93: =VALUE('IQEF Intake Form'!N95) -> 0 | J93: =VALUE('IQEF Intake Form'!O95) -> 0 | K93: =VALUE('IQEF Intake Form'!P95) -> 0 | L93: =VALUE('IQEF Intake Form'!Q95) -> 0 | M93: =VALUE('IQEF Intake Form'!R95) -> 0 | N93: =VALUE('IQEF Intake Form'!S95) -> 0 | O93: =VALUE('IQEF Intake Form'!T95) -> 0 | P93: =VALUE('IQEF Intake Form'!U95) -> 0 | Q93: =VALUE('IQEF Intake Form'!V95) -> 0 | R93: =VALUE('IQEF Intake Form'!W95) -> 0
A94: =VALUE('IQEF Intake Form'!F96) ->  | B94: =VALUE('IQEF Intake Form'!G96) -> 0 | C94: =VALUE('IQEF Intake Form'!H96) -> 0 | D94: =VALUE('IQEF Intake Form'!I96) -> 0 | E94: =VALUE('IQEF Intake Form'!J96) -> 0 | F94: =VALUE('IQEF Intake Form'!K96) -> 0 | G94: =VALUE('IQEF Intake Form'!L96) -> 0 | H94: =VALUE('IQEF Intake Form'!M96) -> 0 | I94: =VALUE('IQEF Intake Form'!N96) -> 0 | J94: =VALUE('IQEF Intake Form'!O96) -> 0 | K94: =VALUE('IQEF Intake Form'!P96) -> 0 | L94: =VALUE('IQEF Intake Form'!Q96) -> 0 | M94: =VALUE('IQEF Intake Form'!R96) -> 0 | N94: =VALUE('IQEF Intake Form'!S96) -> 0 | O94: =VALUE('IQEF Intake Form'!T96) -> 0 | P94: =VALUE('IQEF Intake Form'!U96) -> 0 | Q94: =VALUE('IQEF Intake Form'!V96) -> 0 | R94: =VALUE('IQEF Intake Form'!W96) -> 0
A95: =VALUE('IQEF Intake Form'!F97) ->  | B95: =VALUE('IQEF Intake Form'!G97) ->  | C95: =VALUE('IQEF Intake Form'!H97) ->  | D95: =VALUE('IQEF Intake Form'!I97) ->  | E95: =VALUE('IQEF Intake Form'!J97) ->  | F95: =VALUE('IQEF Intake Form'!K97) ->  | G95: =VALUE('IQEF Intake Form'!L97) ->  | H95: =VALUE('IQEF Intake Form'!M97) ->  | I95: =VALUE('IQEF Intake Form'!N97) ->  | J95: =VALUE('IQEF Intake Form'!O97) -> 0 | K95: =VALUE('IQEF Intake Form'!P97) -> 0 | L95: =VALUE('IQEF Intake Form'!Q97) -> 0 | M95: =VALUE('IQEF Intake Form'!R97) -> 0 | N95: =VALUE('IQEF Intake Form'!S97) -> 0 | O95: =VALUE('IQEF Intake Form'!T97) -> 0 | P95: =VALUE('IQEF Intake Form'!U97) -> 0 | Q95: =VALUE('IQEF Intake Form'!V97) -> 0 | R95: =VALUE('IQEF Intake Form'!W97) -> 0
A96: =VALUE('IQEF Intake Form'!F98) -> 0 | B96: =VALUE('IQEF Intake Form'!G98) -> 0 | C96: =VALUE('IQEF Intake Form'!H98) -> 0 | D96: =VALUE('IQEF Intake Form'!I98) -> 0 | E96: =VALUE('IQEF Intake Form'!J98) -> 0 | F96: =VALUE('IQEF Intake Form'!K98) ->  | G96: =VALUE('IQEF Intake Form'!L98) -> 0 | H96: =VALUE('IQEF Intake Form'!M98) -> 0 | I96: =VALUE('IQEF Intake Form'!N98) -> 0 | J96: =VALUE('IQEF Intake Form'!O98) -> 0 | K96: =VALUE('IQEF Intake Form'!P98) -> 0 | L96: =VALUE('IQEF Intake Form'!Q98) -> 0 | M96: =VALUE('IQEF Intake Form'!R98) -> 0 | N96: =VALUE('IQEF Intake Form'!S98) -> 0 | O96: =VALUE('IQEF Intake Form'!T98) -> 0 | P96: =VALUE('IQEF Intake Form'!U98) -> 0 | Q96: =VALUE('IQEF Intake Form'!V98) -> 0 | R96: =VALUE('IQEF Intake Form'!W98) -> 0
A97: =VALUE('IQEF Intake Form'!F99) -> 0 | B97: =VALUE('IQEF Intake Form'!G99) -> 0 | C97: =VALUE('IQEF Intake Form'!H99) -> 0 | D97: =VALUE('IQEF Intake Form'!I99) -> 0 | E97: =VALUE('IQEF Intake Form'!J99) -> 0 | F97: =VALUE('IQEF Intake Form'!K99) ->  | G97: =VALUE('IQEF Intake Form'!L99) -> 0 | H97: =VALUE('IQEF Intake Form'!M99) -> 0 | I97: =VALUE('IQEF Intake Form'!N99) -> 0 | J97: =VALUE('IQEF Intake Form'!O99) -> 0 | K97: =VALUE('IQEF Intake Form'!P99) -> 0 | L97: =VALUE('IQEF Intake Form'!Q99) -> 0 | M97: =VALUE('IQEF Intake Form'!R99) -> 0 | N97: =VALUE('IQEF Intake Form'!S99) -> 0 | O97: =VALUE('IQEF Intake Form'!T99) -> 0 | P97: =VALUE('IQEF Intake Form'!U99) -> 0 | Q97: =VALUE('IQEF Intake Form'!V99) -> 0 | R97: =VALUE('IQEF Intake Form'!W99) -> 0
A98: =VALUE('IQEF Intake Form'!F100) -> 0 | B98: =VALUE('IQEF Intake Form'!G100) -> 0 | C98: =VALUE('IQEF Intake Form'!H100) -> 0 | D98: =VALUE('IQEF Intake Form'!I100) -> 0 | E98: =VALUE('IQEF Intake Form'!J100) -> 0 | F98: =VALUE('IQEF Intake Form'!K100) -> 0 | G98: =VALUE('IQEF Intake Form'!L100) -> 0 | H98: =VALUE('IQEF Intake Form'!M100) -> 0 | I98: =VALUE('IQEF Intake Form'!N100) -> 0 | J98: =VALUE('IQEF Intake Form'!O100) -> 0 | K98: =VALUE('IQEF Intake Form'!P100) -> 0 | L98: =VALUE('IQEF Intake Form'!Q100) -> 0 | M98: =VALUE('IQEF Intake Form'!R100) -> 0 | N98: =VALUE('IQEF Intake Form'!S100) -> 0 | O98: =VALUE('IQEF Intake Form'!T100) -> 0 | P98: =VALUE('IQEF Intake Form'!U100) -> 0 | Q98: =VALUE('IQEF Intake Form'!V100) -> 0 | R98: =VALUE('IQEF Intake Form'!W100) -> 0
A99: =VALUE('IQEF Intake Form'!F101) ->  | B99: =VALUE('IQEF Intake Form'!G101) -> 0 | C99: =VALUE('IQEF Intake Form'!H101) -> 0 | D99: =VALUE('IQEF Intake Form'!I101) -> 0 | E99: =VALUE('IQEF Intake Form'!J101) -> 0 | F99: =VALUE('IQEF Intake Form'!K101) -> 0 | G99: =VALUE('IQEF Intake Form'!L101) -> 0 | H99: =VALUE('IQEF Intake Form'!M101) -> 0 | I99: =VALUE('IQEF Intake Form'!N101) -> 0 | J99: =VALUE('IQEF Intake Form'!O101) -> 0 | K99: =VALUE('IQEF Intake Form'!P101) -> 0 | L99: =VALUE('IQEF Intake Form'!Q101) -> 0 | M99: =VALUE('IQEF Intake Form'!R101) -> 0 | N99: =VALUE('IQEF Intake Form'!S101) -> 0 | O99: =VALUE('IQEF Intake Form'!T101) -> 0 | P99: =VALUE('IQEF Intake Form'!U101) -> 0 | Q99: =VALUE('IQEF Intake Form'!V101) -> 0 | R99: =VALUE('IQEF Intake Form'!W101) -> 0
A100: =VALUE('IQEF Intake Form'!F102) ->  | B100: =VALUE('IQEF Intake Form'!G102) -> 0 | C100: =VALUE('IQEF Intake Form'!H102) -> 0 | D100: =VALUE('IQEF Intake Form'!I102) -> 0 | E100: =VALUE('IQEF Intake Form'!J102) -> 0 | F100: =VALUE('IQEF Intake Form'!K102) -> 0 | G100: =VALUE('IQEF Intake Form'!L102) -> 0 | H100: =VALUE('IQEF Intake Form'!M102) -> 0 | I100: =VALUE('IQEF Intake Form'!N102) -> 0 | J100: =VALUE('IQEF Intake Form'!O102) -> 0 | K100: =VALUE('IQEF Intake Form'!P102) -> 0 | L100: =VALUE('IQEF Intake Form'!Q102) -> 0 | M100: =VALUE('IQEF Intake Form'!R102) -> 0 | N100: =VALUE('IQEF Intake Form'!S102) -> 0 | O100: =VALUE('IQEF Intake Form'!T102) -> 0 | P100: =VALUE('IQEF Intake Form'!U102) -> 0 | Q100: =VALUE('IQEF Intake Form'!V102) -> 0 | R100: =VALUE('IQEF Intake Form'!W102) -> 0
A101: =VALUE('IQEF Intake Form'!F103) -> 0 | B101: =VALUE('IQEF Intake Form'!G103) -> 0 | C101: =VALUE('IQEF Intake Form'!H103) -> 0 | D101: =VALUE('IQEF Intake Form'!I103) -> 0 | E101: =VALUE('IQEF Intake Form'!J103) -> 0 | F101: =VALUE('IQEF Intake Form'!K103) -> 0 | G101: =VALUE('IQEF Intake Form'!L103) -> 0 | H101: =VALUE('IQEF Intake Form'!M103) -> 0 | I101: =VALUE('IQEF Intake Form'!N103) -> 0 | J101: =VALUE('IQEF Intake Form'!O103) -> 0 | K101: =VALUE('IQEF Intake Form'!P103) -> 0 | L101: =VALUE('IQEF Intake Form'!Q103) -> 0 | M101: =VALUE('IQEF Intake Form'!R103) -> 0 | N101: =VALUE('IQEF Intake Form'!S103) -> 0 | O101: =VALUE('IQEF Intake Form'!T103) -> 0 | P101: =VALUE('IQEF Intake Form'!U103) -> 0 | Q101: =VALUE('IQEF Intake Form'!V103) -> 0 | R101: =VALUE('IQEF Intake Form'!W103) -> 0
A102: =VALUE('IQEF Intake Form'!F104) -> 0 | B102: =VALUE('IQEF Intake Form'!G104) -> 0 | C102: =VALUE('IQEF Intake Form'!H104) -> 0 | D102: =VALUE('IQEF Intake Form'!I104) -> 0 | E102: =VALUE('IQEF Intake Form'!J104) -> 0 | F102: =VALUE('IQEF Intake Form'!K104) -> 0 | G102: =VALUE('IQEF Intake Form'!L104) -> 0 | H102: =VALUE('IQEF Intake Form'!M104) -> 0 | I102: =VALUE('IQEF Intake Form'!N104) -> 0 | J102: =VALUE('IQEF Intake Form'!O104) -> 0 | K102: =VALUE('IQEF Intake Form'!P104) -> 0 | L102: =VALUE('IQEF Intake Form'!Q104) -> 0 | M102: =VALUE('IQEF Intake Form'!R104) -> 0 | N102: =VALUE('IQEF Intake Form'!S104) -> 0 | O102: =VALUE('IQEF Intake Form'!T104) -> 0 | P102: =VALUE('IQEF Intake Form'!U104) -> 0 | Q102: =VALUE('IQEF Intake Form'!V104) -> 0 | R102: =VALUE('IQEF Intake Form'!W104) -> 0
A103: =VALUE('IQEF Intake Form'!F105) -> 0 | B103: =VALUE('IQEF Intake Form'!G105) -> 0 | C103: =VALUE('IQEF Intake Form'!H105) -> 0 | D103: =VALUE('IQEF Intake Form'!I105) -> 0 | E103: =VALUE('IQEF Intake Form'!J105) -> 0 | F103: =VALUE('IQEF Intake Form'!K105) -> 0 | G103: =VALUE('IQEF Intake Form'!L105) -> 0 | H103: =VALUE('IQEF Intake Form'!M105) -> 0 | I103: =VALUE('IQEF Intake Form'!N105) -> 0 | J103: =VALUE('IQEF Intake Form'!O105) -> 0 | K103: =VALUE('IQEF Intake Form'!P105) -> 0 | L103: =VALUE('IQEF Intake Form'!Q105) -> 0 | M103: =VALUE('IQEF Intake Form'!R105) -> 0 | N103: =VALUE('IQEF Intake Form'!S105) -> 0 | O103: =VALUE('IQEF Intake Form'!T105) -> 0 | P103: =VALUE('IQEF Intake Form'!U105) -> 0 | Q103: =VALUE('IQEF Intake Form'!V105) -> 0 | R103: =VALUE('IQEF Intake Form'!W105) -> 0
A104: =VALUE('IQEF Intake Form'!F106) -> 0 | B104: =VALUE('IQEF Intake Form'!G106) -> 0 | C104: =VALUE('IQEF Intake Form'!H106) -> 0 | D104: =VALUE('IQEF Intake Form'!I106) -> 0 | E104: =VALUE('IQEF Intake Form'!J106) -> 0 | F104: =VALUE('IQEF Intake Form'!K106) -> 0 | G104: =VALUE('IQEF Intake Form'!L106) -> 0 | H104: =VALUE('IQEF Intake Form'!M106) -> 0 | I104: =VALUE('IQEF Intake Form'!N106) -> 0 | J104: =VALUE('IQEF Intake Form'!O106) -> 0 | K104: =VALUE('IQEF Intake Form'!P106) -> 0 | L104: =VALUE('IQEF Intake Form'!Q106) -> 0 | M104: =VALUE('IQEF Intake Form'!R106) -> 0 | N104: =VALUE('IQEF Intake Form'!S106) -> 0 | O104: =VALUE('IQEF Intake Form'!T106) -> 0 | P104: =VALUE('IQEF Intake Form'!U106) -> 0 | Q104: =VALUE('IQEF Intake Form'!V106) -> 0 | R104: =VALUE('IQEF Intake Form'!W106) -> 0
A105: =VALUE('IQEF Intake Form'!F107) -> 0 | B105: =VALUE('IQEF Intake Form'!G107) -> 0 | C105: =VALUE('IQEF Intake Form'!H107) -> 0 | D105: =VALUE('IQEF Intake Form'!I107) -> 0 | E105: =VALUE('IQEF Intake Form'!J107) -> 0 | F105: =VALUE('IQEF Intake Form'!K107) -> 0 | G105: =VALUE('IQEF Intake Form'!L107) -> 0 | H105: =VALUE('IQEF Intake Form'!M107) -> 0 | I105: =VALUE('IQEF Intake Form'!N107) -> 0 | J105: =VALUE('IQEF Intake Form'!O107) -> 0 | K105: =VALUE('IQEF Intake Form'!P107) -> 0 | L105: =VALUE('IQEF Intake Form'!Q107) -> 0 | M105: =VALUE('IQEF Intake Form'!R107) -> 0 | N105: =VALUE('IQEF Intake Form'!S107) -> 0 | O105: =VALUE('IQEF Intake Form'!T107) -> 0 | P105: =VALUE('IQEF Intake Form'!U107) -> 0 | Q105: =VALUE('IQEF Intake Form'!V107) -> 0 | R105: =VALUE('IQEF Intake Form'!W107) -> 0
A106: =VALUE('IQEF Intake Form'!F108) -> 0 | B106: =VALUE('IQEF Intake Form'!G108) -> 0 | C106: =VALUE('IQEF Intake Form'!H108) -> 0 | D106: =VALUE('IQEF Intake Form'!I108) -> 0 | E106: =VALUE('IQEF Intake Form'!J108) -> 0 | F106: =VALUE('IQEF Intake Form'!K108) -> 0 | G106: =VALUE('IQEF Intake Form'!L108) -> 0 | H106: =VALUE('IQEF Intake Form'!M108) -> 0 | I106: =VALUE('IQEF Intake Form'!N108) -> 0 | J106: =VALUE('IQEF Intake Form'!O108) -> 0 | K106: =VALUE('IQEF Intake Form'!P108) -> 0 | L106: =VALUE('IQEF Intake Form'!Q108) -> 0 | M106: =VALUE('IQEF Intake Form'!R108) -> 0 | N106: =VALUE('IQEF Intake Form'!S108) -> 0 | O106: =VALUE('IQEF Intake Form'!T108) -> 0 | P106: =VALUE('IQEF Intake Form'!U108) -> 0 | Q106: =VALUE('IQEF Intake Form'!V108) -> 0 | R106: =VALUE('IQEF Intake Form'!W108) -> 0
A107: =VALUE('IQEF Intake Form'!F109) -> 0 | B107: =VALUE('IQEF Intake Form'!G109) -> 0 | C107: =VALUE('IQEF Intake Form'!H109) -> 0 | D107: =VALUE('IQEF Intake Form'!I109) -> 0 | E107: =VALUE('IQEF Intake Form'!J109) -> 0 | F107: =VALUE('IQEF Intake Form'!K109) -> 0 | G107: =VALUE('IQEF Intake Form'!L109) -> 0 | H107: =VALUE('IQEF Intake Form'!M109) -> 0 | I107: =VALUE('IQEF Intake Form'!N109) -> 0 | J107: =VALUE('IQEF Intake Form'!O109) -> 0 | K107: =VALUE('IQEF Intake Form'!P109) -> 0 | L107: =VALUE('IQEF Intake Form'!Q109) -> 0 | M107: =VALUE('IQEF Intake Form'!R109) -> 0 | N107: =VALUE('IQEF Intake Form'!S109) -> 0 | O107: =VALUE('IQEF Intake Form'!T109) -> 0 | P107: =VALUE('IQEF Intake Form'!U109) -> 0 | Q107: =VALUE('IQEF Intake Form'!V109) -> 0 | R107: =VALUE('IQEF Intake Form'!W109) -> 0
A108: =VALUE('IQEF Intake Form'!F110) -> 0 | B108: =VALUE('IQEF Intake Form'!G110) -> 0 | C108: =VALUE('IQEF Intake Form'!H110) -> 0 | D108: =VALUE('IQEF Intake Form'!I110) -> 0 | E108: =VALUE('IQEF Intake Form'!J110) -> 0 | F108: =VALUE('IQEF Intake Form'!K110) -> 0 | G108: =VALUE('IQEF Intake Form'!L110) -> 0 | H108: =VALUE('IQEF Intake Form'!M110) -> 0 | I108: =VALUE('IQEF Intake Form'!N110) -> 0 | J108: =VALUE('IQEF Intake Form'!O110) -> 0 | K108: =VALUE('IQEF Intake Form'!P110) -> 0 | L108: =VALUE('IQEF Intake Form'!Q110) -> 0 | M108: =VALUE('IQEF Intake Form'!R110) -> 0 | N108: =VALUE('IQEF Intake Form'!S110) -> 0 | O108: =VALUE('IQEF Intake Form'!T110) -> 0 | P108: =VALUE('IQEF Intake Form'!U110) -> 0 | Q108: =VALUE('IQEF Intake Form'!V110) -> 0 | R108: =VALUE('IQEF Intake Form'!W110) -> 0
A109: =VALUE('IQEF Intake Form'!F111) -> 0 | B109: =VALUE('IQEF Intake Form'!G111) -> 0 | C109: =VALUE('IQEF Intake Form'!H111) -> 0 | D109: =VALUE('IQEF Intake Form'!I111) -> 0 | E109: =VALUE('IQEF Intake Form'!J111) -> 0 | F109: =VALUE('IQEF Intake Form'!K111) -> 0 | G109: =VALUE('IQEF Intake Form'!L111) -> 0 | H109: =VALUE('IQEF Intake Form'!M111) -> 0 | I109: =VALUE('IQEF Intake Form'!N111) -> 0 | J109: =VALUE('IQEF Intake Form'!O111) -> 0 | K109: =VALUE('IQEF Intake Form'!P111) -> 0 | L109: =VALUE('IQEF Intake Form'!Q111) -> 0 | M109: =VALUE('IQEF Intake Form'!R111) -> 0 | N109: =VALUE('IQEF Intake Form'!S111) -> 0 | O109: =VALUE('IQEF Intake Form'!T111) -> 0 | P109: =VALUE('IQEF Intake Form'!U111) -> 0 | Q109: =VALUE('IQEF Intake Form'!V111) -> 0 | R109: =VALUE('IQEF Intake Form'!W111) -> 0
A110: =VALUE('IQEF Intake Form'!F112) -> 0 | B110: =VALUE('IQEF Intake Form'!G112) -> 0 | C110: =VALUE('IQEF Intake Form'!H112) -> 0 | D110: =VALUE('IQEF Intake Form'!I112) -> 0 | E110: =VALUE('IQEF Intake Form'!J112) -> 0 | F110: =VALUE('IQEF Intake Form'!K112) -> 0 | G110: =VALUE('IQEF Intake Form'!L112) -> 0 | H110: =VALUE('IQEF Intake Form'!M112) -> 0 | I110: =VALUE('IQEF Intake Form'!N112) -> 0 | J110: =VALUE('IQEF Intake Form'!O112) -> 0 | K110: =VALUE('IQEF Intake Form'!P112) -> 0 | L110: =VALUE('IQEF Intake Form'!Q112) -> 0 | M110: =VALUE('IQEF Intake Form'!R112) -> 0 | N110: =VALUE('IQEF Intake Form'!S112) -> 0 | O110: =VALUE('IQEF Intake Form'!T112) -> 0 | P110: =VALUE('IQEF Intake Form'!U112) -> 0 | Q110: =VALUE('IQEF Intake Form'!V112) -> 0 | R110: =VALUE('IQEF Intake Form'!W112) -> 0
A111: =VALUE('IQEF Intake Form'!F113) -> 0 | B111: =VALUE('IQEF Intake Form'!G113) -> 0 | C111: =VALUE('IQEF Intake Form'!H113) -> 0 | D111: =VALUE('IQEF Intake Form'!I113) -> 0 | E111: =VALUE('IQEF Intake Form'!J113) -> 0 | F111: =VALUE('IQEF Intake Form'!K113) -> 0 | G111: =VALUE('IQEF Intake Form'!L113) -> 0 | H111: =VALUE('IQEF Intake Form'!M113) -> 0 | I111: =VALUE('IQEF Intake Form'!N113) -> 0 | J111: =VALUE('IQEF Intake Form'!O113) -> 0 | K111: =VALUE('IQEF Intake Form'!P113) -> 0 | L111: =VALUE('IQEF Intake Form'!Q113) -> 0 | M111: =VALUE('IQEF Intake Form'!R113) -> 0 | N111: =VALUE('IQEF Intake Form'!S113) -> 0 | O111: =VALUE('IQEF Intake Form'!T113) -> 0 | P111: =VALUE('IQEF Intake Form'!U113) -> 0 | Q111: =VALUE('IQEF Intake Form'!V113) -> 0 | R111: =VALUE('IQEF Intake Form'!W113) -> 0
A112: =VALUE('IQEF Intake Form'!F114) -> 0 | B112: =VALUE('IQEF Intake Form'!G114) -> 0 | C112: =VALUE('IQEF Intake Form'!H114) -> 0 | D112: =VALUE('IQEF Intake Form'!I114) -> 0 | E112: =VALUE('IQEF Intake Form'!J114) -> 0 | F112: =VALUE('IQEF Intake Form'!K114) -> 0 | G112: =VALUE('IQEF Intake Form'!L114) -> 0 | H112: =VALUE('IQEF Intake Form'!M114) -> 0 | I112: =VALUE('IQEF Intake Form'!N114) -> 0 | J112: =VALUE('IQEF Intake Form'!O114) -> 0 | K112: =VALUE('IQEF Intake Form'!P114) -> 0 | L112: =VALUE('IQEF Intake Form'!Q114) -> 0 | M112: =VALUE('IQEF Intake Form'!R114) -> 0 | N112: =VALUE('IQEF Intake Form'!S114) -> 0 | O112: =VALUE('IQEF Intake Form'!T114) -> 0 | P112: =VALUE('IQEF Intake Form'!U114) -> 0 | Q112: =VALUE('IQEF Intake Form'!V114) -> 0 | R112: =VALUE('IQEF Intake Form'!W114) -> 0
A113: =VALUE('IQEF Intake Form'!F115) -> 0 | B113: =VALUE('IQEF Intake Form'!G115) -> 0 | C113: =VALUE('IQEF Intake Form'!H115) -> 0 | D113: =VALUE('IQEF Intake Form'!I115) -> 0 | E113: =VALUE('IQEF Intake Form'!J115) -> 0 | F113: =VALUE('IQEF Intake Form'!K115) -> 0 | G113: =VALUE('IQEF Intake Form'!L115) -> 0 | H113: =VALUE('IQEF Intake Form'!M115) -> 0 | I113: =VALUE('IQEF Intake Form'!N115) -> 0 | J113: =VALUE('IQEF Intake Form'!O115) -> 0 | K113: =VALUE('IQEF Intake Form'!P115) -> 0 | L113: =VALUE('IQEF Intake Form'!Q115) -> 0 | M113: =VALUE('IQEF Intake Form'!R115) -> 0 | N113: =VALUE('IQEF Intake Form'!S115) -> 0 | O113: =VALUE('IQEF Intake Form'!T115) -> 0 | P113: =VALUE('IQEF Intake Form'!U115) -> 0 | Q113: =VALUE('IQEF Intake Form'!V115) -> 0 | R113: =VALUE('IQEF Intake Form'!W115) -> 0
A114: =VALUE('IQEF Intake Form'!F116) -> 0 | B114: =VALUE('IQEF Intake Form'!G116) -> 0 | C114: =VALUE('IQEF Intake Form'!H116) -> 0 | D114: =VALUE('IQEF Intake Form'!I116) -> 0 | E114: =VALUE('IQEF Intake Form'!J116) -> 0 | F114: =VALUE('IQEF Intake Form'!K116) -> 0 | G114: =VALUE('IQEF Intake Form'!L116) -> 0 | H114: =VALUE('IQEF Intake Form'!M116) -> 0 | I114: =VALUE('IQEF Intake Form'!N116) -> 0 | J114: =VALUE('IQEF Intake Form'!O116) -> 0 | K114: =VALUE('IQEF Intake Form'!P116) -> 0 | L114: =VALUE('IQEF Intake Form'!Q116) -> 0 | M114: =VALUE('IQEF Intake Form'!R116) -> 0 | N114: =VALUE('IQEF Intake Form'!S116) -> 0 | O114: =VALUE('IQEF Intake Form'!T116) -> 0 | P114: =VALUE('IQEF Intake Form'!U116) -> 0 | Q114: =VALUE('IQEF Intake Form'!V116) -> 0 | R114: =VALUE('IQEF Intake Form'!W116) -> 0
A115: =VALUE('IQEF Intake Form'!F117) -> 0 | B115: =VALUE('IQEF Intake Form'!G117) -> 0 | C115: =VALUE('IQEF Intake Form'!H117) -> 0 | D115: =VALUE('IQEF Intake Form'!I117) -> 0 | E115: =VALUE('IQEF Intake Form'!J117) -> 0 | F115: =VALUE('IQEF Intake Form'!K117) -> 0 | G115: =VALUE('IQEF Intake Form'!L117) -> 0 | H115: =VALUE('IQEF Intake Form'!M117) -> 0 | I115: =VALUE('IQEF Intake Form'!N117) -> 0 | J115: =VALUE('IQEF Intake Form'!O117) -> 0 | K115: =VALUE('IQEF Intake Form'!P117) -> 0 | L115: =VALUE('IQEF Intake Form'!Q117) -> 0 | M115: =VALUE('IQEF Intake Form'!R117) -> 0 | N115: =VALUE('IQEF Intake Form'!S117) -> 0 | O115: =VALUE('IQEF Intake Form'!T117) -> 0 | P115: =VALUE('IQEF Intake Form'!U117) -> 0 | Q115: =VALUE('IQEF Intake Form'!V117) -> 0 | R115: =VALUE('IQEF Intake Form'!W117) -> 0
A116: =VALUE('IQEF Intake Form'!F118) -> 0 | B116: =VALUE('IQEF Intake Form'!G118) -> 0 | C116: =VALUE('IQEF Intake Form'!H118) -> 0 | D116: =VALUE('IQEF Intake Form'!I118) -> 0 | E116: =VALUE('IQEF Intake Form'!J118) -> 0 | F116: =VALUE('IQEF Intake Form'!K118) -> 0 | G116: =VALUE('IQEF Intake Form'!L118) -> 0 | H116: =VALUE('IQEF Intake Form'!M118) -> 0 | I116: =VALUE('IQEF Intake Form'!N118) -> 0 | J116: =VALUE('IQEF Intake Form'!O118) -> 0 | K116: =VALUE('IQEF Intake Form'!P118) -> 0 | L116: =VALUE('IQEF Intake Form'!Q118) -> 0 | M116: =VALUE('IQEF Intake Form'!R118) -> 0 | N116: =VALUE('IQEF Intake Form'!S118) -> 0 | O116: =VALUE('IQEF Intake Form'!T118) -> 0 | P116: =VALUE('IQEF Intake Form'!U118) -> 0 | Q116: =VALUE('IQEF Intake Form'!V118) -> 0 | R116: =VALUE('IQEF Intake Form'!W118) -> 0
A117: =VALUE('IQEF Intake Form'!F119) -> 0 | B117: =VALUE('IQEF Intake Form'!G119) -> 0 | C117: =VALUE('IQEF Intake Form'!H119) -> 0 | D117: =VALUE('IQEF Intake Form'!I119) -> 0 | E117: =VALUE('IQEF Intake Form'!J119) -> 0 | F117: =VALUE('IQEF Intake Form'!K119) -> 0 | G117: =VALUE('IQEF Intake Form'!L119) -> 0 | H117: =VALUE('IQEF Intake Form'!M119) -> 0 | I117: =VALUE('IQEF Intake Form'!N119) -> 0 | J117: =VALUE('IQEF Intake Form'!O119) -> 0 | K117: =VALUE('IQEF Intake Form'!P119) -> 0 | L117: =VALUE('IQEF Intake Form'!Q119) -> 0 | M117: =VALUE('IQEF Intake Form'!R119) -> 0 | N117: =VALUE('IQEF Intake Form'!S119) -> 0 | O117: =VALUE('IQEF Intake Form'!T119) -> 0 | P117: =VALUE('IQEF Intake Form'!U119) -> 0 | Q117: =VALUE('IQEF Intake Form'!V119) -> 0 | R117: =VALUE('IQEF Intake Form'!W119) -> 0
A118: =VALUE('IQEF Intake Form'!F120) -> 0 | B118: =VALUE('IQEF Intake Form'!G120) -> 0 | C118: =VALUE('IQEF Intake Form'!H120) -> 0 | D118: =VALUE('IQEF Intake Form'!I120) -> 0 | E118: =VALUE('IQEF Intake Form'!J120) -> 0 | F118: =VALUE('IQEF Intake Form'!K120) -> 0 | G118: =VALUE('IQEF Intake Form'!L120) -> 0 | H118: =VALUE('IQEF Intake Form'!M120) -> 0 | I118: =VALUE('IQEF Intake Form'!N120) -> 0 | J118: =VALUE('IQEF Intake Form'!O120) -> 0 | K118: =VALUE('IQEF Intake Form'!P120) -> 0 | L118: =VALUE('IQEF Intake Form'!Q120) -> 0 | M118: =VALUE('IQEF Intake Form'!R120) -> 0 | N118: =VALUE('IQEF Intake Form'!S120) -> 0 | O118: =VALUE('IQEF Intake Form'!T120) -> 0 | P118: =VALUE('IQEF Intake Form'!U120) -> 0 | Q118: =VALUE('IQEF Intake Form'!V120) -> 0 | R118: =VALUE('IQEF Intake Form'!W120) -> 0
A119: =VALUE('IQEF Intake Form'!F121) -> 0 | B119: =VALUE('IQEF Intake Form'!G121) -> 0 | C119: =VALUE('IQEF Intake Form'!H121) -> 0 | D119: =VALUE('IQEF Intake Form'!I121) -> 0 | E119: =VALUE('IQEF Intake Form'!J121) -> 0 | F119: =VALUE('IQEF Intake Form'!K121) -> 0 | G119: =VALUE('IQEF Intake Form'!L121) -> 0 | H119: =VALUE('IQEF Intake Form'!M121) -> 0 | I119: =VALUE('IQEF Intake Form'!N121) -> 0 | J119: =VALUE('IQEF Intake Form'!O121) -> 0 | K119: =VALUE('IQEF Intake Form'!P121) -> 0 | L119: =VALUE('IQEF Intake Form'!Q121) -> 0 | M119: =VALUE('IQEF Intake Form'!R121) -> 0 | N119: =VALUE('IQEF Intake Form'!S121) -> 0 | O119: =VALUE('IQEF Intake Form'!T121) -> 0 | P119: =VALUE('IQEF Intake Form'!U121) -> 0 | Q119: =VALUE('IQEF Intake Form'!V121) -> 0 | R119: =VALUE('IQEF Intake Form'!W121) -> 0
A120: =VALUE('IQEF Intake Form'!F122) -> 0 | B120: =VALUE('IQEF Intake Form'!G122) -> 0 | C120: =VALUE('IQEF Intake Form'!H122) -> 0 | D120: =VALUE('IQEF Intake Form'!I122) -> 0 | E120: =VALUE('IQEF Intake Form'!J122) -> 0 | F120: =VALUE('IQEF Intake Form'!K122) -> 0 | G120: =VALUE('IQEF Intake Form'!L122) -> 0 | H120: =VALUE('IQEF Intake Form'!M122) -> 0 | I120: =VALUE('IQEF Intake Form'!N122) -> 0 | J120: =VALUE('IQEF Intake Form'!O122) -> 0 | K120: =VALUE('IQEF Intake Form'!P122) -> 0 | L120: =VALUE('IQEF Intake Form'!Q122) -> 0 | M120: =VALUE('IQEF Intake Form'!R122) -> 0 | N120: =VALUE('IQEF Intake Form'!S122) -> 0 | O120: =VALUE('IQEF Intake Form'!T122) -> 0 | P120: =VALUE('IQEF Intake Form'!U122) -> 0 | Q120: =VALUE('IQEF Intake Form'!V122) -> 0 | R120: =VALUE('IQEF Intake Form'!W122) -> 0
A121: =VALUE('IQEF Intake Form'!F123) -> 0 | B121: =VALUE('IQEF Intake Form'!G123) -> 0 | C121: =VALUE('IQEF Intake Form'!H123) -> 0 | D121: =VALUE('IQEF Intake Form'!I123) -> 0 | E121: =VALUE('IQEF Intake Form'!J123) -> 0 | F121: =VALUE('IQEF Intake Form'!K123) -> 0 | G121: =VALUE('IQEF Intake Form'!L123) -> 0 | H121: =VALUE('IQEF Intake Form'!M123) -> 0 | I121: =VALUE('IQEF Intake Form'!N123) -> 0 | J121: =VALUE('IQEF Intake Form'!O123) -> 0 | K121: =VALUE('IQEF Intake Form'!P123) -> 0 | L121: =VALUE('IQEF Intake Form'!Q123) -> 0 | M121: =VALUE('IQEF Intake Form'!R123) -> 0 | N121: =VALUE('IQEF Intake Form'!S123) -> 0 | O121: =VALUE('IQEF Intake Form'!T123) -> 0 | P121: =VALUE('IQEF Intake Form'!U123) -> 0 | Q121: =VALUE('IQEF Intake Form'!V123) -> 0 | R121: =VALUE('IQEF Intake Form'!W123) -> 0
A122: =VALUE('IQEF Intake Form'!F124) -> 0 | B122: =VALUE('IQEF Intake Form'!G124) -> 0 | C122: =VALUE('IQEF Intake Form'!H124) -> 0 | D122: =VALUE('IQEF Intake Form'!I124) -> 0 | E122: =VALUE('IQEF Intake Form'!J124) -> 0 | F122: =VALUE('IQEF Intake Form'!K124) -> 0 | G122: =VALUE('IQEF Intake Form'!L124) -> 0 | H122: =VALUE('IQEF Intake Form'!M124) -> 0 | I122: =VALUE('IQEF Intake Form'!N124) -> 0 | J122: =VALUE('IQEF Intake Form'!O124) -> 0 | K122: =VALUE('IQEF Intake Form'!P124) -> 0 | L122: =VALUE('IQEF Intake Form'!Q124) -> 0 | M122: =VALUE('IQEF Intake Form'!R124) -> 0 | N122: =VALUE('IQEF Intake Form'!S124) -> 0 | O122: =VALUE('IQEF Intake Form'!T124) -> 0 | P122: =VALUE('IQEF Intake Form'!U124) -> 0 | Q122: =VALUE('IQEF Intake Form'!V124) -> 0 | R122: =VALUE('IQEF Intake Form'!W124) -> 0
A123: =VALUE('IQEF Intake Form'!F125) -> 0 | B123: =VALUE('IQEF Intake Form'!G125) -> 0 | C123: =VALUE('IQEF Intake Form'!H125) -> 0 | D123: =VALUE('IQEF Intake Form'!I125) -> 0 | E123: =VALUE('IQEF Intake Form'!J125) -> 0 | F123: =VALUE('IQEF Intake Form'!K125) -> 0 | G123: =VALUE('IQEF Intake Form'!L125) -> 0 | H123: =VALUE('IQEF Intake Form'!M125) -> 0 | I123: =VALUE('IQEF Intake Form'!N125) -> 0 | J123: =VALUE('IQEF Intake Form'!O125) -> 0 | K123: =VALUE('IQEF Intake Form'!P125) -> 0 | L123: =VALUE('IQEF Intake Form'!Q125) -> 0 | M123: =VALUE('IQEF Intake Form'!R125) -> 0 | N123: =VALUE('IQEF Intake Form'!S125) -> 0 | O123: =VALUE('IQEF Intake Form'!T125) -> 0 | P123: =VALUE('IQEF Intake Form'!U125) -> 0 | Q123: =VALUE('IQEF Intake Form'!V125) -> 0 | R123: =VALUE('IQEF Intake Form'!W125) -> 0
A124: =VALUE('IQEF Intake Form'!F126) -> 0 | B124: =VALUE('IQEF Intake Form'!G126) -> 0 | C124: =VALUE('IQEF Intake Form'!H126) -> 0 | D124: =VALUE('IQEF Intake Form'!I126) -> 0 | E124: =VALUE('IQEF Intake Form'!J126) -> 0 | F124: =VALUE('IQEF Intake Form'!K126) -> 0 | G124: =VALUE('IQEF Intake Form'!L126) -> 0 | H124: =VALUE('IQEF Intake Form'!M126) -> 0 | I124: =VALUE('IQEF Intake Form'!N126) -> 0 | J124: =VALUE('IQEF Intake Form'!O126) -> 0 | K124: =VALUE('IQEF Intake Form'!P126) -> 0 | L124: =VALUE('IQEF Intake Form'!Q126) -> 0 | M124: =VALUE('IQEF Intake Form'!R126) -> 0 | N124: =VALUE('IQEF Intake Form'!S126) -> 0 | O124: =VALUE('IQEF Intake Form'!T126) -> 0 | P124: =VALUE('IQEF Intake Form'!U126) -> 0 | Q124: =VALUE('IQEF Intake Form'!V126) -> 0 | R124: =VALUE('IQEF Intake Form'!W126) -> 0
A125: =VALUE('IQEF Intake Form'!F127) -> 0 | B125: =VALUE('IQEF Intake Form'!G127) -> 0 | C125: =VALUE('IQEF Intake Form'!H127) -> 0 | D125: =VALUE('IQEF Intake Form'!I127) -> 0 | E125: =VALUE('IQEF Intake Form'!J127) -> 0 | F125: =VALUE('IQEF Intake Form'!K127) -> 0 | G125: =VALUE('IQEF Intake Form'!L127) -> 0 | H125: =VALUE('IQEF Intake Form'!M127) -> 0 | I125: =VALUE('IQEF Intake Form'!N127) -> 0 | J125: =VALUE('IQEF Intake Form'!O127) -> 0 | K125: =VALUE('IQEF Intake Form'!P127) -> 0 | L125: =VALUE('IQEF Intake Form'!Q127) -> 0 | M125: =VALUE('IQEF Intake Form'!R127) -> 0 | N125: =VALUE('IQEF Intake Form'!S127) -> 0 | O125: =VALUE('IQEF Intake Form'!T127) -> 0 | P125: =VALUE('IQEF Intake Form'!U127) -> 0 | Q125: =VALUE('IQEF Intake Form'!V127) -> 0 | R125: =VALUE('IQEF Intake Form'!W127) -> 0
A126: =VALUE('IQEF Intake Form'!F128) -> 0 | B126: =VALUE('IQEF Intake Form'!G128) -> 0 | C126: =VALUE('IQEF Intake Form'!H128) -> 0 | D126: =VALUE('IQEF Intake Form'!I128) -> 0 | E126: =VALUE('IQEF Intake Form'!J128) -> 0 | F126: =VALUE('IQEF Intake Form'!K128) -> 0 | G126: =VALUE('IQEF Intake Form'!L128) -> 0 | H126: =VALUE('IQEF Intake Form'!M128) -> 0 | I126: =VALUE('IQEF Intake Form'!N128) -> 0 | J126: =VALUE('IQEF Intake Form'!O128) -> 0 | K126: =VALUE('IQEF Intake Form'!P128) -> 0 | L126: =VALUE('IQEF Intake Form'!Q128) -> 0 | M126: =VALUE('IQEF Intake Form'!R128) -> 0 | N126: =VALUE('IQEF Intake Form'!S128) -> 0 | O126: =VALUE('IQEF Intake Form'!T128) -> 0 | P126: =VALUE('IQEF Intake Form'!U128) -> 0 | Q126: =VALUE('IQEF Intake Form'!V128) -> 0 | R126: =VALUE('IQEF Intake Form'!W128) -> 0

Sheet Copy Values (hidden)
A1: TOTALS lighting (first line) and all other (second line) | G1: Project Savings and Screening Performance, TOTALS
A2: =SUM(A5:A24) -> 0 | B2: =SUM(B5:B24) -> 0 | C2: 0 | D2: 0 | E2: 0 | F2: 0 | G2: kWh | H2: kW | I2: Peak kW | J2: MMBtu | K2: NPV | L2: TRB
A3: =SUM(A27:A31,A34:A36,A39,A42,A46:A48,A52:A54,A57,A62:A64,A68:A71,A74:A75,A79:A84,A89:A91,A96:A97) -> 0 | B3: 0 | C3: 0 | D3: 0 | E3: 0 | F3: 0 | G3: =SUM(G5:G24,G27:G31,G34:G36,G39,G42,G46:G48,G52:G54,G57,G62:G64,G68:G71,G74:G75,G79:G84,G89:G91,G96:G97) ->  | H3: =SUM(H5:H24,H27:H31,H34:H36,H39,H42,H46:H48,H52:H54,H57,H62:H64,H68:H71,H74:H75,H79:H84,H89:H91,H96:H97) -> 
A4: =IFERROR(G4,0) -> kWh | B4: =IFERROR(H4,0) -> kW | C4: =IFERROR(I4,0) -> 0 | D4: =IFERROR(J4,0) -> MMBtu | E4: =IFERROR(K4,0) -> 0 | F4: =IFERROR(L4,0) -> 0 | G4: ='Project Performance'!A4 -> kWh | H4: ='Project Performance'!B4 -> kW | I4: ='Project Performance'!#REF! ->  | J4: ='Project Performance'!C4 -> MMBtu | K4: ='Project Performance'!#REF! ->  | L4: ='Project Performance'!#REF! -> 
A5: 0 | B5: 0 | C5: 0 | D5: 0 | E5: 0 | F5: 0 | G5: ='Project Performance'!A5 ->  | H5: ='Project Performance'!B5 ->  | I5: ='Project Performance'!#REF! ->  | J5: ='Project Performance'!C5 -> 0 | K5: ='Project Performance'!#REF! ->  | L5: ='Project Performance'!#REF! -> 
A6: 0 | B6: 0 | C6: 0 | D6: 0 | E6: 0 | F6: 0 | G6: ='Project Performance'!A6 ->  | H6: ='Project Performance'!B6 ->  | I6: ='Project Performance'!#REF! ->  | J6: ='Project Performance'!C6 -> 0 | K6: ='Project Performance'!#REF! ->  | L6: ='Project Performance'!#REF! -> 
A7: 0 | B7: 0 | C7: 0 | D7: 0 | E7: 0 | F7: 0 | G7: ='Project Performance'!A7 ->  | H7: ='Project Performance'!B7 ->  | I7: ='Project Performance'!#REF! ->  | J7: ='Project Performance'!C7 -> 0 | K7: ='Project Performance'!#REF! ->  | L7: ='Project Performance'!#REF! -> 
A8: 0 | B8: 0 | C8: 0 | D8: 0 | E8: 0 | F8: 0 | G8: ='Project Performance'!A8 ->  | H8: ='Project Performance'!B8 ->  | I8: ='Project Performance'!#REF! ->  | J8: ='Project Performance'!C8 -> 0 | K8: ='Project Performance'!#REF! ->  | L8: ='Project Performance'!#REF! -> 
A9: 0 | B9: 0 | C9: 0 | D9: 0 | E9: 0 | F9: 0 | G9: ='Project Performance'!A9 ->  | H9: ='Project Performance'!B9 ->  | I9: ='Project Performance'!#REF! ->  | J9: ='Project Performance'!C9 -> 0 | K9: ='Project Performance'!#REF! ->  | L9: ='Project Performance'!#REF! -> 
A10: 0 | B10: 0 | C10: 0 | D10: 0 | E10: 0 | F10: 0 | G10: ='Project Performance'!A10 ->  | H10: ='Project Performance'!B10 ->  | I10: ='Project Performance'!#REF! ->  | J10: ='Project Performance'!C10 -> 0 | K10: ='Project Performance'!#REF! ->  | L10: ='Project Performance'!#REF! -> 
A11: 0 | B11: 0 | C11: 0 | D11: 0 | E11: 0 | F11: 0 | G11: ='Project Performance'!A11 ->  | H11: ='Project Performance'!B11 ->  | I11: ='Project Performance'!#REF! ->  | J11: ='Project Performance'!C11 -> 0 | K11: ='Project Performance'!#REF! ->  | L11: ='Project Performance'!#REF! -> 
A12: 0 | B12: 0 | C12: 0 | D12: 0 | E12: 0 | F12: 0 | G12: ='Project Performance'!A12 ->  | H12: ='Project Performance'!B12 ->  | I12: ='Project Performance'!#REF! ->  | J12: ='Project Performance'!C12 -> 0 | K12: ='Project Performance'!#REF! ->  | L12: ='Project Performance'!#REF! -> 
A13: 0 | B13: 0 | C13: 0 | D13: 0 | E13: 0 | F13: 0 | G13: ='Project Performance'!A13 ->  | H13: ='Project Performance'!B13 ->  | I13: ='Project Performance'!#REF! ->  | J13: ='Project Performance'!C13 -> 0 | K13: ='Project Performance'!#REF! ->  | L13: ='Project Performance'!#REF! -> 
A14: 0 | B14: 0 | C14: 0 | D14: 0 | E14: 0 | F14: 0 | G14: ='Project Performance'!A14 ->  | H14: ='Project Performance'!B14 ->  | I14: ='Project Performance'!#REF! ->  | J14: ='Project Performance'!C14 -> 0 | K14: ='Project Performance'!#REF! ->  | L14: ='Project Performance'!#REF! -> 
A15: 0 | B15: 0 | C15: 0 | D15: 0 | E15: 0 | F15: 0 | G15: ='Project Performance'!A15 ->  | H15: ='Project Performance'!B15 ->  | I15: ='Project Performance'!#REF! ->  | J15: ='Project Performance'!C15 -> 0 | K15: ='Project Performance'!#REF! ->  | L15: ='Project Performance'!#REF! -> 
A16: 0 | B16: 0 | C16: 0 | D16: 0 | E16: 0 | F16: 0 | G16: ='Project Performance'!A16 ->  | H16: ='Project Performance'!B16 ->  | I16: ='Project Performance'!#REF! ->  | J16: ='Project Performance'!C16 -> 0 | K16: ='Project Performance'!#REF! ->  | L16: ='Project Performance'!#REF! -> 
A17: 0 | B17: 0 | C17: 0 | D17: 0 | E17: 0 | F17: 0 | G17: ='Project Performance'!A17 ->  | H17: ='Project Performance'!B17 ->  | I17: ='Project Performance'!#REF! ->  | J17: ='Project Performance'!C17 -> 0 | K17: ='Project Performance'!#REF! ->  | L17: ='Project Performance'!#REF! -> 
A18: 0 | B18: 0 | C18: 0 | D18: 0 | E18: 0 | F18: 0 | G18: ='Project Performance'!A18 ->  | H18: ='Project Performance'!B18 ->  | I18: ='Project Performance'!#REF! ->  | J18: ='Project Performance'!C18 -> 0 | K18: ='Project Performance'!#REF! ->  | L18: ='Project Performance'!#REF! -> 
A19: 0 | B19: 0 | C19: 0 | D19: 0 | E19: 0 | F19: 0 | G19: ='Project Performance'!A19 ->  | H19: ='Project Performance'!B19 ->  | I19: ='Project Performance'!#REF! ->  | J19: ='Project Performance'!C19 -> 0 | K19: ='Project Performance'!#REF! ->  | L19: ='Project Performance'!#REF! -> 
A20: 0 | B20: 0 | C20: 0 | D20: 0 | E20: 0 | F20: 0 | G20: ='Project Performance'!A20 ->  | H20: ='Project Performance'!B20 ->  | I20: ='Project Performance'!#REF! ->  | J20: ='Project Performance'!C20 -> 0 | K20: ='Project Performance'!#REF! ->  | L20: ='Project Performance'!#REF! -> 
A21: 0 | B21: 0 | C21: 0 | D21: 0 | E21: 0 | F21: 0 | G21: ='Project Performance'!A21 ->  | H21: ='Project Performance'!B21 ->  | I21: ='Project Performance'!#REF! ->  | J21: ='Project Performance'!C21 -> 0 | K21: ='Project Performance'!#REF! ->  | L21: ='Project Performance'!#REF! -> 
A22: 0 | B22: 0 | C22: 0 | D22: 0 | E22: 0 | F22: 0 | G22: ='Project Performance'!A22 ->  | H22: ='Project Performance'!B22 ->  | I22: ='Project Performance'!#REF! ->  | J22: ='Project Performance'!C22 -> 0 | K22: ='Project Performance'!#REF! ->  | L22: ='Project Performance'!#REF! -> 
A23: 0 | B23: 0 | C23: 0 | D23: 0 | E23: 0 | F23: 0 | G23: ='Project Performance'!A23 ->  | H23: ='Project Performance'!B23 ->  | I23: ='Project Performance'!#REF! ->  | J23: ='Project Performance'!C23 -> 0 | K23: ='Project Performance'!#REF! ->  | L23: ='Project Performance'!#REF! -> 
A24: 0 | B24: 0 | C24: 0 | D24: 0 | E24: 0 | F24: 0 | G24: ='Project Performance'!A24 ->  | H24: ='Project Performance'!B24 ->  | I24: ='Project Performance'!#REF! ->  | J24: ='Project Performance'!C24 -> 0 | K24: ='Project Performance'!#REF! ->  | L24: ='Project Performance'!#REF! -> 
A26: kWh | B26: kW | C26: 0 | D26: MMBtu | E26: 0 | F26: 0 | G26: ='Project Performance'!A26 -> kWh | H26: ='Project Performance'!B26 -> kW | I26: ='Project Performance'!#REF! ->  | J26: ='Project Performance'!C26 -> MMBtu | K26: ='Project Performance'!#REF! ->  | L26: ='Project Performance'!#REF! -> 
A27: =IFERROR(G27,0) -> 0 | B27: 0 | C27: 0 | D27: 0 | E27: 0 | F27: 0 | G27: ='Project Performance'!A27 ->  | H27: ='Project Performance'!B27 -> 0 | I27: ='Project Performance'!#REF! ->  | J27: ='Project Performance'!C27 -> 0 | K27: ='Project Performance'!#REF! ->  | L27: ='Project Performance'!#REF! -> 
A28: 0 | B28: 0 | C28: 0 | D28: 0 | E28: 0 | F28: 0 | G28: ='Project Performance'!A28 ->  | H28: ='Project Performance'!B28 -> 0 | I28: ='Project Performance'!#REF! ->  | J28: ='Project Performance'!C28 -> 0 | K28: ='Project Performance'!#REF! ->  | L28: ='Project Performance'!#REF! -> 
A29: 0 | B29: 0 | C29: 0 | D29: 0 | E29: 0 | F29: 0 | G29: ='Project Performance'!A29 ->  | H29: ='Project Performance'!B29 -> 0 | I29: ='Project Performance'!#REF! ->  | J29: ='Project Performance'!C29 -> 0 | K29: ='Project Performance'!#REF! ->  | L29: ='Project Performance'!#REF! -> 
A30: 0 | B30: 0 | C30: 0 | D30: 0 | E30: 0 | F30: 0 | G30: ='Project Performance'!A30 ->  | H30: ='Project Performance'!B30 -> 0 | I30: ='Project Performance'!#REF! ->  | J30: ='Project Performance'!C30 -> 0 | K30: ='Project Performance'!#REF! ->  | L30: ='Project Performance'!#REF! -> 
A31: 0 | B31: 0 | C31: 0 | D31: 0 | E31: 0 | F31: 0 | G31: ='Project Performance'!A31 ->  | H31: ='Project Performance'!B31 -> 0 | I31: ='Project Performance'!#REF! ->  | J31: ='Project Performance'!C31 -> 0 | K31: ='Project Performance'!#REF! ->  | L31: ='Project Performance'!#REF! -> 
A33: kWh | B33: kW | C33: 0 | D33: MMBtu | E33: 0 | F33: 0 | G33: ='Project Performance'!A33 -> kWh | H33: ='Project Performance'!B33 -> kW | I33: ='Project Performance'!#REF! ->  | J33: ='Project Performance'!C33 -> MMBtu | K33: ='Project Performance'!#REF! ->  | L33: ='Project Performance'!#REF! -> 
A34: 0 | B34: 0 | C34: 0 | D34: 0 | E34: 0 | F34: 0 | G34: ='Project Performance'!A34 -> 0 | H34: ='Project Performance'!B34 -> 0 | I34: ='Project Performance'!#REF! ->  | J34: ='Project Performance'!C34 ->  | K34: ='Project Performance'!#REF! ->  | L34: ='Project Performance'!#REF! -> 
A35: 0 | B35: 0 | C35: 0 | D35: 0 | E35: 0 | F35: 0 | G35: ='Project Performance'!A35 -> 0 | H35: ='Project Performance'!B35 -> 0 | I35: ='Project Performance'!#REF! ->  | J35: ='Project Performance'!C35 ->  | K35: ='Project Performance'!#REF! ->  | L35: ='Project Performance'!#REF! -> 
A36: 0 | B36: 0 | C36: 0 | D36: 0 | E36: 0 | F36: 0 | G36: ='Project Performance'!A36 -> 0 | H36: ='Project Performance'!B36 -> 0 | I36: ='Project Performance'!#REF! ->  | J36: ='Project Performance'!C36 ->  | K36: ='Project Performance'!#REF! ->  | L36: ='Project Performance'!#REF! -> 
A38: kWh | B38: kW | C38: 0 | D38: MMBtu | E38: 0 | F38: 0 | G38: ='Project Performance'!A39 -> kWh | H38: ='Project Performance'!B39 -> kW | I38: ='Project Performance'!#REF! ->  | J38: ='Project Performance'!C39 -> MMBtu | K38: ='Project Performance'!#REF! ->  | L38: ='Project Performance'!#REF! -> 
A39: 0 | B39: 0 | C39: 0 | D39: 0 | E39: 0 | F39: 0 | G39: ='Project Performance'!A40 ->  | H39: ='Project Performance'!B40 ->  | I39: ='Project Performance'!#REF! ->  | J39: ='Project Performance'!C40 -> 0 | K39: ='Project Performance'!#REF! ->  | L39: ='Project Performance'!#REF! -> 
A41: kWh | B41: kW | C41: 0 | D41: MMBtu | E41: 0 | F41: 0 | G41: ='Project Performance'!A42 -> kWh | H41: ='Project Performance'!B42 -> kW | I41: ='Project Performance'!#REF! ->  | J41: ='Project Performance'!C42 -> MMBtu | K41: ='Project Performance'!#REF! ->  | L41: ='Project Performance'!#REF! -> 
A42: 0 | B42: 0 | C42: 0 | D42: 0 | E42: 0 | F42: 0 | G42: ='Project Performance'!A43 ->  | H42: ='Project Performance'!B43 ->  | I42: ='Project Performance'!#REF! ->  | J42: ='Project Performance'!C43 -> 0 | K42: ='Project Performance'!#REF! ->  | L42: ='Project Performance'!#REF! -> 
A45: kWh | B45: kW | C45: 0 | D45: MMBtu | E45: 0 | F45: 0 | G45: ='Project Performance'!A45 -> kWh | H45: ='Project Performance'!B45 -> kW | I45: ='Project Performance'!#REF! ->  | J45: ='Project Performance'!C45 -> MMBtu | K45: ='Project Performance'!#REF! ->  | L45: ='Project Performance'!#REF! -> 
A46: 0 | B46: 0 | C46: 0 | D46: 0 | E46: 0 | F46: 0 | G46: ='Project Performance'!A46 ->  | H46: ='Project Performance'!B46 -> 0 | I46: ='Project Performance'!#REF! ->  | J46: ='Project Performance'!C46 -> 0 | K46: ='Project Performance'!#REF! ->  | L46: ='Project Performance'!#REF! -> 
A47: 0 | B47: 0 | C47: 0 | D47: 0 | E47: 0 | F47: 0 | G47: ='Project Performance'!A47 ->  | H47: ='Project Performance'!B47 -> 0 | I47: ='Project Performance'!#REF! ->  | J47: ='Project Performance'!C47 -> 0 | K47: ='Project Performance'!#REF! ->  | L47: ='Project Performance'!#REF! -> 
A48: 0 | B48: 0 | C48: 0 | D48: 0 | E48: 0 | F48: 0 | G48: ='Project Performance'!A48 ->  | H48: ='Project Performance'!B48 -> 0 | I48: ='Project Performance'!#REF! ->  | J48: ='Project Performance'!C48 -> 0 | K48: ='Project Performance'!#REF! ->  | L48: ='Project Performance'!#REF! -> 
A51: kWh | B51: kW | C51: 0 | D51: MMBtu | E51: 0 | F51: 0 | G51: ='Project Performance'!A50 -> kWh | H51: ='Project Performance'!B50 -> kW | I51: ='Project Performance'!#REF! ->  | J51: ='Project Performance'!C50 -> MMBtu | K51: ='Project Performance'!#REF! ->  | L51: ='Project Performance'!#REF! -> 
A52: 0 | B52: 0 | C52: 0 | D52: 0 | E52: 0 | F52: 0 | G52: ='Project Performance'!A51 ->  | H52: ='Project Performance'!B51 ->  | I52: ='Project Performance'!#REF! ->  | J52: ='Project Performance'!C51 -> 0 | K52: ='Project Performance'!#REF! ->  | L52: ='Project Performance'!#REF! -> 
A53: 0 | B53: 0 | C53: 0 | D53: 0 | E53: 0 | F53: 0 | G53: ='Project Performance'!A52 ->  | H53: ='Project Performance'!B52 ->  | I53: ='Project Performance'!#REF! ->  | J53: ='Project Performance'!C52 -> 0 | K53: ='Project Performance'!#REF! ->  | L53: ='Project Performance'!#REF! -> 
A54: 0 | B54: 0 | C54: 0 | D54: 0 | E54: 0 | F54: 0 | G54: ='Project Performance'!A53 ->  | H54: ='Project Performance'!B53 ->  | I54: ='Project Performance'!#REF! ->  | J54: ='Project Performance'!C53 -> 0 | K54: ='Project Performance'!#REF! ->  | L54: ='Project Performance'!#REF! -> 
A56: kWh | B56: kW | C56: 0 | D56: MMBtu | E56: 0 | F56: 0 | G56: ='Project Performance'!A55 -> kWh | H56: ='Project Performance'!B55 -> kW | I56: ='Project Performance'!#REF! ->  | J56: ='Project Performance'!C55 -> MMBtu | K56: ='Project Performance'!#REF! ->  | L56: ='Project Performance'!#REF! -> 
A57: 0 | B57: 0 | C57: 0 | D57: 0 | E57: 0 | F57: 0 | G57: ='Project Performance'!A56 ->  | H57: ='Project Performance'!B56 ->  | I57: ='Project Performance'!#REF! ->  | J57: ='Project Performance'!C56 ->  | K57: ='Project Performance'!#REF! ->  | L57: ='Project Performance'!#REF! -> 
A61: kWh | B61: kW | C61: 0 | D61: MMBtu | E61: 0 | F61: 0 | G61: ='Project Performance'!A59 -> kWh | H61: ='Project Performance'!B59 -> kW | I61: ='Project Performance'!#REF! ->  | J61: ='Project Performance'!C59 -> MMBtu | K61: ='Project Performance'!#REF! ->  | L61: ='Project Performance'!#REF! -> 
A62: 0 | B62: 0 | C62: 0 | D62: 0 | E62: 0 | F62: 0 | G62: ='Project Performance'!A60 -> 0 | H62: ='Project Performance'!B60 -> 0 | I62: ='Project Performance'!#REF! ->  | J62: ='Project Performance'!C60 ->  | K62: ='Project Performance'!#REF! ->  | L62: ='Project Performance'!#REF! -> 
A63: 0 | B63: 0 | C63: 0 | D63: 0 | E63: 0 | F63: 0 | G63: ='Project Performance'!A61 -> 0 | H63: ='Project Performance'!B61 -> 0 | I63: ='Project Performance'!#REF! ->  | J63: ='Project Performance'!C61 ->  | K63: ='Project Performance'!#REF! ->  | L63: ='Project Performance'!#REF! -> 
A64: 0 | B64: 0 | C64: 0 | D64: 0 | E64: 0 | F64: 0 | G64: ='Project Performance'!A62 -> 0 | H64: ='Project Performance'!B62 -> 0 | I64: ='Project Performance'!#REF! ->  | J64: ='Project Performance'!C62 ->  | K64: ='Project Performance'!#REF! ->  | L64: ='Project Performance'!#REF! -> 
A67: =IFERROR(G67,0) -> kWh | B67: =IFERROR(H67,0) -> kW | C67: =IFERROR(I67,0) -> 0 | D67: =IFERROR(J67,0) -> MMBtu | E67: =IFERROR(K67,0) -> 0 | F67: =IFERROR(L67,0) -> 0 | G67: ='Project Performance'!A64 -> kWh | H67: ='Project Performance'!B64 -> kW | I67: ='Project Performance'!#REF! ->  | J67: ='Project Performance'!C64 -> MMBtu | K67: ='Project Performance'!#REF! ->  | L67: ='Project Performance'!#REF! -> 
A68: 0 | B68: 0 | C68: 0 | D68: 0 | E68: 0 | F68: 0 | G68: ='Project Performance'!A65 -> 0 | H68: ='Project Performance'!B65 -> 0 | I68: ='Project Performance'!#REF! ->  | J68: ='Project Performance'!C65 -> 0 | K68: ='Project Performance'!#REF! ->  | L68: ='Project Performance'!#REF! -> 
A69: 0 | B69: 0 | C69: 0 | D69: 0 | E69: 0 | F69: 0 | G69: ='Project Performance'!A66 -> 0 | H69: ='Project Performance'!B66 -> 0 | I69: ='Project Performance'!#REF! ->  | J69: ='Project Performance'!C66 -> 0 | K69: ='Project Performance'!#REF! ->  | L69: ='Project Performance'!#REF! -> 
A70: 0 | B70: 0 | C70: 0 | D70: 0 | E70: 0 | F70: 0 | G70: ='Project Performance'!A67 -> 0 | H70: ='Project Performance'!B67 -> 0 | I70: ='Project Performance'!#REF! ->  | J70: ='Project Performance'!C67 -> 0 | K70: ='Project Performance'!#REF! ->  | L70: ='Project Performance'!#REF! -> 
A71: 0 | B71: 0 | C71: 0 | D71: 0 | E71: 0 | F71: 0 | G71: ='Project Performance'!A68 -> 0 | H71: ='Project Performance'!B68 -> 0 | I71: ='Project Performance'!#REF! ->  | J71: ='Project Performance'!C68 -> 0 | K71: ='Project Performance'!#REF! ->  | L71: ='Project Performance'!#REF! -> 
A73: kWh | B73: kW | D73: MMBtu | E73: 0 | G73: ='Project Performance'!B69 -> kWh | H73: ='Project Performance'!#REF! ->  | I73: ='Project Performance'!C69 -> kW | J73: ='Project Performance'!#REF! ->  | K73: ='Project Performance'!#REF! ->  | L73: ='Project Performance'!D69 -> MMBtu
A74: 0 | B74: =IFERROR(I74,0) -> 0 | C74: 0 | D74: =IFERROR(L74,0) -> 0 | E74: 0 | F74: 0 | G74: ='Project Performance'!B70 -> 0 | H74: ='Project Performance'!#REF! ->  | I74: ='Project Performance'!C70 -> 0 | J74: ='Project Performance'!#REF! ->  | K74: ='Project Performance'!#REF! ->  | L74: ='Project Performance'!D70 -> 0
A75: 0 | B75: =IFERROR(I75,0) -> 0 | C75: 0 | D75: =IFERROR(L75,0) -> 0 | E75: 0 | F75: 0 | G75: ='Project Performance'!B71 -> 0 | H75: ='Project Performance'!#REF! ->  | I75: ='Project Performance'!C71 -> 0 | J75: ='Project Performance'!#REF! ->  | K75: ='Project Performance'!#REF! ->  | L75: ='Project Performance'!D71 -> 0
A78: kWh | B78: kW | C78: 0 | D78: MMBtu | E78: 0 | F78: 0 | G78: ='Project Performance'!A73 -> kWh | H78: ='Project Performance'!B73 -> kW | I78: ='Project Performance'!#REF! ->  | J78: ='Project Performance'!C73 -> MMBtu | K78: ='Project Performance'!#REF! ->  | L78: ='Project Performance'!#REF! -> 
A79: 0 | B79: 0 | C79: 0 | D79: 0 | E79: 0 | F79: 0 | G79: ='Project Performance'!A74 ->  | H79: ='Project Performance'!B74 ->  | I79: ='Project Performance'!#REF! ->  | J79: ='Project Performance'!C74 -> 0 | K79: ='Project Performance'!#REF! ->  | L79: ='Project Performance'!#REF! -> 
A80: 0 | B80: 0 | C80: 0 | D80: 0 | E80: 0 | F80: 0 | G80: ='Project Performance'!A75 ->  | H80: ='Project Performance'!B75 ->  | I80: ='Project Performance'!#REF! ->  | J80: ='Project Performance'!C75 -> 0 | K80: ='Project Performance'!#REF! ->  | L80: ='Project Performance'!#REF! -> 
A81: 0 | B81: 0 | C81: 0 | D81: 0 | E81: 0 | F81: 0 | G81: ='Project Performance'!A76 ->  | H81: ='Project Performance'!B76 ->  | I81: ='Project Performance'!#REF! ->  | J81: ='Project Performance'!C76 -> 0 | K81: ='Project Performance'!#REF! ->  | L81: ='Project Performance'!#REF! -> 
A82: 0 | B82: 0 | C82: 0 | D82: 0 | E82: 0 | F82: 0 | G82: ='Project Performance'!A77 ->  | H82: ='Project Performance'!B77 ->  | I82: ='Project Performance'!#REF! ->  | J82: ='Project Performance'!C77 -> 0 | K82: ='Project Performance'!#REF! ->  | L82: ='Project Performance'!#REF! -> 
A83: 0 | B83: 0 | C83: 0 | D83: 0 | E83: 0 | F83: 0 | G83: ='Project Performance'!A78 ->  | H83: ='Project Performance'!B78 ->  | I83: ='Project Performance'!#REF! ->  | J83: ='Project Performance'!C78 -> 0 | K83: ='Project Performance'!#REF! ->  | L83: ='Project Performance'!#REF! -> 
A84: 0 | B84: 0 | C84: 0 | D84: 0 | E84: 0 | F84: 0 | G84: ='Project Performance'!A79 ->  | H84: ='Project Performance'!B79 ->  | I84: ='Project Performance'!#REF! ->  | J84: ='Project Performance'!C79 -> 0 | K84: ='Project Performance'!#REF! ->  | L84: ='Project Performance'!#REF! -> 
A87: kWh | B87: kW | C87: 0 | D87: MMBtu | E87: 0 | F87: 0 | G87: ='Project Performance'!A82 -> kWh | H87: ='Project Performance'!B82 -> kW | I87: ='Project Performance'!#REF! ->  | J87: ='Project Performance'!C82 -> MMBtu | K87: ='Project Performance'!#REF! ->  | L87: ='Project Performance'!#REF! -> 
A88: 0 | B88: 0 | C88: 0 | D88: 0 | E88: 0 | F88: 0
A89: 0 | B89: 0 | C89: 0 | D89: 0 | E89: 0 | F89: 0 | G89: ='Project Performance'!A83 ->  | H89: ='Project Performance'!B83 ->  | I89: ='Project Performance'!#REF! ->  | J89: ='Project Performance'!C83 -> 0 | K89: ='Project Performance'!#REF! ->  | L89: ='Project Performance'!#REF! -> 
A90: 0 | B90: 0 | C90: 0 | D90: 0 | E90: 0 | F90: 0 | G90: ='Project Performance'!A84 ->  | H90: ='Project Performance'!B84 ->  | I90: ='Project Performance'!#REF! ->  | J90: ='Project Performance'!C84 -> 0 | K90: ='Project Performance'!#REF! ->  | L90: ='Project Performance'!#REF! -> 
A91: 0 | B91: 0 | C91: 0 | D91: 0 | E91: 0 | F91: 0 | G91: ='Project Performance'!A85 ->  | H91: ='Project Performance'!B85 ->  | I91: ='Project Performance'!#REF! ->  | J91: ='Project Performance'!C85 -> 0 | K91: ='Project Performance'!#REF! ->  | L91: ='Project Performance'!#REF! -> 
A95: kWh | B95: kW | C95: 0 | D95: MMBtu | E95: 0 | F95: 0 | G95: ='Project Performance'!A88 -> kWh | H95: ='Project Performance'!B88 -> kW | I95: ='Project Performance'!#REF! ->  | J95: ='Project Performance'!C88 -> MMBtu | K95: ='Project Performance'!#REF! ->  | L95: ='Project Performance'!#REF! -> 
A96: 0 | B96: 0 | C96: 0 | D96: 0 | E96: 0 | F96: 0 | G96: ='Project Performance'!A89 -> 0 | H96: ='Project Performance'!B89 -> 0 | I96: ='Project Performance'!#REF! ->  | J96: ='Project Performance'!C89 -> 0 | K96: ='Project Performance'!#REF! ->  | L96: ='Project Performance'!#REF! -> 
A97: 0 | B97: 0 | C97: 0 | D97: 0 | E97: 0 | F97: 0 | G97: ='Project Performance'!A90 -> 0 | H97: ='Project Performance'!B90 -> 0 | I97: ='Project Performance'!#REF! ->  | J97: ='Project Performance'!C90 -> 0 | K97: ='Project Performance'!#REF! ->  | L97: ='Project Performance'!#REF! -> 

Sheet Project Performance (hidden)
A2: ='Paste Values'!A3 -> 
A3: ='Paste Values'!A4 -> 
A4: kWh | B4: kW | C4: MMBtu
A5: =('Paste Values'!D5*'Paste Values'!G5-'Paste Values'!E5*'Paste Values'!H5)/1000*'Paste Values'!C5*VLOOKUP('Paste Values'!J5,waste_heat,3,FALSE) ->  | B5: =('Paste Values'!D5*'Paste Values'!G5-'Paste Values'!E5*'Paste Values'!H5)/1000*VLOOKUP('Paste Values'!J5,waste_heat,4,FALSE) ->  | D5: =-('Paste Values'!E5*'Paste Values'!H5-'Paste Values'!F5*'Paste Values'!I5)/1000*'Paste Values'!D5*(1-0.25)*0.7*0.23*0.95/0.75*0.68*0.003412 -> 0
A6: =('Paste Values'!D6*'Paste Values'!G6-'Paste Values'!E6*'Paste Values'!H6)/1000*'Paste Values'!C6*VLOOKUP('Paste Values'!J6,waste_heat,3,FALSE) ->  | B6: =('Paste Values'!D6*'Paste Values'!G6-'Paste Values'!E6*'Paste Values'!H6)/1000*VLOOKUP('Paste Values'!J6,waste_heat,4,FALSE) ->  | D6: =-('Paste Values'!E6*'Paste Values'!H6-'Paste Values'!F6*'Paste Values'!I6)/1000*'Paste Values'!D6*(1-0.25)*0.7*0.23*0.95/0.75*0.68*0.003412 -> 0 | T6: =" ((WattsBASE – WattsEE ) / 1000) × HOURS × ISR × (WHFeHeat + (WHFeCool - 1))" -> ((WattsBASE – WattsEE ) / 1000) × HOURS × ISR × (WHFeHeat + (WHFeCool - 1))
A7: =('Paste Values'!D7*'Paste Values'!G7-'Paste Values'!E7*'Paste Values'!H7)/1000*'Paste Values'!C7*VLOOKUP('Paste Values'!J7,waste_heat,3,FALSE) ->  | B7: =('Paste Values'!D7*'Paste Values'!G7-'Paste Values'!E7*'Paste Values'!H7)/1000*VLOOKUP('Paste Values'!J7,waste_heat,4,FALSE) ->  | D7: =-('Paste Values'!E7*'Paste Values'!H7-'Paste Values'!F7*'Paste Values'!I7)/1000*'Paste Values'!D7*(1-0.25)*0.7*0.23*0.95/0.75*0.68*0.003412 -> 0 | X7: 0.987 | Y7: interior | Z7: 1.107 | AA7: interior
A8: =('Paste Values'!D8*'Paste Values'!G8-'Paste Values'!E8*'Paste Values'!H8)/1000*'Paste Values'!C8*VLOOKUP('Paste Values'!J8,waste_heat,3,FALSE) ->  | B8: =('Paste Values'!D8*'Paste Values'!G8-'Paste Values'!E8*'Paste Values'!H8)/1000*VLOOKUP('Paste Values'!J8,waste_heat,4,FALSE) ->  | D8: =-('Paste Values'!E8*'Paste Values'!H8-'Paste Values'!F8*'Paste Values'!I8)/1000*'Paste Values'!D8*(1-0.25)*0.7*0.23*0.95/0.75*0.68*0.003412 -> 0 | X8: 1 | Y8: exterior | Z8: 1 | AA8: exterior
A9: =('Paste Values'!D9*'Paste Values'!G9-'Paste Values'!E9*'Paste Values'!H9)/1000*'Paste Values'!C9*VLOOKUP('Paste Values'!J9,waste_heat,3,FALSE) ->  | B9: =('Paste Values'!D9*'Paste Values'!G9-'Paste Values'!E9*'Paste Values'!H9)/1000*VLOOKUP('Paste Values'!J9,waste_heat,4,FALSE) ->  | D9: =-('Paste Values'!E9*'Paste Values'!H9-'Paste Values'!F9*'Paste Values'!I9)/1000*'Paste Values'!D9*(1-0.25)*0.7*0.23*0.95/0.75*0.68*0.003412 -> 0 | V9: Lighting Waste Heat Lookup
A10: =('Paste Values'!D10*'Paste Values'!G10-'Paste Values'!E10*'Paste Values'!H10)/1000*'Paste Values'!C10*VLOOKUP('Paste Values'!J10,waste_heat,3,FALSE) ->  | B10: =('Paste Values'!D10*'Paste Values'!G10-'Paste Values'!E10*'Paste Values'!H10)/1000*VLOOKUP('Paste Values'!J10,waste_heat,4,FALSE) ->  | D10: =-('Paste Values'!E10*'Paste Values'!H10-'Paste Values'!F10*'Paste Values'!I10)/1000*'Paste Values'!D10*(1-0.25)*0.7*0.23*0.95/0.75*0.68*0.003412 -> 0 | X10: energy | Y10: demand
A11: =('Paste Values'!D11*'Paste Values'!G11-'Paste Values'!E11*'Paste Values'!H11)/1000*'Paste Values'!C11*VLOOKUP('Paste Values'!J11,waste_heat,3,FALSE) ->  | B11: =('Paste Values'!D11*'Paste Values'!G11-'Paste Values'!E11*'Paste Values'!H11)/1000*VLOOKUP('Paste Values'!J11,waste_heat,4,FALSE) ->  | D11: =-('Paste Values'!E11*'Paste Values'!H11-'Paste Values'!F11*'Paste Values'!I11)/1000*'Paste Values'!D11*(1-0.25)*0.7*0.23*0.95/0.75*0.68*0.003412 -> 0 | V11: 1 | W11: Heating Only | X11: =(X7+(Z8-Z8)) -> 0.987 | Y11: 1
A12: =('Paste Values'!D12*'Paste Values'!G12-'Paste Values'!E12*'Paste Values'!H12)/1000*'Paste Values'!C12*VLOOKUP('Paste Values'!J12,waste_heat,3,FALSE) ->  | B12: =('Paste Values'!D12*'Paste Values'!G12-'Paste Values'!E12*'Paste Values'!H12)/1000*VLOOKUP('Paste Values'!J12,waste_heat,4,FALSE) ->  | D12: =-('Paste Values'!E12*'Paste Values'!H12-'Paste Values'!F12*'Paste Values'!I12)/1000*'Paste Values'!D12*(1-0.25)*0.7*0.23*0.95/0.75*0.68*0.003412 -> 0 | V12: 2 | W12: Cooling Only | X12: =(X8+(Z7-Z8)) -> 1.107 | Y12: 1.107
A13: =('Paste Values'!D13*'Paste Values'!G13-'Paste Values'!E13*'Paste Values'!H13)/1000*'Paste Values'!C13*VLOOKUP('Paste Values'!J13,waste_heat,3,FALSE) ->  | B13: =('Paste Values'!D13*'Paste Values'!G13-'Paste Values'!E13*'Paste Values'!H13)/1000*VLOOKUP('Paste Values'!J13,waste_heat,4,FALSE) ->  | D13: =-('Paste Values'!E13*'Paste Values'!H13-'Paste Values'!F13*'Paste Values'!I13)/1000*'Paste Values'!D13*(1-0.25)*0.7*0.23*0.95/0.75*0.68*0.003412 -> 0 | V13: 3 | W13: Heating & Cooling | X13: =(X7+(Z7-Z8)) -> 1.094 | Y13: 1.107
A14: =('Paste Values'!D14*'Paste Values'!G14-'Paste Values'!E14*'Paste Values'!H14)/1000*'Paste Values'!C14*VLOOKUP('Paste Values'!J14,waste_heat,3,FALSE) ->  | B14: =('Paste Values'!D14*'Paste Values'!G14-'Paste Values'!E14*'Paste Values'!H14)/1000*VLOOKUP('Paste Values'!J14,waste_heat,4,FALSE) ->  | D14: =-('Paste Values'!E14*'Paste Values'!H14-'Paste Values'!F14*'Paste Values'!I14)/1000*'Paste Values'!D14*(1-0.25)*0.7*0.23*0.95/0.75*0.68*0.003412 -> 0 | V14: 4 | W14: No Conditioning | X14: =(X8+(Z8-Z8)) -> 1 | Y14: 1
A15: =('Paste Values'!D15*'Paste Values'!G15-'Paste Values'!E15*'Paste Values'!H15)/1000*'Paste Values'!C15*VLOOKUP('Paste Values'!J15,waste_heat,3,FALSE) ->  | B15: =('Paste Values'!D15*'Paste Values'!G15-'Paste Values'!E15*'Paste Values'!H15)/1000*VLOOKUP('Paste Values'!J15,waste_heat,4,FALSE) ->  | D15: =-('Paste Values'!E15*'Paste Values'!H15-'Paste Values'!F15*'Paste Values'!I15)/1000*'Paste Values'!D15*(1-0.25)*0.7*0.23*0.95/0.75*0.68*0.003412 -> 0
A16: =('Paste Values'!D16*'Paste Values'!G16-'Paste Values'!E16*'Paste Values'!H16)/1000*'Paste Values'!C16*VLOOKUP('Paste Values'!J16,waste_heat,3,FALSE) ->  | B16: =('Paste Values'!D16*'Paste Values'!G16-'Paste Values'!E16*'Paste Values'!H16)/1000*VLOOKUP('Paste Values'!J16,waste_heat,4,FALSE) ->  | D16: =-('Paste Values'!E16*'Paste Values'!H16-'Paste Values'!F16*'Paste Values'!I16)/1000*'Paste Values'!D16*(1-0.25)*0.7*0.23*0.95/0.75*0.68*0.003412 -> 0
A17: =('Paste Values'!D17*'Paste Values'!G17-'Paste Values'!E17*'Paste Values'!H17)/1000*'Paste Values'!C17*VLOOKUP('Paste Values'!J17,waste_heat,3,FALSE) ->  | B17: =('Paste Values'!D17*'Paste Values'!G17-'Paste Values'!E17*'Paste Values'!H17)/1000*VLOOKUP('Paste Values'!J17,waste_heat,4,FALSE) ->  | D17: =-('Paste Values'!E17*'Paste Values'!H17-'Paste Values'!F17*'Paste Values'!I17)/1000*'Paste Values'!D17*(1-0.25)*0.7*0.23*0.95/0.75*0.68*0.003412 -> 0
A18: =('Paste Values'!D18*'Paste Values'!G18-'Paste Values'!E18*'Paste Values'!H18)/1000*'Paste Values'!C18*VLOOKUP('Paste Values'!J18,waste_heat,3,FALSE) ->  | B18: =('Paste Values'!D18*'Paste Values'!G18-'Paste Values'!E18*'Paste Values'!H18)/1000*VLOOKUP('Paste Values'!J18,waste_heat,4,FALSE) ->  | D18: =-('Paste Values'!E18*'Paste Values'!H18-'Paste Values'!F18*'Paste Values'!I18)/1000*'Paste Values'!D18*(1-0.25)*0.7*0.23*0.95/0.75*0.68*0.003412 -> 0 | W18: AFUE lookup
A19: =('Paste Values'!D19*'Paste Values'!G19-'Paste Values'!E19*'Paste Values'!H19)/1000*'Paste Values'!C19*VLOOKUP('Paste Values'!J19,waste_heat,3,FALSE) ->  | B19: =('Paste Values'!D19*'Paste Values'!G19-'Paste Values'!E19*'Paste Values'!H19)/1000*VLOOKUP('Paste Values'!J19,waste_heat,4,FALSE) ->  | D19: =-('Paste Values'!E19*'Paste Values'!H19-'Paste Values'!F19*'Paste Values'!I19)/1000*'Paste Values'!D19*(1-0.25)*0.7*0.23*0.95/0.75*0.68*0.003412 -> 0 | W19: 1 | X19: 99
A20: =('Paste Values'!D20*'Paste Values'!G20-'Paste Values'!E20*'Paste Values'!H20)/1000*'Paste Values'!C20*VLOOKUP('Paste Values'!J20,waste_heat,3,FALSE) ->  | B20: =('Paste Values'!D20*'Paste Values'!G20-'Paste Values'!E20*'Paste Values'!H20)/1000*VLOOKUP('Paste Values'!J20,waste_heat,4,FALSE) ->  | D20: =-('Paste Values'!E20*'Paste Values'!H20-'Paste Values'!F20*'Paste Values'!I20)/1000*'Paste Values'!D20*(1-0.25)*0.7*0.23*0.95/0.75*0.68*0.003412 -> 0 | W20: 2 | X20: 98
A21: =('Paste Values'!D21*'Paste Values'!G21-'Paste Values'!E21*'Paste Values'!H21)/1000*'Paste Values'!C21*VLOOKUP('Paste Values'!J21,waste_heat,3,FALSE) ->  | B21: =('Paste Values'!D21*'Paste Values'!G21-'Paste Values'!E21*'Paste Values'!H21)/1000*VLOOKUP('Paste Values'!J21,waste_heat,4,FALSE) ->  | D21: =-('Paste Values'!E21*'Paste Values'!H21-'Paste Values'!F21*'Paste Values'!I21)/1000*'Paste Values'!D21*(1-0.25)*0.7*0.23*0.95/0.75*0.68*0.003412 -> 0 | W21: 3 | X21: 97
A22: =('Paste Values'!D22*'Paste Values'!G22-'Paste Values'!E22*'Paste Values'!H22)/1000*'Paste Values'!C22*VLOOKUP('Paste Values'!J22,waste_heat,3,FALSE) ->  | B22: =('Paste Values'!D22*'Paste Values'!G22-'Paste Values'!E22*'Paste Values'!H22)/1000*VLOOKUP('Paste Values'!J22,waste_heat,4,FALSE) ->  | D22: =-('Paste Values'!E22*'Paste Values'!H22-'Paste Values'!F22*'Paste Values'!I22)/1000*'Paste Values'!D22*(1-0.25)*0.7*0.23*0.95/0.75*0.68*0.003412 -> 0 | W22: 4 | X22: 96
A23: =('Paste Values'!D23*'Paste Values'!G23-'Paste Values'!E23*'Paste Values'!H23)/1000*'Paste Values'!C23*VLOOKUP('Paste Values'!J23,waste_heat,3,FALSE) ->  | B23: =('Paste Values'!D23*'Paste Values'!G23-'Paste Values'!E23*'Paste Values'!H23)/1000*VLOOKUP('Paste Values'!J23,waste_heat,4,FALSE) ->  | D23: =-('Paste Values'!E23*'Paste Values'!H23-'Paste Values'!F23*'Paste Values'!I23)/1000*'Paste Values'!D23*(1-0.25)*0.7*0.23*0.95/0.75*0.68*0.003412 -> 0 | W23: 5 | X23: 95
A24: =('Paste Values'!D24*'Paste Values'!G24-'Paste Values'!E24*'Paste Values'!H24)/1000*'Paste Values'!C24*VLOOKUP('Paste Values'!J24,waste_heat,3,FALSE) ->  | B24: =('Paste Values'!D24*'Paste Values'!G24-'Paste Values'!E24*'Paste Values'!H24)/1000*VLOOKUP('Paste Values'!J24,waste_heat,4,FALSE) ->  | D24: =-('Paste Values'!E24*'Paste Values'!H24-'Paste Values'!F24*'Paste Values'!I24)/1000*'Paste Values'!D24*(1-0.25)*0.7*0.23*0.95/0.75*0.68*0.003412 -> 0 | W24: 6 | X24: 94
A25: ='Paste Values'!A26 ->  | W25: 7 | X25: 93
A26: kWh | B26: kW | C26: MMBtu | W26: 8 | X26: 92
A27: ='Paste Values'!C27/1000*'Paste Values'!D27*0.3*1.113 ->  | B27: ='Paste Values'!C27/1000*0.3*1.252 -> 0 | D27: =-B27*0.00065 -> 0 | W27: 9 | X27: 91
A28: ='Paste Values'!C28/1000*'Paste Values'!D28*0.3*1.113 ->  | B28: ='Paste Values'!C28/1000*0.3*1.252 -> 0 | D28: =-B28*0.00065 -> 0 | W28: 10 | X28: 90
A29: ='Paste Values'!C29/1000*'Paste Values'!D29*0.3*1.113 ->  | B29: ='Paste Values'!C29/1000*0.3*1.252 -> 0 | D29: =-B29*0.00065 -> 0 | W29: 11 | X29: 89
A30: ='Paste Values'!C30/1000*'Paste Values'!D30*0.3*1.113 ->  | B30: ='Paste Values'!C30/1000*0.3*1.252 -> 0 | D30: =-B30*0.00065 -> 0 | W30: 12 | X30: 88
A31: ='Paste Values'!C31/1000*'Paste Values'!D31*0.3*1.113 ->  | B31: ='Paste Values'!C31/1000*0.3*1.252 -> 0 | D31: =-B31*0.00065 -> 0 | W31: 13 | X31: 87
A32: Space Heating | W32: 14 | X32: 86
A33: kWh | B33: kW | C33: MMBtu | W33: 15 | X33: 85
A34: =IF(AND('Paste Values'!A34=1,'Paste Values'!I34=1),924*'Paste Values'!H34,0) -> 0 | B34: =IF(A34>0,0.189*'Paste Values'!H34,0) -> 0 | C34: =('Paste Values'!E34*VLOOKUP('Paste Values'!D34,afue,2,FALSE)/10^6*2247*24/53)*(1/VLOOKUP('Paste Values'!C34,afue,2,FALSE)-1/VLOOKUP('Paste Values'!D34,afue,2,FALSE))*'Paste Values'!H34 ->  | W34: 16 | X34: 84
A35: =IF(AND('Paste Values'!A35=1,'Paste Values'!I35=1),924*'Paste Values'!H35,0) -> 0 | B35: =IF(A35>0,0.189*'Paste Values'!H35,0) -> 0 | C35: =('Paste Values'!E35*VLOOKUP('Paste Values'!D35,afue,2,FALSE)/10^6*2247*24/53)*(1/VLOOKUP('Paste Values'!C35,afue,2,FALSE)-1/VLOOKUP('Paste Values'!D35,afue,2,FALSE))*'Paste Values'!H35 ->  | W35: 17 | X35: 83
A36: =IF(AND('Paste Values'!A36=1,'Paste Values'!I36=1),924*'Paste Values'!H36,0) -> 0 | B36: =IF(A36>0,0.189*'Paste Values'!H36,0) -> 0 | C36: =('Paste Values'!E36*VLOOKUP('Paste Values'!D36,afue,2,FALSE)/10^6*2247*24/53)*(1/VLOOKUP('Paste Values'!C36,afue,2,FALSE)-1/VLOOKUP('Paste Values'!D36,afue,2,FALSE))*'Paste Values'!H36 ->  | W36: 18 | X36: 82
A37: Air Conditioning | W37: 19 | X37: 81
A38: Room Air Conditioner | W38: 20 | X38: 80
A39: kWh | B39: kW | C39: MMBtu | W39: 21 | X39: 79
A40: ='Paste Values'!B39*(1/'Paste Values'!E39-1/'Paste Values'!F39)*'Paste Values'!D39*325/10^3 ->  | B40: ='Paste Values'!B39*(1/'Paste Values'!E39-1/'Paste Values'!F39)*'Paste Values'!D39/10^3 ->  | C40: 0 | W40: 22 | X40: 78
A41: Central Unitary/Split System, PTAC | W41: 23 | X41: 77
A42: kWh | B42: kW | C42: MMBtu | W42: 24 | X42: 76
A43: ='Paste Values'!D42*(1/'Paste Values'!H42-1/'Paste Values'!I42)*1823/1000*'Paste Values'!E42 ->  | B43: ='Paste Values'!D42*(1/'Paste Values'!F42-1/'Paste Values'!G42)/10^3*'Paste Values'!E42 ->  | C43: 0 | W43: 25 | X43: 75
A44: Chiller | W44: 26 | X44: 74
A45: kWh | B45: kW | C45: MMBtu | W45: 27 | X45: 73
A46: ='Paste Values'!B46*(12/'Paste Values'!E46-12/'Paste Values'!F46)*1823*'Paste Values'!J46 ->  | B46: ='Paste Values'!B46*(IF('Paste Values'!C46<4,'Paste Values'!C46,12/'Paste Values'!C46)-IF('Paste Values'!D46<4,'Paste Values'!D46,12/'Paste Values'!D46))*'Paste Values'!J46 -> 0 | C46: 0 | W46: 28 | X46: 72
A47: ='Paste Values'!B47*(12/'Paste Values'!E47-12/'Paste Values'!F47)*1823*'Paste Values'!J47 ->  | B47: ='Paste Values'!B47*(IF('Paste Values'!C47<4,'Paste Values'!C47,12/'Paste Values'!C47)-IF('Paste Values'!D47<4,'Paste Values'!D47,12/'Paste Values'!D47))*'Paste Values'!J47 -> 0 | C47: 0 | W47: 29 | X47: 71
A48: ='Paste Values'!B48*(12/'Paste Values'!E48-12/'Paste Values'!F48)*1823*'Paste Values'!J48 ->  | B48: ='Paste Values'!B48*(IF('Paste Values'!C48<4,'Paste Values'!C48,12/'Paste Values'!C48)-IF('Paste Values'!D48<4,'Paste Values'!D48,12/'Paste Values'!D48))*'Paste Values'!J48 -> 0 | C48: 0 | W48: 30 | X48: 70
A49: Heat Pump | P49: EER base | Q49: SEER base | R49: COP base | S49: HSPF base
A50: kWh | B50: kW | C50: MMBtu | N50: 1 | O50: Air Source | P50: 11 | Q50: 14 | R50: =8/3.412 -> 2.344665885 | S50: =R50*3.412 -> 8
A51: =('Paste Values'!C52*744*(1/VLOOKUP('Paste Values'!A52,heat_pump,4,FALSE)-1/'Paste Values'!G52)/10^3+'Paste Values'!B52*866*((1/VLOOKUP('Paste Values'!A52,heat_pump,6,FALSE)-1/('Paste Values'!F52*3.412))/10^3))*'Paste Values'!D52 ->  | B51: =('Paste Values'!C52*(1/VLOOKUP('Paste Values'!A52,heat_pump,3,FALSE)-1/'Paste Values'!G52)/10^3)*'Paste Values'!D52 ->  | C51: 0 | N51: 2 | O51: Water Source | P51: 12 | Q51: =P51 -> 12 | R51: 4.2 | S51: =R51*3.412 -> 14.3304
A52: =('Paste Values'!C53*744*(1/VLOOKUP('Paste Values'!A53,heat_pump,4,FALSE)-1/'Paste Values'!G53)/10^3+'Paste Values'!B53*866*((1/VLOOKUP('Paste Values'!A53,heat_pump,6,FALSE)-1/('Paste Values'!F53*3.412))/10^3))*'Paste Values'!D53 ->  | B52: =('Paste Values'!C53*(1/VLOOKUP('Paste Values'!A53,heat_pump,3,FALSE)-1/'Paste Values'!G53)/10^3)*'Paste Values'!D53 ->  | C52: 0 | N52: 3 | O52: Ductless Mini Split | P52: 12.2 | Q52: 14 | R52: =8.2/3.412 -> 2.403282532 | S52: =R52*3.412 -> 8.2
A53: =('Paste Values'!C54*744*(1/VLOOKUP('Paste Values'!A54,heat_pump,4,FALSE)-1/'Paste Values'!G54)/10^3+'Paste Values'!B54*866*((1/VLOOKUP('Paste Values'!A54,heat_pump,6,FALSE)-1/('Paste Values'!F54*3.412))/10^3))*'Paste Values'!D54 ->  | B53: =('Paste Values'!C54*(1/VLOOKUP('Paste Values'!A54,heat_pump,3,FALSE)-1/'Paste Values'!G54)/10^3)*'Paste Values'!D54 ->  | C53: 0 | N53: 4 | O53: Packaged Terminal | P53: =14-(0.3*'Paste Values'!C52/10^3) -> 14 | Q53: =P53 -> 14 | R53: =3.2-(0.026*'Paste Values'!B52/10^3) -> 3.2 | S53: 10.9184
A54: Thermostat
A55: kWh | B55: kW | C55: MMBtu | P55: lifetime | Q55: kWh | R55: kW | S55: MMBtu | U55: =CONCATENATE(IF('Paste Values'!B57="","x",'Paste Values'!B57),IF('Paste Values'!C57="","x",'Paste Values'!C57)) -> 00 | V55: kWh | W55: kW | X55: Loadshape
A56: =VLOOKUP('Paste Values'!A57,thermo,4,FALSE)*'Paste Values'!D57 ->  | B56: =VLOOKUP('Paste Values'!A57,thermo,5,FALSE)*'Paste Values'!D57 ->  | C56: =VLOOKUP('Paste Values'!A57,thermo,6,FALSE)*'Paste Values'!D57 ->  | N56: 1 | O56: Advanced | P56: 10 | Q56: =VLOOKUP(U55,U56:W64,2,FALSE) ->  | R56: =VLOOKUP(U55,U56:W64,3,FALSE) ->  | S56: =IF('Paste Values'!B57=1,2.4,0) -> 0 | U56: xx | V56: 0 | W56: 0 | X56: 72
A57: Hot Water Efficiency | N57: 2 | O57: Programmable | P57: 5 | Q57: =IF('Paste Values'!B57=2,175.6,0) -> 0 | R57: 0 | S57: =IF('Paste Values'!B57=1,1.63,0) -> 0 | U57: x1 | V57: 89.3 | W57: 0.13 | X57: 24
A58: Water Heating | U58: x2 | V58: 0 | W58: 0 | X58: 72
A59: kWh | B59: kW | C59: MMBtu | K59: kW | L59: kWh | M59: MMBtu | N59: H20 | P59: life | Q59: =VLOOKUP('Paste Values'!A57,'Project Performance'!N56:P57,3,FALSE) ->  | U59: 1x | V59: 0 | W59: 0 | X59: 72
A60: =IF(OR('Paste Values'!A62=4,'Paste Values'!A62=""),'Paste Values'!B62*46*365*8.33*(125-63.6)/3412*(1/'Paste Values'!C62-1/'Paste Values'!D62)*'Paste Values'!E62,0) -> 0 | B60: =A60/3228 -> 0 | C60: =IF(OR('Paste Values'!A62=4,'Paste Values'!A62=""),0,'Paste Values'!B62*46*365*8.33*(125-63.6)/10^6*(1/'Paste Values'!C62-1/'Paste Values'!D62)*'Paste Values'!E62) ->  | I60: 1 | J60: Low flow showerhead | K60: 3.2946 | L60: 201.3 | M60: 0.841 | N60: 2.9 | U60: 2x | V60: 259.8 | W60: 0 | X60: 47
A61: =IF(OR('Paste Values'!A63=4,'Paste Values'!A63=""),'Paste Values'!B63*46*365*8.33*(125-63.6)/3412*(1/'Paste Values'!C63-1/'Paste Values'!D63)*'Paste Values'!E63,0) -> 0 | B61: =A61/3228 -> 0 | C61: =IF(OR('Paste Values'!A63=4,'Paste Values'!A63=""),0,'Paste Values'!B63*46*365*8.33*(125-63.6)/10^6*(1/'Paste Values'!C63-1/'Paste Values'!D63)*'Paste Values'!E63) ->  | I61: 2 | J61: Faucet aerator/flow restrictor | K61: 1.2 | L61: 50 | M61: 0.2 | N61: 1.01 | U61: =1&1 -> 11 | V61: 111.5 | W61: 0.13 | X61: 72
A62: =IF(OR('Paste Values'!A64=4,'Paste Values'!A64=""),'Paste Values'!B64*46*365*8.33*(125-63.6)/3412*(1/'Paste Values'!C64-1/'Paste Values'!D64)*'Paste Values'!E64,0) -> 0 | B62: 0 | C62: =IF(OR('Paste Values'!A64=4,'Paste Values'!A64=""),0,'Paste Values'!B64*46*365*8.33*(125-63.6)/10^6*(1/'Paste Values'!C64-1/'Paste Values'!D64)*'Paste Values'!E64) ->  | I62: 3 | J62: Shower Restriction Valve | K62: 0.74959 | L62: 45.8 | M62: 0.192 | N62: 0.66 | U62: =1&2 -> 12 | V62: 22.2 | W62: 0 | X62: 47
A63: Aerators, Showerheads & Restrictor Valves | U63: =2&1 -> 21 | V63: 349.2 | W63: 0.13 | X63: 73
A64: kWh | B64: kW | C64: MMBtu | D64: H2O | P64: ESVG | Q64: DSVG | U64: =2&2 -> 22 | V64: 259.8 | W64: 0 | X64: 47
A65: =IF('Paste Values'!C68=1,VLOOKUP('Paste Values'!A68,flow,4,FALSE)*'Paste Values'!D68,0) -> 0 | B65: =IF('Paste Values'!C68=1,VLOOKUP('Paste Values'!A68,flow,3,FALSE)*'Paste Values'!D68,0) -> 0 | C65: =IF('Paste Values'!C68=2,VLOOKUP('Paste Values'!A68,flow,5,FALSE)*'Paste Values'!D68,0) -> 0 | D65: =VLOOKUP('Paste Values'!A68,flow,6,FALSE)*'Paste Values'!F68 ->  | K65: kW | L65: kWh | M65: MMBtu | P65: kWh/hp | Q65: kW/hp | R65: Loadshape | X65: =IF('Paste Values'!A54=2,47,VLOOKUP('Project Performance'!U55,'Project Performance'!U56:X64,4,FALSE)) -> 
A66: =IF('Paste Values'!C69=1,VLOOKUP('Paste Values'!A69,flow,4,FALSE)*'Paste Values'!D69,0) -> 0 | B66: =IF('Paste Values'!C69=1,VLOOKUP('Paste Values'!A69,flow,3,FALSE)*'Paste Values'!D69,0) -> 0 | C66: =IF('Paste Values'!C69=2,VLOOKUP('Paste Values'!A69,flow,5,FALSE)*'Paste Values'!D69,0) -> 0 | D66: =VLOOKUP('Paste Values'!A69,flow,6,FALSE)*'Paste Values'!F69 ->  | K66: =0.000294/6 -> 4.9e-05 | L66: =24.9/6 -> 4.15 | M66: =0.017/6 -> 0.002833333333 | N66: 1 | O66: Supply Fans | P66: 2033 | Q66: 0.286 | R66: 52
A67: =IF('Paste Values'!C70=1,VLOOKUP('Paste Values'!A70,flow,4,FALSE)*'Paste Values'!D70,0) -> 0 | B67: =IF('Paste Values'!C70=1,VLOOKUP('Paste Values'!A70,flow,3,FALSE)*'Paste Values'!D70,0) -> 0 | C67: =IF('Paste Values'!C70=2,VLOOKUP('Paste Values'!A70,flow,5,FALSE)*'Paste Values'!D70,0) -> 0 | D67: =VLOOKUP('Paste Values'!A70,flow,6,FALSE)*'Paste Values'!F70 ->  | K67: 0.01289 | L67: 113 | M67: =L67*(3412*0.98)/0.78/10^6 -> 0.4844165128 | N67: 2 | O67: Return Fans | P67: 1788 | Q67: 0.297 | R67: 53
A68: =IF('Paste Values'!C71=1,VLOOKUP('Paste Values'!A71,flow,4,FALSE)*'Paste Values'!D71,0) -> 0 | B68: =IF('Paste Values'!C71=1,VLOOKUP('Paste Values'!A71,flow,3,FALSE)*'Paste Values'!D71,0) -> 0 | C68: =IF('Paste Values'!C71=2,VLOOKUP('Paste Values'!A71,flow,5,FALSE)*'Paste Values'!D71,0) -> 0 | D68: =VLOOKUP('Paste Values'!A71,flow,6,FALSE)*'Paste Values'!F71 ->  | N68: 3 | O68: Cooling Water Pumps | P68: 1633 | Q68: 0.185 | R68: 56
B69: kWh | C69: kW | D69: MMBtu | N69: 4 | O69: Hot Water Pumps | P69: 1548 | Q69: 0.096 | R69: 75
A70: Pipe Wrap | B70: =IF('Paste Values'!C74=1,'Paste Values'!B74*'Project Performance'!L66,0) -> 0 | C70: =IF('Paste Values'!C74=1,'Paste Values'!B74*'Project Performance'!K66,0) -> 0 | D70: =IF('Paste Values'!C74=2,'Paste Values'!B74*'Project Performance'!M66,0) -> 0 | N70: 5 | O70: WSHP Circulation Pumps | P70: 2562 | Q70: 0.234 | R70: 76
A71: Tank Insulation | B71: =IF('Paste Values'!C75=1,'Paste Values'!B75*'Project Performance'!L67,0) -> 0 | C71: =IF('Paste Values'!C75=1,'Paste Values'!B75*'Project Performance'!K67,0) -> 0 | D71: =IF('Paste Values'!C75=2,'Paste Values'!B75*'Project Performance'!M67,0) -> 0
A72: Variable Frequency Drives
A73: kWh | B73: kW | C73: MMBtu | P73: kWh | Q73: kW
A74: =VLOOKUP('Paste Values'!A79,vfd,3,FALSE)*'Paste Values'!B79*'Paste Values'!C79 ->  | B74: =VLOOKUP('Paste Values'!A79,vfd,4,FALSE)*'Paste Values'!B79*'Paste Values'!C79 ->  | C74: 0 | N74: 1 | O74: Energy Star/CEE Tier 1 | P74: 685.2 | Q74: 0.111
A75: =VLOOKUP('Paste Values'!A80,vfd,3,FALSE)*'Paste Values'!B80*'Paste Values'!C80 ->  | B75: =VLOOKUP('Paste Values'!A80,vfd,4,FALSE)*'Paste Values'!B80*'Paste Values'!C80 ->  | C75: 0 | N75: 2 | O75: CEE Tier 2 | P75: 710.8 | Q75: 0.115
A76: =VLOOKUP('Paste Values'!A81,vfd,3,FALSE)*'Paste Values'!B81*'Paste Values'!C81 ->  | B76: =VLOOKUP('Paste Values'!A81,vfd,4,FALSE)*'Paste Values'!B81*'Paste Values'!C81 ->  | C76: 0 | N76: 3 | O76: CEE Tier 3 | P76: 736.6 | Q76: 0.119
A77: =VLOOKUP('Paste Values'!A82,vfd,3,FALSE)*'Paste Values'!B82*'Paste Values'!C82 ->  | B77: =VLOOKUP('Paste Values'!A82,vfd,4,FALSE)*'Paste Values'!B82*'Paste Values'!C82 ->  | C77: 0
A78: =VLOOKUP('Paste Values'!A83,vfd,3,FALSE)*'Paste Values'!B83*'Paste Values'!C83 ->  | B78: =VLOOKUP('Paste Values'!A83,vfd,4,FALSE)*'Paste Values'!B83*'Paste Values'!C83 ->  | C78: 0
A79: =VLOOKUP('Paste Values'!A84,vfd,3,FALSE)*'Paste Values'!B84*'Paste Values'!C84 ->  | B79: =VLOOKUP('Paste Values'!A84,vfd,4,FALSE)*'Paste Values'!B84*'Paste Values'!C84 ->  | C79: 0
A80: Kitchen Appliances
A81: Refrigerator
A82: kWh | B82: kW | C82: MMBtu
A83: =VLOOKUP('Paste Values'!A89,fridge,3,FALSE)*'Paste Values'!B89 ->  | B83: =VLOOKUP('Paste Values'!A89,fridge,4,FALSE)*'Paste Values'!B89 ->  | C83: 0
A84: =VLOOKUP('Paste Values'!A90,fridge,3,FALSE)*'Paste Values'!B90 ->  | B84: =VLOOKUP('Paste Values'!A90,fridge,4,FALSE)*'Paste Values'!B90 ->  | C84: 0
A85: =VLOOKUP('Paste Values'!A91,fridge,3,FALSE)*'Paste Values'!B91 ->  | B85: =VLOOKUP('Paste Values'!A91,fridge,4,FALSE)*'Paste Values'!B91 ->  | C85: 0
A86: Ventilation
A87: Exhaust-only, in-unit
A88: kWh | B88: kW | C88: MMBtu
A89: ='Paste Values'!B96*('Paste Values'!C96/2.8-'Paste Values'!D96)/10^3*'Paste Values'!E96 -> 0 | B89: =('Paste Values'!C96/2.8-'Paste Values'!D96)/10^3*'Paste Values'!E96 -> 0 | C89: 0
A90: ='Paste Values'!B97*('Paste Values'!C97/2.8-'Paste Values'!D97)/10^3*'Paste Values'!E97 -> 0 | B90: =('Paste Values'!C97/2.8-'Paste Values'!D97)/10^3*'Paste Values'!E97 -> 0 | C90: 0
